{"text_format":"1","workbook":"xlsx","n_sheets":3,"sheets":["Лист1","Лист2","Лист3"],"not_rendered":{"charts":0,"images":0,"macros":1,"external_links":0,"defined_names":1,"comments":0,"pivot_tables":0},"unopened":[],"bounds":{"document_bytes":16777216,"sheet_cells":100000,"rows_first":2000,"rows_last":500,"rows_between":2000,"halvings":0,"cell_chars":16384,"cell_head_chars":4096},"cells_cut":0,"cells_raw":0,"read":"whole","date_system":"1900"}

{"sheet":"Лист1","index":0,"n_rows":178,"n_cols":141,"rows_kept":178,"cut":false,"hidden":false,"merged":[]}
["ОПКР 23.12.2013 № 1354","ОПКР 30.06.2014 № 540","ОПКР 09.02.2015 № 86","ОПКР 30.11.2015 № 1014","ОПКР 20.06.2016 № 537","ОПКР 28.11.2016 № 1067","2016-12-01","2017-01-01","2017-02-01","2017-03-01","2017-04-01","2017-05-01","2017-06-01","ОПКР 10.07.2017 № 618","2017-08-01","2017-09-01","2017-10-01","2017-11-01","2017-12-01","2018-01-01","2018-02-01","2018-03-01","2018-04-01","2018-05-01","2018-06-01","2018-07-01","2018-08-01","2018-09-01","2018-10-01","2018-11-01","ОПКР 30.11.2018 № 1057","2018-12-01","2019-01-01","2019-02-01","2019-03-01","ОПКР 01.04.2019 № 328","2019-04-01","2019-05-01","2019-06-01","2019-07-01","2019-08-01","2019-09-01","2019-10-01","2019-11-01","2019-12-01","2020-01-01","ОПКР 20.01.2020 № 26","2020-02-01","2020-03-01","2020-04-01","2020-05-01","2020-06-01","2020-07-01","ОПКР 27.07.2020 № 811","2020-08-01","2020-09-01","2020-10-01","2020-11-01","2020-12-01","ОПКР 28.12.2020 № 1555","2021-01-01","2021-02-01","2021-03-01","2021-04-01","2021-05-01","2021-06-01","2021-07-01","2021-08-01","ОПКР 06.09.2021 № 1064","2021-09-01","2021-10-01","2021-11-01","2021-12-01","2022-01-01","ОПКР 07.02.2022 № 153","2022-02-01","2022-03-01","2022-04-01","2022-05-01","2022-06-01","2022-07-01","2022-08-01","ОПКР 19.09.2022 № 1146","2022-09-01","2022-10-01","2022-11-01","2022-12-01","2023-01-01","2023-02-01","ОПКР 06.03.2023 № 32","2023-03-01","2023-04-01","2013-05-01","2023-06-01","2023-07-01","2023-08-01","2023-09-01","2023-10-01","ОПКР 30.10.2023 № 1224","2023-11-01","2023-12-01","2024-01-01","2024-02-01","ОПКР 05.03.2024 № 253","2024-03-01","2024-04-01","2024-05-01","2024-06-01","2024-07-01","2024-08-01","2024-09-01","2024-10-01","ОПКР 07.11.2024 № 1279","2024-12-01","2025-01-01","2025-02-01","2025-03-01","ОПКР 02.04.2025 № 487","2025-05-01","2025-06-01","2025-07-01","2025-08-01","ОПКР 18.09.2025 № 1311","2025-10-01","2025-11-01","ОПКР 03.12.2025 № 1642","2026-01-01","2026-02-01","2026-03-01","2026-04-01","2026-05-01","2026-06-01","2026-07-01","2026-08-01","2026-09-01","2026-10-01","2026-11-01","2026-12-01","способ формирования","Владелец счета ","Дата изменений"]
["Большая Климовская, Чкалова ул, д.1",{"$f":"\"Большая Климовская, Чкалова ул, д.1\"","v":"Большая Климовская, Чкалова ул, д.1"},{"$f":"\"Большая Климовская, Чкалова ул, д.1\"","v":"Большая Климовская, Чкалова ул, д.1"},{"$f":"\"Большая Климовская, Чкалова ул, д.1\"","v":"Большая Климовская, Чкалова ул, д.1"},"Большая Климовская, Чкалова ул, д.1",{"$f":"\"Большая Климовская, Чкалова ул, д.1\"","v":"Большая Климовская, Чкалова ул, д.1"},null,null,null,null,null,null,null,{"$f":"\"Большая Климовская, Чкалова ул, д.1\"","v":"Большая Климовская, Чкалова ул, д.1"},null,null,null,null,null,null,null,null,null,null,null,null,null,null,null,null,"Большая Климовская д, Чкалова ул, д. 1",null,null,null,null,null,null,null,null,null,null,null,null,null,null,null,null,null,null,null,null,null,null,null,null,null,null,null,null,null,null,null,null,null,null,null,null,null,null,null,null,null,null,null,null,null,null,null,null,null,null,null,null,null,null,null,null,null,null,null,null,null,null,null,null,null,null,null,null,null,null,null,null,null,null,null,null,null,null,null,null,null,null,null,null,null,null,null,null,null,null,null,null,null,null,null,null,null,null,null,null,null,null,null,null,null,null,null,"Общий счет РО - 271,39","Дом 4-х квартирный","Исключен 01.04.2019"]
["Большая Климовская, Чкалова ул, д.2",{"$f":"\"Большая Климовская, Чкалова ул, д.2\"","v":"Большая Климовская, Чкалова ул, д.2"},{"$f":"\"Большая Климовская, Чкалова ул, д.2\"","v":"Большая Климовская, Чкалова ул, д.2"},{"$f":"\"Большая Климовская, Чкалова ул, д.2\"","v":"Большая Климовская, Чкалова ул, д.2"},"Большая Климовская, Чкалова ул, д.2",{"$f":"\"Большая Климовская, Чкалова ул, д.2\"","v":"Большая Климовская, Чкалова ул, д.2"},null,null,null,null,null,null,null,{"$f":"\"Большая Климовская, Чкалова ул, д.2\"","v":"Большая Климовская, Чкалова ул, д.2"},null,null,null,null,null,null,null,null,null,null,null,null,null,null,null,null,"Большая Климовская д, Чкалова ул, д. 2",null,null,null,null,null,null,null,null,null,null,null,null,null,null,null,null,null,null,null,null,null,null,null,null,null,null,null,null,null,null,null,null,null,null,null,null,null,null,null,null,null,null,null,null,null,null,null,null,null,null,null,null,null,null,null,null,null,null,null,null,null,null,null,null,null,null,null,null,null,null,null,null,null,null,null,null,null,null,null,null,null,null,null,null,null,null,null,null,null,null,null,null,null,null,null,null,null,null,null,null,null,null,null,null,null,null,null,"Общий счет РО - 271,58","Дом 4-х квартирный","Исключен 01.04.2019"]
["Большая Климовская, Чкалова ул, д.3",{"$f":"\"Большая Климовская, Чкалова ул, д.3\"","v":"Большая Климовская, Чкалова ул, д.3"},{"$f":"\"Большая Климовская, Чкалова ул, д.3\"","v":"Большая Климовская, Чкалова ул, д.3"},{"$f":"\"Большая Климовская, Чкалова ул, д.3\"","v":"Большая Климовская, Чкалова ул, д.3"},"Большая Климовская, Чкалова ул, д.3",{"$f":"\"Большая Климовская, Чкалова ул, д.3\"","v":"Большая Климовская, Чкалова ул, д.3"},null,null,null,null,null,null,null,{"$f":"\"Большая Климовская, Чкалова ул, д.3\"","v":"Большая Климовская, Чкалова ул, д.3"},null,null,null,null,null,null,null,null,null,null,null,null,null,null,null,null,"Большая Климовская д, Чкалова ул, д. 3",null,null,null,null,null,null,null,null,null,null,null,null,null,null,null,null,null,null,null,null,null,null,null,null,null,null,null,null,null,null,null,null,null,null,null,null,null,null,null,null,null,null,null,null,null,null,null,null,null,null,null,null,null,null,null,null,null,null,null,null,null,null,null,null,null,null,null,null,null,null,null,null,null,null,null,null,null,null,null,null,null,null,null,null,null,null,null,null,null,null,null,null,null,null,null,null,null,null,null,null,null,null,null,null,null,null,null,"Общий счет РО - 278,80","Дом 4-х квартирный","Исключен 01.04.2019"]
["Большая Климовская, Чкалова ул, д.4",{"$f":"\"Большая Климовская, Чкалова ул, д.4\"","v":"Большая Климовская, Чкалова ул, д.4"},{"$f":"\"Большая Климовская, Чкалова ул, д.4\"","v":"Большая Климовская, Чкалова ул, д.4"},{"$f":"\"Большая Климовская, Чкалова ул, д.4\"","v":"Большая Климовская, Чкалова ул, д.4"},"Большая Климовская, Чкалова ул, д.4",{"$f":"\"Большая Климовская, Чкалова ул, д.4\"","v":"Большая Климовская, Чкалова ул, д.4"},null,null,null,null,null,null,null,{"$f":"\"Большая Климовская, Чкалова ул, д.4\"","v":"Большая Климовская, Чкалова ул, д.4"},null,null,null,null,null,null,null,null,null,null,null,null,null,null,null,null,"Большая Климовская д, Чкалова ул, д. 4",null,null,null,null,null,null,null,null,null,null,null,null,null,null,null,null,null,null,null,null,null,null,null,null,null,null,null,null,null,null,null,null,null,null,null,null,null,null,null,null,null,null,null,null,null,null,null,null,null,null,null,null,null,null,null,null,null,null,null,null,null,null,null,null,null,null,null,null,null,null,null,null,null,null,null,null,null,null,null,null,null,null,null,null,null,null,null,null,null,null,null,null,null,null,null,null,null,null,null,null,null,null,null,null,null,null,null,"Общий счет РО - 268,70","Дом 4-х квартирный","Исключен 01.04.2019"]
["Большая Климовская, Чкалова ул, д.5",{"$f":"\"Большая Климовская, Чкалова ул, д.5\"","v":"Большая Климовская, Чкалова ул, д.5"},{"$f":"\"Большая Климовская, Чкалова ул, д.5\"","v":"Большая Климовская, Чкалова ул, д.5"},{"$f":"\"Большая Климовская, Чкалова ул, д.5\"","v":"Большая Климовская, Чкалова ул, д.5"},"Большая Климовская, Чкалова ул, д.5",{"$f":"\"Большая Климовская, Чкалова ул, д.5\"","v":"Большая Климовская, Чкалова ул, д.5"},null,null,null,null,null,null,null,{"$f":"\"Большая Климовская, Чкалова ул, д.5\"","v":"Большая Климовская, Чкалова ул, д.5"},null,null,null,null,null,null,null,null,null,null,null,null,null,null,null,null,"Большая Климовская д, Чкалова ул, д. 5",null,null,null,null,"Большая Климовская д, Чкалова ул, д. 5",null,null,null,null,null,null,null,null,null,null,"Большая Климовская д, Чкалова ул, д. 5",null,null,null,null,null,null,"Большая Климовская д, Чкалова ул, д. 5",null,null,null,null,null,"Большая Климовская д, Чкалова ул, д. 5",null,null,null,null,null,null,null,null,"Большая Климовская д, Чкалова ул, д. 5",null,null,null,null,null,"Большая Климовская д, Чкалова ул, д. 5",null,null,null,null,null,null,null,"Большая Климовская д, Чкалова ул, д. 5",null,null,null,null,null,null,"Большая Климовская д, Чкалова ул, д. 5",null,null,null,null,null,null,null,null,"Большая Климовская д, Чкалова ул, д. 5",null,null,null,null,"Большая Климовская д, Чкалова ул, д. 5",null,null,null,null,null,null,null,null,"Большая Климовская д, Чкалова ул, д. 5",null,null,null,null,"Большая Климовская д, Чкалова ул, д. 5",null,null,null,null,"Большая Климовская д, Чкалова ул, д. 5",null,null,"Большая Климовская д, Чкалова ул, д. 5",null,null,null,null,null,null,null,null,null,null,null,null,"Общий счет РО+"]
["Большая Климовская, Чкалова ул, д.6",{"$f":"\"Большая Климовская, Чкалова ул, д.6\"","v":"Большая Климовская, Чкалова ул, д.6"},{"$f":"\"Большая Климовская, Чкалова ул, д.6\"","v":"Большая Климовская, Чкалова ул, д.6"},{"$f":"\"Большая Климовская, Чкалова ул, д.6\"","v":"Большая Климовская, Чкалова ул, д.6"},"Большая Климовская, Чкалова ул, д.6",{"$f":"\"Большая Климовская, Чкалова ул, д.6\"","v":"Большая Климовская, Чкалова ул, д.6"},null,null,null,null,null,null,null,{"$f":"\"Большая Климовская, Чкалова ул, д.6\"","v":"Большая Климовская, Чкалова ул, д.6"},null,null,null,null,null,null,null,null,null,null,null,null,null,null,null,null,"Большая Климовская д, Чкалова ул, д. 6",null,null,null,null,null,null,null,null,null,null,null,null,null,null,null,null,null,null,null,null,null,null,null,null,null,null,null,null,null,null,null,null,null,null,null,null,null,null,null,null,null,null,null,null,null,null,null,null,null,null,null,null,null,null,null,null,null,null,null,null,null,null,null,null,null,null,null,null,null,null,null,null,null,null,null,null,null,null,null,null,null,null,null,null,null,null,null,null,null,null,null,null,null,null,null,null,null,null,null,null,null,null,null,null,null,null,null,"Общий счет РО - 252,20","Дом 4-х квартирный","Исключен 01.04.2019"]
["Вожега п, 40 лет Победы ул, д.8",{"$f":"\"Вожега п, 40 лет Победы ул, д.8\"","v":"Вожега п, 40 лет Победы ул, д.8"},{"$f":"\"Вожега п, 40 лет Победы ул, д.8\"","v":"Вожега п, 40 лет Победы ул, д.8"},{"$f":"\"Вожега п, 40 лет Победы ул, д.8\"","v":"Вожега п, 40 лет Победы ул, д.8"},"Вожега п, 40 лет Победы ул, д.8",{"$f":"\"Вожега п, 40 лет Победы ул, д.8\"","v":"Вожега п, 40 лет Победы ул, д.8"},null,null,null,null,null,null,null,{"$f":"\"Вожега п, 40 лет Победы ул, д.8\"","v":"Вожега п, 40 лет Победы ул, д.8"},null,null,null,null,null,null,null,null,null,null,null,null,null,null,null,null,"Вожега рп, 40 лет Победы ул, д. 8",null,null,null,null,"Вожега рп, 40 лет Победы ул, д. 8",null,null,null,null,null,null,null,null,null,null,"Вожега рп, 40 лет Победы ул, д. 8",null,null,null,null,null,null,"Вожега рп, 40 лет Победы ул, д. 8",null,null,null,null,null,"Вожега рп, 40 лет Победы ул, д. 8",null,null,null,null,null,null,null,null,"Вожега рп, 40 лет Победы ул, д. 8",null,null,null,null,null,"Вожега рп, 40 лет Победы ул, д. 8",null,null,null,null,null,null,null,"Вожега рп, 40 лет Победы ул, д. 8",null,null,null,null,null,null,"Вожега рп, 40 лет Победы ул, д. 8",null,null,null,null,null,null,null,null,"Вожега рп, 40 лет Победы ул, д. 8",null,null,null,null,"Вожега рп, 40 лет Победы ул, д. 8",null,null,null,null,null,null,null,null,"Вожега рп, 40 лет Победы ул, д. 8",null,null,null,null,"Вожега рп, 40 лет Победы ул, д. 8",null,null,null,null,"Вожега рп, 40 лет Победы ул, д. 8",null,null,"Вожега рп, 40 лет Победы ул, д. 8",null,null,null,null,null,null,null,null,null,null,null,null,"Общий счет РО+"]
["Вожега п, 40 лет Победы ул, д.10",{"$f":"\"Вожега п, 40 лет Победы ул, д.10\"","v":"Вожега п, 40 лет Победы ул, д.10"},{"$f":"\"Вожега п, 40 лет Победы ул, д.10\"","v":"Вожега п, 40 лет Победы ул, д.10"},{"$f":"\"Вожега п, 40 лет Победы ул, д.10\"","v":"Вожега п, 40 лет Победы ул, д.10"},"Вожега п, 40 лет Победы ул, д.10",{"$f":"\"Вожега п, 40 лет Победы ул, д.10\"","v":"Вожега п, 40 лет Победы ул, д.10"},null,null,null,null,null,null,null,{"$f":"\"Вожега п, 40 лет Победы ул, д.10\"","v":"Вожега п, 40 лет Победы ул, д.10"},null,null,null,null,null,null,null,null,null,null,null,null,null,null,null,null,"Вожега рп, 40 лет Победы ул, д. 10",null,null,null,null,"Вожега рп, 40 лет Победы ул, д. 10",null,null,null,null,null,null,null,null,null,null,"Вожега рп, 40 лет Победы ул, д. 10",null,null,null,null,null,null,"Вожега рп, 40 лет Победы ул, д. 10",null,null,null,null,null,"Вожега рп, 40 лет Победы ул, д. 10",null,null,null,null,null,null,null,null,"Вожега рп, 40 лет Победы ул, д. 10",null,null,null,null,null,"Вожега рп, 40 лет Победы ул, д. 10",null,null,null,null,null,null,null,"Вожега рп, 40 лет Победы ул, д. 10",null,null,null,null,null,null,"Вожега рп, 40 лет Победы ул, д. 10",null,null,null,null,null,null,null,null,"Вожега рп, 40 лет Победы ул, д. 10",null,null,null,null,"Вожега рп, 40 лет Победы ул, д. 10",null,null,null,null,null,null,null,null,"Вожега рп, 40 лет Победы ул, д. 10",null,null,null,null,"Вожега рп, 40 лет Победы ул, д. 10",null,null,null,null,"Вожега рп, 40 лет Победы ул, д. 10",null,null,"Вожега рп, 40 лет Победы ул, д. 10",null,null,null,null,null,null,null,null,null,null,null,null,"Общий счет РО+"]
["Вожега п, 40 лет Победы ул, д.17А",{"$f":"\"Вожега п, 40 лет Победы ул, д.17А\"","v":"Вожега п, 40 лет Победы ул, д.17А"},{"$f":"\"Вожега п, 40 лет Победы ул, д.17А\"","v":"Вожега п, 40 лет Победы ул, д.17А"},{"$f":"\"Вожега п, 40 лет Победы ул, д.17А\"","v":"Вожега п, 40 лет Победы ул, д.17А"},"Вожега п, 40 лет Победы ул, д.17А",{"$f":"\"Вожега п, 40 лет Победы ул, д.17А\"","v":"Вожега п, 40 лет Победы ул, д.17А"},null,null,null,null,null,null,null,{"$f":"\"Вожега п, 40 лет Победы ул, д.17А\"","v":"Вожега п, 40 лет Победы ул, д.17А"},null,null,null,null,null,null,null,null,null,null,null,null,null,null,null,null,"Вожега рп, 40 лет Победы ул, д. 17А",null,null,null,null,"Вожега рп, 40 лет Победы ул, д. 17А",null,null,null,null,null,null,null,null,null,null,"Вожега рп, 40 лет Победы ул, д. 17А",null,null,null,null,null,null,"Вожега рп, 40 лет Победы ул, д. 17А",null,null,null,null,null,"Вожега рп, 40 лет Победы ул, д. 17А",null,null,null,null,null,null,null,null,"Вожега рп, 40 лет Победы ул, д. 17А",null,null,null,null,null,"Вожега рп, 40 лет Победы ул, д. 17А",null,null,null,null,null,null,null,"Вожега рп, 40 лет Победы ул, д. 17А",null,null,null,null,null,null,"Вожега рп, 40 лет Победы ул, д. 17А",null,null,null,null,null,null,null,null,"Вожега рп, 40 лет Победы ул, д. 17А",null,null,null,null,"Вожега рп, 40 лет Победы ул, д. 17А",null,null,null,null,null,null,null,null,"Вожега рп, 40 лет Победы ул, д. 17А",null,null,null,null,"Вожега рп, 40 лет Победы ул, д. 17А",null,null,null,null,"Вожега рп, 40 лет Победы ул, д. 17А",null,null,"Вожега рп, 40 лет Победы ул, д. 17А",null,null,null,null,null,null,null,null,null,null,null,null,"Общий счет РО+"]
["Вожега п, 40 лет Победы ул, д.19А",{"$f":"\"Вожега п, 40 лет Победы ул, д.19А\"","v":"Вожега п, 40 лет Победы ул, д.19А"},{"$f":"\"Вожега п, 40 лет Победы ул, д.19А\"","v":"Вожега п, 40 лет Победы ул, д.19А"},{"$f":"\"Вожега п, 40 лет Победы ул, д.19А\"","v":"Вожега п, 40 лет Победы ул, д.19А"},"Вожега п, 40 лет Победы ул, д.19А",{"$f":"\"Вожега п, 40 лет Победы ул, д.19А\"","v":"Вожега п, 40 лет Победы ул, д.19А"},null,null,null,null,null,null,null,{"$f":"\"Вожега п, 40 лет Победы ул, д.19А\"","v":"Вожега п, 40 лет Победы ул, д.19А"},null,null,null,null,null,null,null,null,null,null,null,null,null,null,null,null,"Вожега рп, 40 лет Победы ул, д. 19А",null,null,null,null,"Вожега рп, 40 лет Победы ул, д. 19А",null,null,null,null,null,null,null,null,null,null,null,null,null,null,null,null,null,null,null,null,null,null,null,null,null,null,null,null,null,null,null,null,null,null,null,null,null,null,null,null,null,null,null,null,null,null,null,null,null,null,null,null,null,null,null,null,null,null,null,null,null,null,null,null,null,null,null,null,null,null,null,null,null,null,null,null,null,null,null,null,null,null,null,null,null,null,null,null,null,null,null,null,null,null,null,null,null,null,null,null,null,null,"Общий счет РО - 296,40",null,"Исключен 20.01.2020"]
["Вожега п, 40 лет Победы ул, д.22",{"$f":"\"Вожега п, 40 лет Победы ул, д.22\"","v":"Вожега п, 40 лет Победы ул, д.22"},{"$f":"\"Вожега п, 40 лет Победы ул, д.22\"","v":"Вожега п, 40 лет Победы ул, д.22"},{"$f":"\"Вожега п, 40 лет Победы ул, д.22\"","v":"Вожега п, 40 лет Победы ул, д.22"},"Вожега п, 40 лет Победы ул, д.22",{"$f":"\"Вожега п, 40 лет Победы ул, д.22\"","v":"Вожега п, 40 лет Победы ул, д.22"},null,null,null,null,null,null,null,{"$f":"\"Вожега п, 40 лет Победы ул, д.22\"","v":"Вожега п, 40 лет Победы ул, д.22"},null,null,null,null,null,null,null,null,null,null,null,null,null,null,null,null,"Вожега рп, 40 лет Победы ул, д. 22",null,null,null,null,"Вожега рп, 40 лет Победы ул, д. 22",null,null,null,null,null,null,null,null,null,null,"Вожега рп, 40 лет Победы ул, д. 22",null,null,null,null,null,null,"Вожега рп, 40 лет Победы ул, д. 22",null,null,null,null,null,"Вожега рп, 40 лет Победы ул, д. 22",null,null,null,null,null,null,null,null,"Вожега рп, 40 лет Победы ул, д. 22",null,null,null,null,null,"Вожега рп, 40 лет Победы ул, д. 22",null,null,null,null,null,null,null,"Вожега рп, 40 лет Победы ул, д. 22",null,null,null,null,null,null,"Вожега рп, 40 лет Победы ул, д. 22",null,null,null,null,null,null,null,null,"Вожега рп, 40 лет Победы ул, д. 22",null,null,null,null,null,null,null,null,null,null,null,null,null,null,null,null,null,null,null,null,null,null,null,null,null,null,null,null,null,null,null,null,null,null,null,null,null,null,null,"Общий счет РО+334,70","Признан аварийным. Постановление 1218 от 29.12.2023","Исключен 05.03.2024"]
["Вожега п, Вокзальная ул, д.1",{"$f":"\"Вожега п, Вокзальная ул, д.1\"","v":"Вожега п, Вокзальная ул, д.1"},{"$f":"\"Вожега п, Вокзальная ул, д.1\"","v":"Вожега п, Вокзальная ул, д.1"},null,null,null,null,null,null,null,null,null,null,null,null,null,null,null,null,null,null,null,null,null,null,null,null,null,null,null,null,null,null,null,null,null,null,null,null,null,null,null,null,null,null,null,null,null,null,null,null,null,null,null,null,null,null,null,null,null,null,null,null,null,null,null,null,null,null,null,null,null,null,null,null,null,null,null,null,null,null,null,null,null,null,null,null,null,null,null,null,null,null,null,null,null,null,null,null,null,null,null,null,null,null,null,null,null,null,null,null,null,null,null,null,null,null,null,null,null,null,null,null,null,null,null,null,null,null,null,null,null,null,null,null,null,null,null,null,null,"Исключен"]
["Вожега п, Вокзальная ул, д.7",{"$f":"\"Вожега п, Вокзальная ул, д.7\"","v":"Вожега п, Вокзальная ул, д.7"},{"$f":"\"Вожега п, Вокзальная ул, д.7\"","v":"Вожега п, Вокзальная ул, д.7"},{"$f":"\"Вожега п, Вокзальная ул, д.7\"","v":"Вожега п, Вокзальная ул, д.7"},"Вожега п, Вокзальная ул, д.7",{"$f":"\"Вожега п, Вокзальная ул, д.7\"","v":"Вожега п, Вокзальная ул, д.7"},null,null,null,null,null,null,null,{"$f":"\"Вожега п, Вокзальная ул, д.7\"","v":"Вожега п, Вокзальная ул, д.7"},null,null,null,null,null,null,null,null,null,null,null,null,null,null,null,null,"Вожега рп, Вокзальная ул, д. 7",null,null,null,null,"Вожега рп, Вокзальная ул, д. 7",null,null,null,null,null,null,null,null,null,null,"Вожега рп, Вокзальная ул, д. 7",null,null,null,null,null,null,"Вожега рп, Вокзальная ул, д. 7",null,null,null,null,null,"Вожега рп, Вокзальная ул, д. 7",null,null,null,null,null,null,null,null,"Вожега рп, Вокзальная ул, д. 7",null,null,null,null,null,"Вожега рп, Вокзальная ул, д. 7",null,null,null,null,null,null,null,"Вожега рп, Вокзальная ул, д. 7",null,null,null,null,null,null,"Вожега рп, Вокзальная ул, д. 7",null,null,null,null,null,null,null,null,"Вожега рп, Вокзальная ул, д. 7",null,null,null,null,"Вожега рп, Вокзальная ул, д. 7",null,null,null,null,null,null,null,null,"Вожега рп, Вокзальная ул, д. 7",null,null,null,null,"Вожега рп, Вокзальная ул, д. 7",null,null,null,null,"Вожега рп, Вокзальная ул, д. 7",null,null,null,null,null,null,null,null,null,null,null,null,null,null,null,"Общий счет РО+153,8","Признан аварийным. Постановление 1004 от 02.10.2025","Исключен 03.12.2025"]
["Вожега п, Вокзальная ул, д.9",{"$f":"\"Вожега п, Вокзальная ул, д.9\"","v":"Вожега п, Вокзальная ул, д.9"},{"$f":"\"Вожега п, Вокзальная ул, д.9\"","v":"Вожега п, Вокзальная ул, д.9"},{"$f":"\"Вожега п, Вокзальная ул, д.9\"","v":"Вожега п, Вокзальная ул, д.9"},"Вожега п, Вокзальная ул, д.9",{"$f":"\"Вожега п, Вокзальная ул, д.9\"","v":"Вожега п, Вокзальная ул, д.9"},null,null,null,null,null,null,null,{"$f":"\"Вожега п, Вокзальная ул, д.9\"","v":"Вожега п, Вокзальная ул, д.9"},null,null,null,null,null,null,null,null,null,null,null,null,null,null,null,null,"Вожега рп, Вокзальная ул, д. 9",null,null,null,null,"Вожега рп, Вокзальная ул, д. 9",null,null,null,null,null,null,null,null,null,null,"Вожега рп, Вокзальная ул, д. 9",null,null,null,null,null,null,"Вожега рп, Вокзальная ул, д. 9",null,null,null,null,null,"Вожега рп, Вокзальная ул, д. 9",null,null,null,null,null,null,null,null,"Вожега рп, Вокзальная ул, д. 9",null,null,null,null,null,"Вожега рп, Вокзальная ул, д. 9",null,null,null,null,null,null,null,"Вожега рп, Вокзальная ул, д. 9",null,null,null,null,null,null,"Вожега рп, Вокзальная ул, д. 9",null,null,null,null,null,null,null,null,"Вожега рп, Вокзальная ул, д. 9",null,null,null,null,"Вожега рп, Вокзальная ул, д. 9",null,null,null,null,null,null,null,null,"Вожега рп, Вокзальная ул, д. 9",null,null,null,null,"Вожега рп, Вокзальная ул, д. 9",null,null,null,null,"Вожега рп, Вокзальная ул, д. 9",null,null,"Вожега рп, Вокзальная ул, д. 9",null,null,null,null,null,null,null,null,null,null,null,null,"Общий счет РО+"]
["Вожега п, Вокзальная ул, д.10",{"$f":"\"Вожега п, Вокзальная ул, д.10\"","v":"Вожега п, Вокзальная ул, д.10"},{"$f":"\"Вожега п, Вокзальная ул, д.10\"","v":"Вожега п, Вокзальная ул, д.10"},{"$f":"\"Вожега п, Вокзальная ул, д.10\"","v":"Вожега п, Вокзальная ул, д.10"},"Вожега п, Вокзальная ул, д.10",{"$f":"\"Вожега п, Вокзальная ул, д.10\"","v":"Вожега п, Вокзальная ул, д.10"},null,null,null,null,null,null,null,null,null,null,null,null,null,null,null,null,null,null,null,null,null,null,null,null,null,null,null,null,null,null,null,null,null,null,null,null,null,null,null,null,null,null,null,null,null,null,null,null,null,null,null,null,null,null,null,null,null,null,null,null,null,null,null,null,null,null,null,null,null,null,null,null,null,null,null,null,null,null,null,null,null,null,null,null,null,null,null,null,null,null,null,null,null,null,null,null,null,null,null,null,null,null,null,null,null,null,null,null,null,null,null,null,null,null,null,null,null,null,null,null,null,null,null,null,null,null,null,null,null,null,null,null,"Общий счет РО 185,20","аварийный с 21.12.2016 постановление № 301","Исключен 10.07.2017"]
["Вожега п, Вокзальная ул, д.11",{"$f":"\"Вожега п, Вокзальная ул, д.11\"","v":"Вожега п, Вокзальная ул, д.11"},{"$f":"\"Вожега п, Вокзальная ул, д.11\"","v":"Вожега п, Вокзальная ул, д.11"},{"$f":"\"Вожега п, Вокзальная ул, д.11\"","v":"Вожега п, Вокзальная ул, д.11"},"Вожега п, Вокзальная ул, д.11",{"$f":"\"Вожега п, Вокзальная ул, д.11\"","v":"Вожега п, Вокзальная ул, д.11"},null,null,null,null,null,null,null,{"$f":"\"Вожега п, Вокзальная ул, д.11\"","v":"Вожега п, Вокзальная ул, д.11"},null,null,null,null,null,null,null,null,null,null,null,null,null,null,null,null,"Вожега рп, Вокзальная ул, д. 11",null,null,null,null,"Вожега рп, Вокзальная ул, д. 11",null,null,null,null,null,null,null,null,null,null,"Вожега рп, Вокзальная ул, д. 11",null,null,null,null,null,null,"Вожега рп, Вокзальная ул, д. 11",null,null,null,null,null,"Вожега рп, Вокзальная ул, д. 11",null,null,null,null,null,null,null,null,"Вожега рп, Вокзальная ул, д. 11",null,null,null,null,null,"Вожега рп, Вокзальная ул, д. 11",null,null,null,null,null,null,null,"Вожега рп, Вокзальная ул, д. 11",null,null,null,null,null,null,"Вожега рп, Вокзальная ул, д. 11",null,null,null,null,null,null,null,null,"Вожега рп, Вокзальная ул, д. 11",null,null,null,null,"Вожега рп, Вокзальная ул, д. 11",null,null,null,null,null,null,null,null,"Вожега рп, Вокзальная ул, д. 11",null,null,null,null,null,null,null,null,null,null,null,null,null,null,null,null,null,null,null,null,null,null,null,null,null,"Общий счет РО+149,70",null,"Исключен 02.04.2025"]
["Вожега п, Вокзальная ул, д.12",{"$f":"\"Вожега п, Вокзальная ул, д.12\"","v":"Вожега п, Вокзальная ул, д.12"},{"$f":"\"Вожега п, Вокзальная ул, д.12\"","v":"Вожега п, Вокзальная ул, д.12"},{"$f":"\"Вожега п, Вокзальная ул, д.12\"","v":"Вожега п, Вокзальная ул, д.12"},"Вожега п, Вокзальная ул, д.12",{"$f":"\"Вожега п, Вокзальная ул, д.12\"","v":"Вожега п, Вокзальная ул, д.12"},null,null,null,null,null,null,null,{"$f":"\"Вожега п, Вокзальная ул, д.12\"","v":"Вожега п, Вокзальная ул, д.12"},null,null,null,null,null,null,null,null,null,null,null,null,null,null,null,null,"Вожега рп, Вокзальная ул, д. 12",null,null,null,null,"Вожега рп, Вокзальная ул, д. 12",null,null,null,null,null,null,null,null,null,null,null,null,null,null,null,null,null,null,null,null,null,null,null,null,null,null,null,null,null,null,null,null,null,null,null,null,null,null,null,null,null,null,null,null,null,null,null,null,null,null,null,null,null,null,null,null,null,null,null,null,null,null,null,null,null,null,null,null,null,null,null,null,null,null,null,null,null,null,null,null,null,null,null,null,null,null,null,null,null,null,null,null,null,null,null,null,null,null,null,null,null,null,"Общий счет РО - 111,00",null,"Исключен 20.01.2020"]
["Вожега п, Вокзальная ул, д.13",{"$f":"\"Вожега п, Вокзальная ул, д.13\"","v":"Вожега п, Вокзальная ул, д.13"},{"$f":"\"Вожега п, Вокзальная ул, д.13\"","v":"Вожега п, Вокзальная ул, д.13"},{"$f":"\"Вожега п, Вокзальная ул, д.13\"","v":"Вожега п, Вокзальная ул, д.13"},"Вожега п, Вокзальная ул, д.13",{"$f":"\"Вожега п, Вокзальная ул, д.13\"","v":"Вожега п, Вокзальная ул, д.13"},null,null,null,null,null,null,null,{"$f":"\"Вожега п, Вокзальная ул, д.13\"","v":"Вожега п, Вокзальная ул, д.13"},null,null,null,null,null,null,null,null,null,null,null,null,null,null,null,null,"Вожега рп, Вокзальная ул, д. 13",null,null,null,null,"Вожега рп, Вокзальная ул, д. 13",null,null,null,null,null,null,null,null,null,null,"Вожега рп, Вокзальная ул, д. 13",null,null,null,null,null,null,"Вожега рп, Вокзальная ул, д. 13",null,null,null,null,null,"Вожега рп, Вокзальная ул, д. 13",null,null,null,null,null,null,null,null,"Вожега рп, Вокзальная ул, д. 13",null,null,null,null,null,"Вожега рп, Вокзальная ул, д. 13",null,null,null,null,null,null,null,"Вожега рп, Вокзальная ул, д. 13",null,null,null,null,null,null,"Вожега рп, Вокзальная ул, д. 13",null,null,null,null,null,null,null,null,"Вожега рп, Вокзальная ул, д. 13",null,null,null,null,"Вожега рп, Вокзальная ул, д. 13",null,null,null,null,null,null,null,null,"Вожега рп, Вокзальная ул, д. 13",null,null,null,null,null,null,null,null,null,null,null,null,null,null,null,null,null,null,null,null,null,null,null,null,null,"Общий счет РО+360,10","Признан аварийным. Постановление 1061 от 15.10.2024","Исключен 02.04.2025"]
["Вожега п, Вокзальная ул, д.15",{"$f":"\"Вожега п, Вокзальная ул, д.15\"","v":"Вожега п, Вокзальная ул, д.15"},{"$f":"\"Вожега п, Вокзальная ул, д.15\"","v":"Вожега п, Вокзальная ул, д.15"},{"$f":"\"Вожега п, Вокзальная ул, д.15\"","v":"Вожега п, Вокзальная ул, д.15"},"Вожега п, Вокзальная ул, д.15",{"$f":"\"Вожега п, Вокзальная ул, д.15\"","v":"Вожега п, Вокзальная ул, д.15"},null,null,null,null,null,null,null,{"$f":"\"Вожега п, Вокзальная ул, д.15\"","v":"Вожега п, Вокзальная ул, д.15"},null,null,null,null,null,null,null,null,null,null,null,null,null,null,null,null,"Вожега рп, Вокзальная ул, д. 15",null,null,null,null,"Вожега рп, Вокзальная ул, д. 15",null,null,null,null,null,null,null,null,null,null,"Вожега рп, Вокзальная ул, д. 15",null,null,null,null,null,null,"Вожега рп, Вокзальная ул, д. 15",null,null,null,null,null,"Вожега рп, Вокзальная ул, д. 15",null,null,null,null,null,null,null,null,"Вожега рп, Вокзальная ул, д. 15",null,null,null,null,null,"Вожега рп, Вокзальная ул, д. 15",null,null,null,null,null,null,null,"Вожега рп, Вокзальная ул, д. 15",null,null,null,null,null,null,"Вожега рп, Вокзальная ул, д. 15",null,null,null,null,null,null,null,null,"Вожега рп, Вокзальная ул, д. 15",null,null,null,null,"Вожега рп, Вокзальная ул, д. 15",null,null,null,null,null,null,null,null,"Вожега рп, Вокзальная ул, д. 15",null,null,null,null,"Вожега рп, Вокзальная ул, д. 15",null,null,null,null,"Вожега рп, Вокзальная ул, д. 15",null,null,"Вожега рп, Вокзальная ул, д. 15",null,null,null,null,null,null,null,null,null,null,null,null,"Общий счет РО+"]
["Вожега п, Гагарина ул, д.39",{"$f":"\"Вожега п, Гагарина ул, д.39\"","v":"Вожега п, Гагарина ул, д.39"},{"$f":"\"Вожега п, Гагарина ул, д.39\"","v":"Вожега п, Гагарина ул, д.39"},{"$f":"\"Вожега п, Гагарина ул, д.39\"","v":"Вожега п, Гагарина ул, д.39"},"Вожега п, Гагарина ул, д.39",{"$f":"\"Вожега п, Гагарина ул, д.39\"","v":"Вожега п, Гагарина ул, д.39"},null,null,null,null,null,null,null,{"$f":"\"Вожега п, Гагарина ул, д.39\"","v":"Вожега п, Гагарина ул, д.39"},null,null,null,null,null,null,null,null,null,null,null,null,null,null,null,null,"Вожега рп, Гагарина ул, д. 39",null,null,null,null,"Вожега рп, Гагарина ул, д. 39",null,null,null,null,null,null,null,null,null,null,"Вожега рп, Гагарина ул, д. 39",null,null,null,null,null,null,"Вожега рп, Гагарина ул, д. 39",null,null,null,null,null,"Вожега рп, Гагарина ул, д. 39",null,null,null,null,null,null,null,null,"Вожега рп, Гагарина ул, д. 39",null,null,null,null,null,"Вожега рп, Гагарина ул, д. 39",null,null,null,null,null,null,null,"Вожега рп, Гагарина ул, д. 39",null,null,null,null,null,null,"Вожега рп, Гагарина ул, д. 39",null,null,null,null,null,null,null,null,"Вожега рп, Гагарина ул, д. 39",null,null,null,null,"Вожега рп, Гагарина ул, д. 39",null,null,null,null,null,null,null,null,"Вожега рп, Гагарина ул, д. 39",null,null,null,null,"Вожега рп, Гагарина ул, д. 39",null,null,null,null,"Вожега рп, Гагарина ул, д. 39",null,null,"Вожега рп, Гагарина ул, д. 39",null,null,null,null,null,null,null,null,null,null,null,null,"Общий счет РО+"]
["Вожега п, Гагарина ул, д.47",{"$f":"\"Вожега п, Гагарина ул, д.47\"","v":"Вожега п, Гагарина ул, д.47"},{"$f":"\"Вожега п, Гагарина ул, д.47\"","v":"Вожега п, Гагарина ул, д.47"},{"$f":"\"Вожега п, Гагарина ул, д.47\"","v":"Вожега п, Гагарина ул, д.47"},"Вожега п, Гагарина ул, д.47",{"$f":"\"Вожега п, Гагарина ул, д.47\"","v":"Вожега п, Гагарина ул, д.47"},null,null,null,null,null,null,null,{"$f":"\"Вожега п, Гагарина ул, д.47\"","v":"Вожега п, Гагарина ул, д.47"},null,null,null,null,null,null,null,null,null,null,null,null,null,null,null,null,"Вожега рп, Гагарина ул, д. 47",null,null,null,null,"Вожега рп, Гагарина ул, д. 47",null,null,null,null,null,null,null,null,null,null,"Вожега рп, Гагарина ул, д. 47",null,null,null,null,null,null,"Вожега рп, Гагарина ул, д. 47",null,null,null,null,null,"Вожега рп, Гагарина ул, д. 47",null,null,null,null,null,null,null,null,"Вожега рп, Гагарина ул, д. 47",null,null,null,null,null,"Вожега рп, Гагарина ул, д. 47",null,null,null,null,null,null,null,"Вожега рп, Гагарина ул, д. 47",null,null,null,null,null,null,"Вожега рп, Гагарина ул, д. 47",null,null,null,null,null,null,null,null,null,null,null,null,null,null,null,null,null,null,null,null,null,null,null,null,null,null,null,null,null,null,null,null,null,null,null,null,null,null,null,null,null,null,null,null,null,null,null,null,"Общий счет РО 335,10","Признан аварийным. Заключение 9/2023 от 19.09.2023","Исключен 30.10.2023"]
["Вожега п, Гагарина ул, д.49",{"$f":"\"Вожега п, Гагарина ул, д.49\"","v":"Вожега п, Гагарина ул, д.49"},{"$f":"\"Вожега п, Гагарина ул, д.49\"","v":"Вожега п, Гагарина ул, д.49"},{"$f":"\"Вожега п, Гагарина ул, д.49\"","v":"Вожега п, Гагарина ул, д.49"},"Вожега п, Гагарина ул, д.49",{"$f":"\"Вожега п, Гагарина ул, д.49\"","v":"Вожега п, Гагарина ул, д.49"},null,null,null,null,null,null,null,null,null,null,null,null,null,null,null,null,null,null,null,null,null,null,null,null,null,null,null,null,null,null,null,null,null,null,null,null,null,null,null,null,null,null,null,null,null,null,null,null,null,null,null,null,null,null,null,null,null,null,null,null,null,null,null,null,null,null,null,null,null,null,null,null,null,null,null,null,null,null,null,null,null,null,null,null,null,null,null,null,null,null,null,null,null,null,null,null,null,null,null,null,null,null,null,null,null,null,null,null,null,null,null,null,null,null,null,null,null,null,null,null,null,null,null,null,null,null,null,null,null,null,null,null,"Общий счет РО 333,40","аварийный с 06.10.2016 постановление № 219","Исключен 10.07.2017"]
[null,null,null,null,null,null,null,null,null,null,null,null,null,null,null,null,null,null,null,null,null,null,null,null,null,null,null,null,null,null,null,null,null,null,null,null,null,null,null,null,null,null,null,null,null,null,null,null,null,null,null,null,null,null,null,null,null,null,null,null,null,null,null,null,null,null,null,null,null,null,null,null,null,null,null,null,null,null,null,null,null,null,null,null,null,null,null,null,null,null,null,null,null,null,null,null,null,null,null,null,null,null,null,"Вожега рп, Гагарина ул, д. 66А",null,null,null,null,null,null,null,null,"Вожега рп, Гагарина ул, д. 66А",null,null,null,null,"Вожега рп, Гагарина ул, д. 66А",null,null,null,null,"Вожега рп, Гагарина ул, д. 66А",null,null,"Вожега рп, Гагарина ул, д. 66А",null,null,null,null,null,null,null,null,null,null,null,null,"Общий счет РО+"]
["Вожега п, Заводская ул, д.5",{"$f":"\"Вожега п, Заводская ул, д.5\"","v":"Вожега п, Заводская ул, д.5"},{"$f":"\"Вожега п, Заводская ул, д.5\"","v":"Вожега п, Заводская ул, д.5"},{"$f":"\"Вожега п, Заводская ул, д.5\"","v":"Вожега п, Заводская ул, д.5"},"Вожега п, Заводская ул, д.5",{"$f":"\"Вожега п, Заводская ул, д.5\"","v":"Вожега п, Заводская ул, д.5"},null,null,null,null,null,null,null,{"$f":"\"Вожега п, Заводская ул, д.5\"","v":"Вожега п, Заводская ул, д.5"},null,null,null,null,null,null,null,null,null,null,null,null,null,null,null,null,"Вожега рп, Заводская ул, д. 5",null,null,null,null,"Вожега рп, Заводская ул, д. 5",null,null,null,null,null,null,null,null,null,null,"Вожега рп, Заводская ул, д. 5",null,null,null,null,null,null,"Вожега рп, Заводская ул, д. 5",null,null,null,null,null,"Вожега рп, Заводская ул, д. 5",null,null,null,null,null,null,null,null,"Вожега рп, Заводская ул, д. 5",null,null,null,null,null,"Вожега рп, Заводская ул, д. 5",null,null,null,null,null,null,null,"Вожега рп, Заводская ул, д. 5",null,null,null,null,null,null,"Вожега рп, Заводская ул, д. 5",null,null,null,null,null,null,null,null,"Вожега рп, Заводская ул, д. 5",null,null,null,null,"Вожега рп, Заводская ул, д. 5",null,null,null,null,null,null,null,null,"Вожега рп, Заводская ул, д. 5",null,null,null,null,"Вожега рп, Заводская ул, д. 5",null,null,null,null,"Вожега рп, Заводская ул, д. 5",null,null,"Вожега рп, Заводская ул, д. 5",null,null,null,null,null,null,null,null,null,null,null,null,"Общий счет РО+"]
["Вожега п, Заводская ул, д.8",{"$f":"\"Вожега п, Заводская ул, д.8\"","v":"Вожега п, Заводская ул, д.8"},{"$f":"\"Вожега п, Заводская ул, д.8\"","v":"Вожега п, Заводская ул, д.8"},{"$f":"\"Вожега п, Заводская ул, д.8\"","v":"Вожега п, Заводская ул, д.8"},"Вожега п, Заводская ул, д.8",{"$f":"\"Вожега п, Заводская ул, д.8\"","v":"Вожега п, Заводская ул, д.8"},null,null,null,null,null,null,null,{"$f":"\"Вожега п, Заводская ул, д.8\"","v":"Вожега п, Заводская ул, д.8"},null,null,null,null,null,null,null,null,null,null,null,null,null,null,null,null,"Вожега рп, Заводская ул, д. 8",null,null,null,null,"Вожега рп, Заводская ул, д. 8",null,null,null,null,null,null,null,null,null,null,"Вожега рп, Заводская ул, д. 8",null,null,null,null,null,null,"Вожега рп, Заводская ул, д. 8",null,null,null,null,null,"Вожега рп, Заводская ул, д. 8",null,null,null,null,null,null,null,null,"Вожега рп, Заводская ул, д. 8",null,null,null,null,null,"Вожега рп, Заводская ул, д. 8",null,null,null,null,null,null,null,"Вожега рп, Заводская ул, д. 8",null,null,null,null,null,null,"Вожега рп, Заводская ул, д. 8",null,null,null,null,null,null,null,null,"Вожега рп, Заводская ул, д. 8",null,null,null,null,null,null,null,null,null,null,null,null,null,null,null,null,null,null,null,null,null,null,null,null,null,null,null,null,null,null,null,null,null,null,null,null,null,null,null,"Общий счет РО+347,00","Признан аварийным. Постановление 1220 от 29.12.2023","Исключен 05.03.2024"]
["Вожега п, Заводская ул, д.9",{"$f":"\"Вожега п, Заводская ул, д.9\"","v":"Вожега п, Заводская ул, д.9"},{"$f":"\"Вожега п, Заводская ул, д.9\"","v":"Вожега п, Заводская ул, д.9"},{"$f":"\"Вожега п, Заводская ул, д.9\"","v":"Вожега п, Заводская ул, д.9"},"Вожега п, Заводская ул, д.9",{"$f":"\"Вожега п, Заводская ул, д.9\"","v":"Вожега п, Заводская ул, д.9"},null,null,null,null,null,null,null,{"$f":"\"Вожега п, Заводская ул, д.9\"","v":"Вожега п, Заводская ул, д.9"},null,null,null,null,null,null,null,null,null,null,null,null,null,null,null,null,"Вожега рп, Заводская ул, д. 9",null,null,null,null,"Вожега рп, Заводская ул, д. 9",null,null,null,null,null,null,null,null,null,null,"Вожега рп, Заводская ул, д. 9",null,null,null,null,null,null,"Вожега рп, Заводская ул, д. 9",null,null,null,null,null,"Вожега рп, Заводская ул, д. 9",null,null,null,null,null,null,null,null,"Вожега рп, Заводская ул, д. 9",null,null,null,null,null,"Вожега рп, Заводская ул, д. 9",null,null,null,null,null,null,null,"Вожега рп, Заводская ул, д. 9",null,null,null,null,null,null,"Вожега рп, Заводская ул, д. 9",null,null,null,null,null,null,null,null,null,null,null,null,null,null,null,null,null,null,null,null,null,null,null,null,null,null,null,null,null,null,null,null,null,null,null,null,null,null,null,null,null,null,null,null,null,null,null,null,"Общий счет РО 317,20","Признан аварийым. Постановление 628 от 12.07.2023","Исключен 30.10.2023"]
["Вожега п, Заводская ул, д.10",{"$f":"\"Вожега п, Заводская ул, д.10\"","v":"Вожега п, Заводская ул, д.10"},{"$f":"\"Вожега п, Заводская ул, д.10\"","v":"Вожега п, Заводская ул, д.10"},{"$f":"\"Вожега п, Заводская ул, д.10\"","v":"Вожега п, Заводская ул, д.10"},"Вожега п, Заводская ул, д.10",{"$f":"\"Вожега п, Заводская ул, д.10\"","v":"Вожега п, Заводская ул, д.10"},null,null,null,null,null,null,null,{"$f":"\"Вожега п, Заводская ул, д.10\"","v":"Вожега п, Заводская ул, д.10"},null,null,null,null,null,null,null,null,null,null,null,null,null,null,null,null,"Вожега рп, Заводская ул, д. 10",null,null,null,null,"Вожега рп, Заводская ул, д. 10",null,null,null,null,null,null,null,null,null,null,"Вожега рп, Заводская ул, д. 10",null,null,null,null,null,null,"Вожега рп, Заводская ул, д. 10",null,null,null,null,null,"Вожега рп, Заводская ул, д. 10",null,null,null,null,null,null,null,null,"Вожега рп, Заводская ул, д. 10",null,null,null,null,null,"Вожега рп, Заводская ул, д. 10",null,null,null,null,null,null,null,"Вожега рп, Заводская ул, д. 10",null,null,null,null,null,null,"Вожега рп, Заводская ул, д. 10",null,null,null,null,null,null,null,null,"Вожега рп, Заводская ул, д. 10",null,null,null,null,null,null,null,null,null,null,null,null,null,null,null,null,null,null,null,null,null,null,null,null,null,null,null,null,null,null,null,null,null,null,null,null,null,null,null,"Общий счет РО+192,50","Признан аварийным. Постановление 1221 от 29.12.2023","Исключен 05.03.2024"]
["Вожега п, Заводская ул, д.11",{"$f":"\"Вожега п, Заводская ул, д.11\"","v":"Вожега п, Заводская ул, д.11"},{"$f":"\"Вожега п, Заводская ул, д.11\"","v":"Вожега п, Заводская ул, д.11"},{"$f":"\"Вожега п, Заводская ул, д.11\"","v":"Вожега п, Заводская ул, д.11"},"Вожега п, Заводская ул, д.11",{"$f":"\"Вожега п, Заводская ул, д.11\"","v":"Вожега п, Заводская ул, д.11"},null,null,null,null,null,null,null,{"$f":"\"Вожега п, Заводская ул, д.11\"","v":"Вожега п, Заводская ул, д.11"},null,null,null,null,null,null,null,null,null,null,null,null,null,null,null,null,null,null,null,null,null,null,null,null,null,null,null,null,null,null,null,null,null,null,null,null,null,null,null,null,null,null,null,null,null,null,null,null,null,null,null,null,null,null,null,null,null,null,null,null,null,null,null,null,null,null,null,null,null,null,null,null,null,null,null,null,null,null,null,null,null,null,null,null,null,null,null,null,null,null,null,null,null,null,null,null,null,null,null,null,null,null,null,null,null,null,null,null,null,null,null,null,null,null,null,null,null,null,null,null,null,null,null,null,"Общий счет РО 327,60","признан аварийным. Заключение № 05 от 09.02.2018","Исключен 30.11.2018"]
["Вожега п, Заводская ул, д.12",{"$f":"\"Вожега п, Заводская ул, д.12\"","v":"Вожега п, Заводская ул, д.12"},{"$f":"\"Вожега п, Заводская ул, д.12\"","v":"Вожега п, Заводская ул, д.12"},{"$f":"\"Вожега п, Заводская ул, д.12\"","v":"Вожега п, Заводская ул, д.12"},"Вожега п, Заводская ул, д.12",{"$f":"\"Вожега п, Заводская ул, д.12\"","v":"Вожега п, Заводская ул, д.12"},null,null,null,null,null,null,null,null,null,null,null,null,null,null,null,null,null,null,null,null,null,null,null,null,null,null,null,null,null,null,null,null,null,null,null,null,null,null,null,null,null,null,null,null,null,null,null,null,null,null,null,null,null,null,null,null,null,null,null,null,null,null,null,null,null,null,null,null,null,null,null,null,null,null,null,null,null,null,null,null,null,null,null,null,null,null,null,null,null,null,null,null,null,null,null,null,null,null,null,null,null,null,null,null,null,null,null,null,null,null,null,null,null,null,null,null,null,null,null,null,null,null,null,null,null,null,null,null,null,null,null,null,"Общий счет РО 339,00","аварийный с 21.12.2016 постановление № 299","Исключен 10.07.2017"]
[null,null,null,null,null,null,null,null,null,null,null,null,null,{"$f":"\"Вожега п, Заводская ул, д.13\"","v":"Вожега п, Заводская ул, д.13"},null,null,null,null,null,null,null,null,null,null,null,null,null,null,null,null,"Вожега рп, Заводская ул, д. 13",null,null,null,null,"Вожега рп, Заводская ул, д. 13",null,null,null,null,null,null,null,null,null,null,"Вожега рп, Заводская ул, д. 13",null,null,null,null,null,null,"Вожега рп, Заводская ул, д. 13",null,null,null,null,null,"Вожега рп, Заводская ул, д. 13",null,null,null,null,null,null,null,null,"Вожега рп, Заводская ул, д. 13",null,null,null,null,null,"Вожега рп, Заводская ул, д. 13",null,null,null,null,null,null,null,"Вожега рп, Заводская ул, д. 13",null,null,null,null,null,null,"Вожега рп, Заводская ул, д. 13",null,null,null,null,null,null,null,null,"Вожега рп, Заводская ул, д. 13",null,null,null,null,"Вожега рп, Заводская ул, д. 13",null,null,null,null,null,null,null,null,"Вожега рп, Заводская ул, д. 13",null,null,null,null,"Вожега рп, Заводская ул, д. 13",null,null,null,null,"Вожега рп, Заводская ул, д. 13",null,null,"Вожега рп, Заводская ул, д. 13",null,null,null,null,null,null,null,null,null,null,null,null,"Общий счет РО+"]
[null,null,null,null,null,null,null,null,null,null,null,null,null,null,null,null,null,null,null,null,null,null,null,null,null,null,null,null,null,null,null,null,null,null,null,null,null,null,null,null,null,null,null,null,null,null,null,null,null,null,null,null,null,null,null,null,null,null,null,null,null,null,null,null,null,null,null,null,null,null,null,null,null,null,null,null,null,null,null,null,null,null,null,null,null,null,null,null,null,null,null,null,null,null,null,null,null,null,null,null,null,null,null,null,null,null,null,null,null,null,null,null,null,null,null,null,null,null,null,null,null,null,"Вожега рп, Заводская ул, д. 14",null,null,"Вожега рп, Заводская ул, д. 14",null,null,null,null,null,null,null,null,null,null,null,null,null,"Обязанность с 01.10.2026"]
["Вожега п, Заводская ул, д.15",{"$f":"\"Вожега п, Заводская ул, д.15\"","v":"Вожега п, Заводская ул, д.15"},{"$f":"\"Вожега п, Заводская ул, д.15\"","v":"Вожега п, Заводская ул, д.15"},{"$f":"\"Вожега п, Заводская ул, д.15\"","v":"Вожега п, Заводская ул, д.15"},"Вожега п, Заводская ул, д.15",{"$f":"\"Вожега п, Заводская ул, д.15\"","v":"Вожега п, Заводская ул, д.15"},null,null,null,null,null,null,null,null,null,null,null,null,null,null,null,null,null,null,null,null,null,null,null,null,null,null,null,null,null,null,null,null,null,null,null,null,null,null,null,null,null,null,null,null,null,null,null,null,null,null,null,null,null,null,null,null,null,null,null,null,null,null,null,null,null,null,null,null,null,null,null,null,null,null,null,null,null,null,null,null,null,null,null,null,null,null,null,null,null,null,null,null,null,null,null,null,null,null,null,null,null,null,null,null,null,null,null,null,null,null,null,null,null,null,null,null,null,null,null,null,null,null,null,null,null,null,null,null,null,null,null,null,"Общий счет РО 248,20","аварийный с 21.12.2016 постановление № 300","Исключен 10.07.2017"]
["Вожега п, Заводская ул, д.16",{"$f":"\"Вожега п, Заводская ул, д.16\"","v":"Вожега п, Заводская ул, д.16"},{"$f":"\"Вожега п, Заводская ул, д.16\"","v":"Вожега п, Заводская ул, д.16"},{"$f":"\"Вожега п, Заводская ул, д.16\"","v":"Вожега п, Заводская ул, д.16"},"Вожега п, Заводская ул, д.16",{"$f":"\"Вожега п, Заводская ул, д.16\"","v":"Вожега п, Заводская ул, д.16"},null,null,null,null,null,null,null,{"$f":"\"Вожега п, Заводская ул, д.16\"","v":"Вожега п, Заводская ул, д.16"},null,null,null,null,null,null,null,null,null,null,null,null,null,null,null,null,"Вожега рп, Заводская ул, д. 16",null,null,null,null,"Вожега рп, Заводская ул, д. 16",null,null,null,null,null,null,null,null,null,null,"Вожега рп, Заводская ул, д. 16",null,null,null,null,null,null,"Вожега рп, Заводская ул, д. 16",null,null,null,null,null,"Вожега рп, Заводская ул, д. 16",null,null,null,null,null,null,null,null,null,null,null,null,null,null,null,null,null,null,null,null,null,null,null,null,null,null,null,null,null,null,null,null,null,null,null,null,null,null,null,null,null,null,null,null,null,null,null,null,null,null,null,null,null,null,null,null,null,null,null,null,null,null,null,null,null,null,null,null,null,null,null,null,null,null,null,null,null,null,"Общий счет РО - 257,80","Признан аварийным. Заключение № 3 от 17.05.2017","Исключен 06.09.2021"]
["Вожега п, Заводская ул, д.17",{"$f":"\"Вожега п, Заводская ул, д.17\"","v":"Вожега п, Заводская ул, д.17"},{"$f":"\"Вожега п, Заводская ул, д.17\"","v":"Вожега п, Заводская ул, д.17"},{"$f":"\"Вожега п, Заводская ул, д.17\"","v":"Вожега п, Заводская ул, д.17"},"Вожега п, Заводская ул, д.17",{"$f":"\"Вожега п, Заводская ул, д.17\"","v":"Вожега п, Заводская ул, д.17"},null,null,null,null,null,null,null,null,null,null,null,null,null,null,null,null,null,null,null,null,null,null,null,null,null,null,null,null,null,null,null,null,null,null,null,null,null,null,null,null,null,null,null,null,null,null,null,null,null,null,null,null,null,null,null,null,null,null,null,null,null,null,null,null,null,null,null,null,null,null,null,null,null,null,null,null,null,null,null,null,null,null,null,null,null,null,null,null,null,null,null,null,null,null,null,null,null,null,null,null,null,null,null,null,null,null,null,null,null,null,null,null,null,null,null,null,null,null,null,null,null,null,null,null,null,null,null,null,null,null,null,null,"Общий счет РО 335,70","аварийный с 21.12.2016 постановление № 326","Исключен 10.07.2017"]
["Вожега п, Заводская ул, д.18",{"$f":"\"Вожега п, Заводская ул, д.18\"","v":"Вожега п, Заводская ул, д.18"},{"$f":"\"Вожега п, Заводская ул, д.18\"","v":"Вожега п, Заводская ул, д.18"},{"$f":"\"Вожега п, Заводская ул, д.18\"","v":"Вожега п, Заводская ул, д.18"},"Вожега п, Заводская ул, д.18",{"$f":"\"Вожега п, Заводская ул, д.18\"","v":"Вожега п, Заводская ул, д.18"},null,null,null,null,null,null,null,{"$f":"\"Вожега п, Заводская ул, д.18\"","v":"Вожега п, Заводская ул, д.18"},null,null,null,null,null,null,null,null,null,null,null,null,null,null,null,null,null,null,null,null,null,null,null,null,null,null,null,null,null,null,null,null,null,null,null,null,null,null,null,null,null,null,null,null,null,null,null,null,null,null,null,null,null,null,null,null,null,null,null,null,null,null,null,null,null,null,null,null,null,null,null,null,null,null,null,null,null,null,null,null,null,null,null,null,null,null,null,null,null,null,null,null,null,null,null,null,null,null,null,null,null,null,null,null,null,null,null,null,null,null,null,null,null,null,null,null,null,null,null,null,null,null,null,null,"Общий счет РО 320,60","признан аварийным. Заключение № 04 от 09.02.2018","Исключен 30.11.2018"]
["Вожега п, Заречная ул, д.40",{"$f":"\"Вожега п, Заречная ул, д.40\"","v":"Вожега п, Заречная ул, д.40"},{"$f":"\"Вожега п, Заречная ул, д.40\"","v":"Вожега п, Заречная ул, д.40"},{"$f":"\"Вожега п, Заречная ул, д.40\"","v":"Вожега п, Заречная ул, д.40"},"Вожега п, Заречная ул, д.40",{"$f":"\"Вожега п, Заречная ул, д.40\"","v":"Вожега п, Заречная ул, д.40"},null,null,null,null,null,null,null,{"$f":"\"Вожега п, Заречная ул, д.40\"","v":"Вожега п, Заречная ул, д.40"},null,null,null,null,null,null,null,null,null,null,null,null,null,null,null,null,"Вожега рп, Заречная ул, д. 40",null,null,null,null,"Вожега рп, Заречная ул, д. 40",null,null,null,null,null,null,null,null,null,null,"Вожега рп, Заречная ул, д. 40",null,null,null,null,null,null,"Вожега рп, Заречная ул, д. 40",null,null,null,null,null,"Вожега рп, Заречная ул, д. 40",null,null,null,null,null,null,null,null,"Вожега рп, Заречная ул, д. 40",null,null,null,null,null,"Вожега рп, Заречная ул, д. 40",null,null,null,null,null,null,null,"Вожега рп, Заречная ул, д. 40",null,null,null,null,null,null,"Вожега рп, Заречная ул, д. 40",null,null,null,null,null,null,null,null,null,null,null,null,null,null,null,null,null,null,null,null,null,null,null,null,null,null,null,null,null,null,null,null,null,null,null,null,null,null,null,null,null,null,null,null,null,null,null,null,"Общий счет РО 752,00","Признан аварийным. Заключение 8/2023 от 19.09.2023","Исключен 30.10.2023"]
["Вожега п, Кооперативная ул, д.15",{"$f":"\"Вожега п, Кооперативная ул, д.15\"","v":"Вожега п, Кооперативная ул, д.15"},{"$f":"\"Вожега п, Кооперативная ул, д.15\"","v":"Вожега п, Кооперативная ул, д.15"},{"$f":"\"Вожега п, Кооперативная ул, д.15\"","v":"Вожега п, Кооперативная ул, д.15"},"Вожега п, Кооперативная ул, д.15",{"$f":"\"Вожега п, Кооперативная ул, д.15\"","v":"Вожега п, Кооперативная ул, д.15"},null,null,null,null,null,null,null,{"$f":"\"Вожега п, Кооперативная ул, д.15\"","v":"Вожега п, Кооперативная ул, д.15"},null,null,null,null,null,null,null,null,null,null,null,null,null,null,null,null,"Вожега рп, Кооперативная ул, д. 15",null,null,null,null,"Вожега рп, Кооперативная ул, д. 15",null,null,null,null,null,null,null,null,null,null,null,null,null,null,null,null,null,null,null,null,null,null,null,null,null,null,null,null,null,null,null,null,null,null,null,null,null,null,null,null,null,null,null,null,null,null,null,null,null,null,null,null,null,null,null,null,null,null,null,null,null,null,null,null,null,null,null,null,null,null,null,null,null,null,null,null,null,null,null,null,null,null,null,null,null,null,null,null,null,null,null,null,null,null,null,null,null,null,null,null,null,null,"Общий счет РО - 289,10",null,"Исключен 20.01.2020"]
["Вожега п, Кузнецова ул, д.7А",{"$f":"\"Вожега п, Кузнецова ул, д.7А\"","v":"Вожега п, Кузнецова ул, д.7А"},{"$f":"\"Вожега п, Кузнецова ул, д.7А\"","v":"Вожега п, Кузнецова ул, д.7А"},{"$f":"\"Вожега п, Кузнецова ул, д.7А\"","v":"Вожега п, Кузнецова ул, д.7А"},"Вожега п, Кузнецова ул, д.7А",{"$f":"\"Вожега п, Кузнецова ул, д.7А\"","v":"Вожега п, Кузнецова ул, д.7А"},null,null,null,null,null,null,null,{"$f":"\"Вожега п, Кузнецова ул, д.7А\"","v":"Вожега п, Кузнецова ул, д.7А"},null,null,null,null,null,null,null,null,null,null,null,null,null,null,null,null,"Вожега рп, Кузнецова ул, д. 7А",null,null,null,null,"Вожега рп, Кузнецова ул, д. 7А",null,null,null,null,null,null,null,null,null,null,"Вожега рп, Кузнецова ул, д. 7А",null,null,null,null,null,null,"Вожега рп, Кузнецова ул, д. 7А",null,null,null,null,null,"Вожега рп, Кузнецова ул, д. 7А",null,null,null,null,null,null,null,null,"Вожега рп, Кузнецова ул, д. 7А",null,null,null,null,null,"Вожега рп, Кузнецова ул, д. 7А",null,null,null,null,null,null,null,"Вожега рп, Кузнецова ул, д. 7А",null,null,null,null,null,null,"Вожега рп, Кузнецова ул, д. 7А",null,null,null,null,null,null,null,null,"Вожега рп, Кузнецова ул, д. 7А",null,null,null,null,"Вожега рп, Кузнецова ул, д. 7А",null,null,null,null,null,null,null,null,"Вожега рп, Кузнецова ул, д. 7А",null,null,null,null,"Вожега рп, Кузнецова ул, д. 7А",null,null,null,null,"Вожега рп, Кузнецова ул, д. 7А",null,null,"Вожега рп, Кузнецова ул, д. 7А",null,null,null,null,null,null,null,null,null,null,null,null,"Общий счет РО+"]
["Вожега п, Кузнецова ул, д.7Б",{"$f":"\"Вожега п, Кузнецова ул, д.7Б\"","v":"Вожега п, Кузнецова ул, д.7Б"},{"$f":"\"Вожега п, Кузнецова ул, д.7Б\"","v":"Вожега п, Кузнецова ул, д.7Б"},{"$f":"\"Вожега п, Кузнецова ул, д.7Б\"","v":"Вожега п, Кузнецова ул, д.7Б"},"Вожега п, Кузнецова ул, д.7Б",{"$f":"\"Вожега п, Кузнецова ул, д.7Б\"","v":"Вожега п, Кузнецова ул, д.7Б"},null,null,null,null,null,null,null,{"$f":"\"Вожега п, Кузнецова ул, д.7Б\"","v":"Вожега п, Кузнецова ул, д.7Б"},null,null,null,null,null,null,null,null,null,null,null,null,null,null,null,null,"Вожега рп, Кузнецова ул, д. 7Б",null,null,null,null,"Вожега рп, Кузнецова ул, д. 7Б",null,null,null,null,null,null,null,null,null,null,"Вожега рп, Кузнецова ул, д. 7Б",null,null,null,null,null,null,"Вожега рп, Кузнецова ул, д. 7Б",null,null,null,null,null,"Вожега рп, Кузнецова ул, д. 7Б",null,null,null,null,null,null,null,null,"Вожега рп, Кузнецова ул, д. 7Б",null,null,null,null,null,"Вожега рп, Кузнецова ул, д. 7Б",null,null,null,null,null,null,null,"Вожега рп, Кузнецова ул, д. 7Б",null,null,null,null,null,null,"Вожега рп, Кузнецова ул, д. 7Б",null,null,null,null,null,null,null,null,"Вожега рп, Кузнецова ул, д. 7Б",null,null,null,null,"Вожега рп, Кузнецова ул, д. 7Б",null,null,null,null,null,null,null,null,"Вожега рп, Кузнецова ул, д. 7Б",null,null,null,null,"Вожега рп, Кузнецова ул, д. 7Б",null,null,null,null,"Вожега рп, Кузнецова ул, д. 7Б",null,null,"Вожега рп, Кузнецова ул, д. 7Б",null,null,null,null,null,null,null,null,null,null,null,null,"Общий счет РО+"]
["Вожега п, Кузнецова ул, д.10",{"$f":"\"Вожега п, Кузнецова ул, д.10\"","v":"Вожега п, Кузнецова ул, д.10"},{"$f":"\"Вожега п, Кузнецова ул, д.10\"","v":"Вожега п, Кузнецова ул, д.10"},{"$f":"\"Вожега п, Кузнецова ул, д.10\"","v":"Вожега п, Кузнецова ул, д.10"},"Вожега п, Кузнецова ул, д.10",{"$f":"\"Вожега п, Кузнецова ул, д.10\"","v":"Вожега п, Кузнецова ул, д.10"},null,null,null,null,null,null,null,{"$f":"\"Вожега п, Кузнецова ул, д.10\"","v":"Вожега п, Кузнецова ул, д.10"},null,null,null,null,null,null,null,null,null,null,null,null,null,null,null,null,"Вожега рп, Кузнецова ул, д. 10",null,null,null,null,"Вожега рп, Кузнецова ул, д. 10",null,null,null,null,null,null,null,null,null,null,"Вожега рп, Кузнецова ул, д. 10",null,null,null,null,null,null,"Вожега рп, Кузнецова ул, д. 10",null,null,null,null,null,"Вожега рп, Кузнецова ул, д. 10",null,null,null,null,null,null,null,null,"Вожега рп, Кузнецова ул, д. 10",null,null,null,null,null,"Вожега рп, Кузнецова ул, д. 10",null,null,null,null,null,null,null,"Вожега рп, Кузнецова ул, д. 10",null,null,null,null,null,null,"Вожега рп, Кузнецова ул, д. 10",null,null,null,null,null,null,null,null,"Вожега рп, Кузнецова ул, д. 10",null,null,null,null,"Вожега рп, Кузнецова ул, д. 10",null,null,null,null,null,null,null,null,"Вожега рп, Кузнецова ул, д. 10",null,null,null,null,"Вожега рп, Кузнецова ул, д. 10",null,null,null,null,"Вожега рп, Кузнецова ул, д. 10",null,null,"Вожега рп, Кузнецова ул, д. 10",null,null,null,null,null,null,null,null,null,null,null,null,"Общий счет РО+"]
["Вожега п, Кузнецова ул, д.12",{"$f":"\"Вожега п, Кузнецова ул, д.12\"","v":"Вожега п, Кузнецова ул, д.12"},{"$f":"\"Вожега п, Кузнецова ул, д.12\"","v":"Вожега п, Кузнецова ул, д.12"},{"$f":"\"Вожега п, Кузнецова ул, д.12\"","v":"Вожега п, Кузнецова ул, д.12"},"Вожега п, Кузнецова ул, д.12",{"$f":"\"Вожега п, Кузнецова ул, д.12\"","v":"Вожега п, Кузнецова ул, д.12"},null,null,null,null,null,null,null,{"$f":"\"Вожега п, Кузнецова ул, д.12\"","v":"Вожега п, Кузнецова ул, д.12"},null,null,null,null,null,null,null,null,null,null,null,null,null,null,null,null,"Вожега рп, Кузнецова ул, д. 12",null,null,null,null,"Вожега рп, Кузнецова ул, д. 12",null,null,null,null,null,null,null,null,null,null,"Вожега рп, Кузнецова ул, д. 12",null,null,null,null,null,null,"Вожега рп, Кузнецова ул, д. 12",null,null,null,null,null,"Вожега рп, Кузнецова ул, д. 12",null,null,null,null,null,null,null,null,"Вожега рп, Кузнецова ул, д. 12",null,null,null,null,null,"Вожега рп, Кузнецова ул, д. 12",null,null,null,null,null,null,null,"Вожега рп, Кузнецова ул, д. 12",null,null,null,null,null,null,"Вожега рп, Кузнецова ул, д. 12",null,null,null,null,null,null,null,null,"Вожега рп, Кузнецова ул, д. 12",null,null,null,null,"Вожега рп, Кузнецова ул, д. 12",null,null,null,null,null,null,null,null,"Вожега рп, Кузнецова ул, д. 12",null,null,null,null,"Вожега рп, Кузнецова ул, д. 12",null,null,null,null,"Вожега рп, Кузнецова ул, д. 12",null,null,"Вожега рп, Кузнецова ул, д. 12",null,null,null,null,null,null,null,null,null,null,null,null,"Общий счет РО+"]
["Вожега п, Кузнецова ул, д.20",{"$f":"\"Вожега п, Кузнецова ул, д.20\"","v":"Вожега п, Кузнецова ул, д.20"},{"$f":"\"Вожега п, Кузнецова ул, д.20\"","v":"Вожега п, Кузнецова ул, д.20"},{"$f":"\"Вожега п, Кузнецова ул, д.20\"","v":"Вожега п, Кузнецова ул, д.20"},"Вожега п, Кузнецова ул, д.20",{"$f":"\"Вожега п, Кузнецова ул, д.20\"","v":"Вожега п, Кузнецова ул, д.20"},null,null,null,null,null,null,null,{"$f":"\"Вожега п, Кузнецова ул, д.20\"","v":"Вожега п, Кузнецова ул, д.20"},null,null,null,null,null,null,null,null,null,null,null,null,null,null,null,null,"Вожега рп, Кузнецова ул, д. 20",null,null,null,null,null,null,null,null,null,null,null,null,null,null,null,null,null,null,null,null,null,null,null,null,null,null,null,null,null,null,null,null,null,null,null,null,null,null,null,null,null,null,null,null,null,null,null,null,null,null,null,null,null,null,null,null,null,null,null,null,null,null,null,null,null,null,null,null,null,null,null,null,null,null,null,null,null,null,null,null,null,null,null,null,null,null,null,null,null,null,null,null,null,null,null,null,null,null,null,null,null,null,null,null,null,null,null,"Общий счет РО - 103,00","Дом 4-х квартирный","Исключен 01.04.2019"]
["Вожега п, Кузнецова ул, д.25",{"$f":"\"Вожега п, Кузнецова ул, д.25\"","v":"Вожега п, Кузнецова ул, д.25"},{"$f":"\"Вожега п, Кузнецова ул, д.25\"","v":"Вожега п, Кузнецова ул, д.25"},{"$f":"\"Вожега п, Кузнецова ул, д.25\"","v":"Вожега п, Кузнецова ул, д.25"},"Вожега п, Кузнецова ул, д.25",{"$f":"\"Вожега п, Кузнецова ул, д.25\"","v":"Вожега п, Кузнецова ул, д.25"},null,null,null,null,null,null,null,{"$f":"\"Вожега п, Кузнецова ул, д.25\"","v":"Вожега п, Кузнецова ул, д.25"},null,null,null,null,null,null,null,null,null,null,null,null,null,null,null,null,"Вожега рп, Кузнецова ул, д. 25",null,null,null,null,"Вожега рп, Кузнецова ул, д. 25",null,null,null,null,null,null,null,null,null,null,"Вожега рп, Кузнецова ул, д. 25",null,null,null,null,null,null,"Вожега рп, Кузнецова ул, д. 25",null,null,null,null,null,"Вожега рп, Кузнецова ул, д. 25",null,null,null,null,null,null,null,null,"Вожега рп, Кузнецова ул, д. 25",null,null,null,null,null,"Вожега рп, Кузнецова ул, д. 25",null,null,null,null,null,null,null,"Вожега рп, Кузнецова ул, д. 25",null,null,null,null,null,null,"Вожега рп, Кузнецова ул, д. 25",null,null,null,null,null,null,null,null,"Вожега рп, Кузнецова ул, д. 25",null,null,null,null,"Вожега рп, Кузнецова ул, д. 25",null,null,null,null,null,null,null,null,"Вожега рп, Кузнецова ул, д. 25",null,null,null,null,"Вожега рп, Кузнецова ул, д. 25",null,null,null,null,null,null,null,null,null,null,null,null,null,null,null,null,null,null,null,null,"Общий счет РО+205,9","Признан аварийным. Постановление 832 от 18.08.2025","Исключен 18.09.2025"]
["Вожега п, Луева ул, д.2",{"$f":"\"Вожега п, Луева ул, д.2\"","v":"Вожега п, Луева ул, д.2"},{"$f":"\"Вожега п, Луева ул, д.2\"","v":"Вожега п, Луева ул, д.2"},{"$f":"\"Вожега п, Луева ул, д.2\"","v":"Вожега п, Луева ул, д.2"},"Вожега п, Луева ул, д.2",{"$f":"\"Вожега п, Луева ул, д.2\"","v":"Вожега п, Луева ул, д.2"},null,null,null,null,null,null,null,{"$f":"\"Вожега п, Луева ул, д.2\"","v":"Вожега п, Луева ул, д.2"},null,null,null,null,null,null,null,null,null,null,null,null,null,null,null,null,"Вожега рп, Луева ул, д. 2",null,null,null,null,null,null,null,null,null,null,null,null,null,null,null,null,null,null,null,null,null,null,null,null,null,null,null,null,null,null,null,null,null,null,null,null,null,null,null,null,null,null,null,null,null,null,null,null,null,null,null,null,null,null,null,null,null,null,null,null,null,null,null,null,null,null,null,null,null,null,null,null,null,null,null,null,null,null,null,null,null,null,null,null,null,null,null,null,null,null,null,null,null,null,null,null,null,null,null,null,null,null,null,null,null,null,null,"Общий счет РО - 280,90","Дом 4-х квартирный","Исключен 01.04.2019"]
["Вожега п, Луева ул, д.3В",{"$f":"\"Вожега п, Луева ул, д.3В\"","v":"Вожега п, Луева ул, д.3В"},{"$f":"\"Вожега п, Луева ул, д.3В\"","v":"Вожега п, Луева ул, д.3В"},{"$f":"\"Вожега п, Луева ул, д.3В\"","v":"Вожега п, Луева ул, д.3В"},"Вожега п, Луева ул, д.3В",{"$f":"\"Вожега п, Луева ул, д.3В\"","v":"Вожега п, Луева ул, д.3В"},null,null,null,null,null,null,null,{"$f":"\"Вожега п, Луева ул, д.3В\"","v":"Вожега п, Луева ул, д.3В"},null,null,null,null,null,null,null,null,null,null,null,null,null,null,null,null,"Вожега рп, Луева ул, д. 3В",null,null,null,null,"Вожега рп, Луева ул, д. 3В",null,null,null,null,null,null,null,null,null,null,"Вожега рп, Луева ул, д. 3В",null,null,null,null,null,null,"Вожега рп, Луева ул, д. 3В",null,null,null,null,null,"Вожега рп, Луева ул, д. 3В",null,null,null,null,null,null,null,null,"Вожега рп, Луева ул, д. 3В",null,null,null,null,null,"Вожега рп, Луева ул, д. 3В",null,null,null,null,null,null,null,"Вожега рп, Луева ул, д. 3В",null,null,null,null,null,null,"Вожега рп, Луева ул, д. 3В",null,null,null,null,null,null,null,null,"Вожега рп, Луева ул, д. 3В",null,null,null,null,"Вожега рп, Луева ул, д. 3В",null,null,null,null,null,null,null,null,"Вожега рп, Луева ул, д. 3В",null,null,null,null,"Вожега рп, Луева ул, д. 3В",null,null,null,null,"Вожега рп, Луева ул, д. 3В",null,null,"Вожега рп, Луева ул, д. 3В",null,null,null,null,null,null,null,null,null,null,null,null,"Общий счет РО+"]
["Вожега п, Луева ул, д.5А",{"$f":"\"Вожега п, Луева ул, д.5А\"","v":"Вожега п, Луева ул, д.5А"},{"$f":"\"Вожега п, Луева ул, д.5А\"","v":"Вожега п, Луева ул, д.5А"},{"$f":"\"Вожега п, Луева ул, д.5А\"","v":"Вожега п, Луева ул, д.5А"},"Вожега п, Луева ул, д.5А",{"$f":"\"Вожега п, Луева ул, д.5А\"","v":"Вожега п, Луева ул, д.5А"},null,null,null,null,null,null,null,{"$f":"\"Вожега п, Луева ул, д.5А\"","v":"Вожега п, Луева ул, д.5А"},null,null,null,null,null,null,null,null,null,null,null,null,null,null,null,null,"Вожега рп, Луева ул, д. 5А",null,null,null,null,"Вожега рп, Луева ул, д. 5А",null,null,null,null,null,null,null,null,null,null,"Вожега рп, Луева ул, д. 5А",null,null,null,null,null,null,"Вожега рп, Луева ул, д. 5А",null,null,null,null,null,"Вожега рп, Луева ул, д. 5А",null,null,null,null,null,null,null,null,"Вожега рп, Луева ул, д. 5А",null,null,null,null,null,"Вожега рп, Луева ул, д. 5А",null,null,null,null,null,null,null,"Вожега рп, Луева ул, д. 5А",null,null,null,null,null,null,"Вожега рп, Луева ул, д. 5А",null,null,null,null,null,null,null,null,"Вожега рп, Луева ул, д. 5А",null,null,null,null,"Вожега рп, Луева ул, д. 5А",null,null,null,null,null,null,null,null,"Вожега рп, Луева ул, д. 5А",null,null,null,null,"Вожега рп, Луева ул, д. 5А",null,null,null,null,"Вожега рп, Луева ул, д. 5А",null,null,"Вожега рп, Луева ул, д. 5А",null,null,null,null,null,null,null,null,null,null,null,null,"Общий счет РО+"]
["Вожега п, Мелиораторов ул, д.1",{"$f":"\"Вожега п, Мелиораторов ул, д.1\"","v":"Вожега п, Мелиораторов ул, д.1"},{"$f":"\"Вожега п, Мелиораторов ул, д.1\"","v":"Вожега п, Мелиораторов ул, д.1"},{"$f":"\"Вожега п, Мелиораторов ул, д.1\"","v":"Вожега п, Мелиораторов ул, д.1"},"Вожега п, Мелиораторов ул, д.1",{"$f":"\"Вожега п, Мелиораторов ул, д.1\"","v":"Вожега п, Мелиораторов ул, д.1"},null,null,null,null,null,null,null,{"$f":"\"Вожега п, Мелиораторов ул, д.1\"","v":"Вожега п, Мелиораторов ул, д.1"},null,null,null,null,null,null,null,null,null,null,null,null,null,null,null,null,"Вожега рп, Мелиораторов ул, д. 1",null,null,null,null,null,null,null,null,null,null,null,null,null,null,null,null,null,null,null,null,null,null,null,null,null,null,null,null,null,null,null,null,null,null,null,null,null,null,null,null,null,null,null,null,null,null,null,null,null,null,null,null,null,null,null,null,null,null,null,null,null,null,null,null,null,null,null,null,null,null,null,null,null,null,null,null,null,null,null,null,null,null,null,null,null,null,null,null,null,null,null,null,null,null,null,null,null,null,null,null,null,null,null,null,null,null,null,"Общий счет РО - 253,20","Дом 4-х квартирный","Исключен 01.04.2019"]
["Вожега п, Мелиораторов ул, д.2",{"$f":"\"Вожега п, Мелиораторов ул, д.2\"","v":"Вожега п, Мелиораторов ул, д.2"},{"$f":"\"Вожега п, Мелиораторов ул, д.2\"","v":"Вожега п, Мелиораторов ул, д.2"},{"$f":"\"Вожега п, Мелиораторов ул, д.2\"","v":"Вожега п, Мелиораторов ул, д.2"},"Вожега п, Мелиораторов ул, д.2",{"$f":"\"Вожега п, Мелиораторов ул, д.2\"","v":"Вожега п, Мелиораторов ул, д.2"},null,null,null,null,null,null,null,{"$f":"\"Вожега п, Мелиораторов ул, д.2\"","v":"Вожега п, Мелиораторов ул, д.2"},null,null,null,null,null,null,null,null,null,null,null,null,null,null,null,null,"Вожега рп, Мелиораторов ул, д. 2",null,null,null,null,null,null,null,null,null,null,null,null,null,null,null,null,null,null,null,null,null,null,null,null,null,null,null,null,null,null,null,null,null,null,null,null,null,null,null,null,null,null,null,null,null,null,null,null,null,null,null,null,null,null,null,null,null,null,null,null,null,null,null,null,null,null,null,null,null,null,null,null,null,null,null,null,null,null,null,null,null,null,null,null,null,null,null,null,null,null,null,null,null,null,null,null,null,null,null,null,null,null,null,null,null,null,null,"Общий счет РО - 264,30","Дом 4-х квартирный","Исключен 01.04.2019"]
["Вожега п, Мелиораторов ул, д.3",{"$f":"\"Вожега п, Мелиораторов ул, д.3\"","v":"Вожега п, Мелиораторов ул, д.3"},{"$f":"\"Вожега п, Мелиораторов ул, д.3\"","v":"Вожега п, Мелиораторов ул, д.3"},{"$f":"\"Вожега п, Мелиораторов ул, д.3\"","v":"Вожега п, Мелиораторов ул, д.3"},"Вожега п, Мелиораторов ул, д.3",{"$f":"\"Вожега п, Мелиораторов ул, д.3\"","v":"Вожега п, Мелиораторов ул, д.3"},null,null,null,null,null,null,null,{"$f":"\"Вожега п, Мелиораторов ул, д.3\"","v":"Вожега п, Мелиораторов ул, д.3"},null,null,null,null,null,null,null,null,null,null,null,null,null,null,null,null,"Вожега рп, Мелиораторов ул, д. 3",null,null,null,null,null,null,null,null,null,null,null,null,null,null,null,null,null,null,null,null,null,null,null,null,null,null,null,null,null,null,null,null,null,null,null,null,null,null,null,null,null,null,null,null,null,null,null,null,null,null,null,null,null,null,null,null,null,null,null,null,null,null,null,null,null,null,null,null,null,null,null,null,null,null,null,null,null,null,null,null,null,null,null,null,null,null,null,null,null,null,null,null,null,null,null,null,null,null,null,null,null,null,null,null,null,null,null,"Общий счет РО - 267,30","Дом 4-х квартирный","Исключен 01.04.2019"]
["Вожега п, Мира ул, д.2",{"$f":"\"Вожега п, Мира ул, д.2\"","v":"Вожега п, Мира ул, д.2"},{"$f":"\"Вожега п, Мира ул, д.2\"","v":"Вожега п, Мира ул, д.2"},{"$f":"\"Вожега п, Мира ул, д.2\"","v":"Вожега п, Мира ул, д.2"},"Вожега п, Мира ул, д.2",{"$f":"\"Вожега п, Мира ул, д.2\"","v":"Вожега п, Мира ул, д.2"},null,null,null,null,null,null,null,{"$f":"\"Вожега п, Мира ул, д.2\"","v":"Вожега п, Мира ул, д.2"},null,null,null,null,null,null,null,null,null,null,null,null,null,null,null,null,"Вожега рп, Мира ул, д. 2",null,null,null,null,"Вожега рп, Мира ул, д. 2",null,null,null,null,null,null,null,null,null,null,"Вожега рп, Мира ул, д. 2",null,null,null,null,null,null,"Вожега рп, Мира ул, д. 2",null,null,null,null,null,"Вожега рп, Мира ул, д. 2",null,null,null,null,null,null,null,null,"Вожега рп, Мира ул, д. 2",null,null,null,null,null,"Вожега рп, Мира ул, д. 2",null,null,null,null,null,null,null,"Вожега рп, Мира ул, д. 2",null,null,null,null,null,null,"Вожега рп, Мира ул, д. 2",null,null,null,null,null,null,null,null,"Вожега рп, Мира ул, д. 2",null,null,null,null,"Вожега рп, Мира ул, д. 2",null,null,null,null,null,null,null,null,"Вожега рп, Мира ул, д. 2",null,null,null,null,"Вожега рп, Мира ул, д. 2",null,null,null,null,"Вожега рп, Мира ул, д. 2",null,null,"Вожега рп, Мира ул, д. 2",null,null,null,null,null,null,null,null,null,null,null,null,"Общий счет РО+"]
[null,{"$f":"\"Вожега п, Мира ул, д.3\"","v":"Вожега п, Мира ул, д.3"},{"$f":"\"Вожега п, Мира ул, д.3\"","v":"Вожега п, Мира ул, д.3"},{"$f":"\"Вожега п, Мира ул, д.3\"","v":"Вожега п, Мира ул, д.3"},"Вожега п, Мира ул, д.3",{"$f":"\"Вожега п, Мира ул, д.3\"","v":"Вожега п, Мира ул, д.3"},null,null,null,null,null,null,null,{"$f":"\"Вожега п, Мира ул, д.3\"","v":"Вожега п, Мира ул, д.3"},null,null,null,null,null,null,null,null,null,null,null,null,null,null,null,null,"Вожега рп, Мира ул, д. 3",null,null,null,null,null,null,null,null,null,null,null,null,null,null,null,null,null,null,null,null,null,null,null,null,null,null,null,null,null,null,null,null,null,null,null,null,null,null,null,null,null,null,null,null,null,null,null,null,null,null,null,null,null,null,null,null,null,null,null,null,null,null,null,null,null,null,null,null,null,null,null,null,null,null,null,null,null,null,null,null,null,null,null,null,null,null,null,null,null,null,null,null,null,null,null,null,null,null,null,null,null,null,null,null,null,null,null,"Общий счет РО - 252,80","Дом 4-х квартирный","Исключен 01.04.2019"]
["Вожега п, Мира ул, д.4",{"$f":"\"Вожега п, Мира ул, д.4\"","v":"Вожега п, Мира ул, д.4"},{"$f":"\"Вожега п, Мира ул, д.4\"","v":"Вожега п, Мира ул, д.4"},{"$f":"\"Вожега п, Мира ул, д.4\"","v":"Вожега п, Мира ул, д.4"},"Вожега п, Мира ул, д.4",{"$f":"\"Вожега п, Мира ул, д.4\"","v":"Вожега п, Мира ул, д.4"},null,null,null,null,null,null,null,{"$f":"\"Вожега п, Мира ул, д.4\"","v":"Вожега п, Мира ул, д.4"},null,null,null,null,null,null,null,null,null,null,null,null,null,null,null,null,"Вожега рп, Мира ул, д. 4",null,null,null,null,"Вожега рп, Мира ул, д. 4",null,null,null,null,null,null,null,null,null,null,"Вожега рп, Мира ул, д. 4",null,null,null,null,null,null,"Вожега рп, Мира ул, д. 4",null,null,null,null,null,"Вожега рп, Мира ул, д. 4",null,null,null,null,null,null,null,null,"Вожега рп, Мира ул, д. 4",null,null,null,null,null,"Вожега рп, Мира ул, д. 4",null,null,null,null,null,null,null,"Вожега рп, Мира ул, д. 4",null,null,null,null,null,null,"Вожега рп, Мира ул, д. 4",null,null,null,null,null,null,null,null,"Вожега рп, Мира ул, д. 4",null,null,null,null,"Вожега рп, Мира ул, д. 4",null,null,null,null,null,null,null,null,"Вожега рп, Мира ул, д. 4",null,null,null,null,"Вожега рп, Мира ул, д. 4",null,null,null,null,"Вожега рп, Мира ул, д. 4",null,null,"Вожега рп, Мира ул, д. 4",null,null,null,null,null,null,null,null,null,null,null,null,"Общий счет РО+"]
["Вожега п, Мира ул, д.5",{"$f":"\"Вожега п, Мира ул, д.5\"","v":"Вожега п, Мира ул, д.5"},{"$f":"\"Вожега п, Мира ул, д.5\"","v":"Вожега п, Мира ул, д.5"},{"$f":"\"Вожега п, Мира ул, д.5\"","v":"Вожега п, Мира ул, д.5"},"Вожега п, Мира ул, д.5",{"$f":"\"Вожега п, Мира ул, д.5\"","v":"Вожега п, Мира ул, д.5"},null,null,null,null,null,null,null,{"$f":"\"Вожега п, Мира ул, д.5\"","v":"Вожега п, Мира ул, д.5"},null,null,null,null,null,null,null,null,null,null,null,null,null,null,null,null,"Вожега рп, Мира ул, д. 5",null,null,null,null,"Вожега рп, Мира ул, д. 5",null,null,null,null,null,null,null,null,null,null,"Вожега рп, Мира ул, д. 5",null,null,null,null,null,null,"Вожега рп, Мира ул, д. 5",null,null,null,null,null,"Вожега рп, Мира ул, д. 5",null,null,null,null,null,null,null,null,"Вожега рп, Мира ул, д. 5",null,null,null,null,null,"Вожега рп, Мира ул, д. 5",null,null,null,null,null,null,null,"Вожега рп, Мира ул, д. 5",null,null,null,null,null,null,"Вожега рп, Мира ул, д. 5",null,null,null,null,null,null,null,null,"Вожега рп, Мира ул, д. 5",null,null,null,null,"Вожега рп, Мира ул, д. 5",null,null,null,null,null,null,null,null,"Вожега рп, Мира ул, д. 5",null,null,null,null,"Вожега рп, Мира ул, д. 5",null,null,null,null,null,null,null,null,null,null,null,null,null,null,null,null,null,null,null,null,"Общий счет РО+450,20","Признан аварийным. Постановление 563 от 02.06.2025","Исключен 18.09.2025"]
["Вожега п, Мира ул, д.6",{"$f":"\"Вожега п, Мира ул, д.6\"","v":"Вожега п, Мира ул, д.6"},{"$f":"\"Вожега п, Мира ул, д.6\"","v":"Вожега п, Мира ул, д.6"},{"$f":"\"Вожега п, Мира ул, д.6\"","v":"Вожега п, Мира ул, д.6"},"Вожега п, Мира ул, д.6",{"$f":"\"Вожега п, Мира ул, д.6\"","v":"Вожега п, Мира ул, д.6"},null,null,null,null,null,null,null,{"$f":"\"Вожега п, Мира ул, д.6\"","v":"Вожега п, Мира ул, д.6"},null,null,null,null,null,null,null,null,null,null,null,null,null,null,null,null,"Вожега рп, Мира ул, д. 6",null,null,null,null,"Вожега рп, Мира ул, д. 6",null,null,null,null,null,null,null,null,null,null,"Вожега рп, Мира ул, д. 6",null,null,null,null,null,null,"Вожега рп, Мира ул, д. 6",null,null,null,null,null,"Вожега рп, Мира ул, д. 6",null,null,null,null,null,null,null,null,"Вожега рп, Мира ул, д. 6",null,null,null,null,null,"Вожега рп, Мира ул, д. 6",null,null,null,null,null,null,null,"Вожега рп, Мира ул, д. 6",null,null,null,null,null,null,"Вожега рп, Мира ул, д. 6",null,null,null,null,null,null,null,null,"Вожега рп, Мира ул, д. 6",null,null,null,null,"Вожега рп, Мира ул, д. 6",null,null,null,null,null,null,null,null,"Вожега рп, Мира ул, д. 6",null,null,null,null,"Вожега рп, Мира ул, д. 6",null,null,null,null,"Вожега рп, Мира ул, д. 6",null,null,"Вожега рп, Мира ул, д. 6",null,null,null,null,null,null,null,null,null,null,null,null,"Общий счет РО+"]
["Вожега п, Мира ул, д.7",{"$f":"\"Вожега п, Мира ул, д.7\"","v":"Вожега п, Мира ул, д.7"},{"$f":"\"Вожега п, Мира ул, д.7\"","v":"Вожега п, Мира ул, д.7"},{"$f":"\"Вожега п, Мира ул, д.7\"","v":"Вожега п, Мира ул, д.7"},"Вожега п, Мира ул, д.7",{"$f":"\"Вожега п, Мира ул, д.7\"","v":"Вожега п, Мира ул, д.7"},null,null,null,null,null,null,null,{"$f":"\"Вожега п, Мира ул, д.7\"","v":"Вожега п, Мира ул, д.7"},null,null,null,null,null,null,null,null,null,null,null,null,null,null,null,null,"Вожега рп, Мира ул, д. 7",null,null,null,null,"Вожега рп, Мира ул, д. 7",null,null,null,null,null,null,null,null,null,null,"Вожега рп, Мира ул, д. 7",null,null,null,null,null,null,"Вожега рп, Мира ул, д. 7",null,null,null,null,null,"Вожега рп, Мира ул, д. 7",null,null,null,null,null,null,null,null,"Вожега рп, Мира ул, д. 7",null,null,null,null,null,"Вожега рп, Мира ул, д. 7",null,null,null,null,null,null,null,"Вожега рп, Мира ул, д. 7",null,null,null,null,null,null,"Вожега рп, Мира ул, д. 7",null,null,null,null,null,null,null,null,"Вожега рп, Мира ул, д. 7",null,null,null,null,"Вожега рп, Мира ул, д. 7",null,null,null,null,null,null,null,null,"Вожега рп, Мира ул, д. 7",null,null,null,null,"Вожега рп, Мира ул, д. 7",null,null,null,null,"Вожега рп, Мира ул, д. 7",null,null,"Вожега рп, Мира ул, д. 7",null,null,null,null,null,null,null,null,null,null,null,null,"Общий счет РО+"]
["Вожега п, Мира ул, д.8",{"$f":"\"Вожега п, Мира ул, д.8\"","v":"Вожега п, Мира ул, д.8"},{"$f":"\"Вожега п, Мира ул, д.8\"","v":"Вожега п, Мира ул, д.8"},{"$f":"\"Вожега п, Мира ул, д.8\"","v":"Вожега п, Мира ул, д.8"},"Вожега п, Мира ул, д.8",{"$f":"\"Вожега п, Мира ул, д.8\"","v":"Вожега п, Мира ул, д.8"},null,null,null,null,null,null,null,{"$f":"\"Вожега п, Мира ул, д.8\"","v":"Вожега п, Мира ул, д.8"},null,null,null,null,null,null,null,null,null,null,null,null,null,null,null,null,"Вожега рп, Мира ул, д. 8",null,null,null,null,"Вожега рп, Мира ул, д. 8",null,null,null,null,null,null,null,null,null,null,"Вожега рп, Мира ул, д. 8",null,null,null,null,null,null,"Вожега рп, Мира ул, д. 8",null,null,null,null,null,"Вожега рп, Мира ул, д. 8",null,null,null,null,null,null,null,null,"Вожега рп, Мира ул, д. 8",null,null,null,null,null,"Вожега рп, Мира ул, д. 8",null,null,null,null,null,null,null,"Вожега рп, Мира ул, д. 8",null,null,null,null,null,null,"Вожега рп, Мира ул, д. 8",null,null,null,null,null,null,null,null,"Вожега рп, Мира ул, д. 8",null,null,null,null,"Вожега рп, Мира ул, д. 8",null,null,null,null,null,null,null,null,"Вожега рп, Мира ул, д. 8",null,null,null,null,"Вожега рп, Мира ул, д. 8",null,null,null,null,"Вожега рп, Мира ул, д. 8",null,null,"Вожега рп, Мира ул, д. 8",null,null,null,null,null,null,null,null,null,null,null,null,"Общий счет РО+"]
["Вожега п, Мира ул, д.10",{"$f":"\"Вожега п, Мира ул, д.10\"","v":"Вожега п, Мира ул, д.10"},{"$f":"\"Вожега п, Мира ул, д.10\"","v":"Вожега п, Мира ул, д.10"},{"$f":"\"Вожега п, Мира ул, д.10\"","v":"Вожега п, Мира ул, д.10"},"Вожега п, Мира ул, д.10",{"$f":"\"Вожега п, Мира ул, д.10\"","v":"Вожега п, Мира ул, д.10"},null,null,null,null,null,null,null,{"$f":"\"Вожега п, Мира ул, д.10\"","v":"Вожега п, Мира ул, д.10"},null,null,null,null,null,null,null,null,null,null,null,null,null,null,null,null,"Вожега рп, Мира ул, д. 10",null,null,null,null,"Вожега рп, Мира ул, д. 10",null,null,null,null,null,null,null,null,null,null,"Вожега рп, Мира ул, д. 10",null,null,null,null,null,null,"Вожега рп, Мира ул, д. 10",null,null,null,null,null,"Вожега рп, Мира ул, д. 10",null,null,null,null,null,null,null,null,"Вожега рп, Мира ул, д. 10",null,null,null,null,null,"Вожега рп, Мира ул, д. 10",null,null,null,null,null,null,null,"Вожега рп, Мира ул, д. 10",null,null,null,null,null,null,"Вожега рп, Мира ул, д. 10",null,null,null,null,null,null,null,null,"Вожега рп, Мира ул, д. 10",null,null,null,null,"Вожега рп, Мира ул, д. 10",null,null,null,null,null,null,null,null,"Вожега рп, Мира ул, д. 10",null,null,null,null,"Вожега рп, Мира ул, д. 10",null,null,null,null,"Вожега рп, Мира ул, д. 10",null,null,"Вожега рп, Мира ул, д. 10",null,null,null,null,null,null,null,null,null,null,null,null,"Общий счет РО+"]
["Вожега п, Мира ул, д.12",{"$f":"\"Вожега п, Мира ул, д.12\"","v":"Вожега п, Мира ул, д.12"},{"$f":"\"Вожега п, Мира ул, д.12\"","v":"Вожега п, Мира ул, д.12"},{"$f":"\"Вожега п, Мира ул, д.12\"","v":"Вожега п, Мира ул, д.12"},"Вожега п, Мира ул, д.12",{"$f":"\"Вожега п, Мира ул, д.12\"","v":"Вожега п, Мира ул, д.12"},null,null,null,null,null,null,null,{"$f":"\"Вожега п, Мира ул, д.12\"","v":"Вожега п, Мира ул, д.12"},null,null,null,null,null,null,null,null,null,null,null,null,null,null,null,null,"Вожега рп, Мира ул, д. 12",null,null,null,null,null,null,null,null,null,null,null,null,null,null,null,null,null,null,null,null,null,null,null,null,null,null,null,null,null,null,null,null,null,null,null,null,null,null,null,null,null,null,null,null,null,null,null,null,null,null,null,null,null,null,null,null,null,null,null,null,null,null,null,null,null,null,null,null,null,null,null,null,null,null,null,null,null,null,null,null,null,null,null,null,null,null,null,null,null,null,null,null,null,null,null,null,null,null,null,null,null,null,null,null,null,null,null,"Общий счет РО - 251,80","Дом 4-х квартирный","Исключен 01.04.2019"]
["Вожега п, Мира ул, д.14",{"$f":"\"Вожега п, Мира ул, д.14\"","v":"Вожега п, Мира ул, д.14"},{"$f":"\"Вожега п, Мира ул, д.14\"","v":"Вожега п, Мира ул, д.14"},{"$f":"\"Вожега п, Мира ул, д.14\"","v":"Вожега п, Мира ул, д.14"},"Вожега п, Мира ул, д.14",{"$f":"\"Вожега п, Мира ул, д.14\"","v":"Вожега п, Мира ул, д.14"},null,null,null,null,null,null,null,{"$f":"\"Вожега п, Мира ул, д.14\"","v":"Вожега п, Мира ул, д.14"},null,null,null,null,null,null,null,null,null,null,null,null,null,null,null,null,"Вожега рп, Мира ул, д. 14",null,null,null,null,"Вожега рп, Мира ул, д. 14",null,null,null,null,null,null,null,null,null,null,"Вожега рп, Мира ул, д. 14",null,null,null,null,null,null,"Вожега рп, Мира ул, д. 14",null,null,null,null,null,"Вожега рп, Мира ул, д. 14",null,null,null,null,null,null,null,null,"Вожега рп, Мира ул, д. 14",null,null,null,null,null,"Вожега рп, Мира ул, д. 14",null,null,null,null,null,null,null,"Вожега рп, Мира ул, д. 14",null,null,null,null,null,null,"Вожега рп, Мира ул, д. 14",null,null,null,null,null,null,null,null,"Вожега рп, Мира ул, д. 14",null,null,null,null,"Вожега рп, Мира ул, д. 14",null,null,null,null,null,null,null,null,"Вожега рп, Мира ул, д. 14",null,null,null,null,"Вожега рп, Мира ул, д. 14",null,null,null,null,"Вожега рп, Мира ул, д. 14",null,null,"Вожега рп, Мира ул, д. 14",null,null,null,null,null,null,null,null,null,null,null,null,"Общий счет РО+"]
["Вожега п, Мира ул, д.17",{"$f":"\"Вожега п, Мира ул, д.17\"","v":"Вожега п, Мира ул, д.17"},{"$f":"\"Вожега п, Мира ул, д.17\"","v":"Вожега п, Мира ул, д.17"},{"$f":"\"Вожега п, Мира ул, д.17\"","v":"Вожега п, Мира ул, д.17"},"Вожега п, Мира ул, д.17",{"$f":"\"Вожега п, Мира ул, д.17\"","v":"Вожега п, Мира ул, д.17"},null,null,null,null,null,null,null,{"$f":"\"Вожега п, Мира ул, д.17\"","v":"Вожега п, Мира ул, д.17"},null,null,null,null,null,null,null,null,null,null,null,null,null,null,null,null,"Вожега рп, Мира ул, д. 17",null,null,null,null,null,null,null,null,null,null,null,null,null,null,null,null,null,null,null,null,null,null,null,null,null,null,null,null,null,null,null,null,null,null,null,null,null,null,null,null,null,null,null,null,null,null,null,null,null,null,null,null,null,null,null,null,null,null,null,null,null,null,null,null,null,null,null,null,null,null,null,null,null,null,null,null,null,null,null,null,null,null,null,null,null,null,null,null,null,null,null,null,null,null,null,null,null,null,null,null,null,null,null,null,null,null,null,"Общий счет РО - 318,10","Признан аварийным. Постановление № 427 от 11.12.2018","Исключен 01.04.2019"]
["Вожега п, Мира ул, д.19",{"$f":"\"Вожега п, Мира ул, д.19\"","v":"Вожега п, Мира ул, д.19"},{"$f":"\"Вожега п, Мира ул, д.19\"","v":"Вожега п, Мира ул, д.19"},{"$f":"\"Вожега п, Мира ул, д.19\"","v":"Вожега п, Мира ул, д.19"},"Вожега п, Мира ул, д.19",{"$f":"\"Вожега п, Мира ул, д.19\"","v":"Вожега п, Мира ул, д.19"},null,null,null,null,null,null,null,{"$f":"\"Вожега п, Мира ул, д.19\"","v":"Вожега п, Мира ул, д.19"},null,null,null,null,null,null,null,null,null,null,null,null,null,null,null,null,"Вожега рп, Мира ул, д. 19",null,null,null,null,"Вожега рп, Мира ул, д. 19",null,null,null,null,null,null,null,null,null,null,"Вожега рп, Мира ул, д. 19",null,null,null,null,null,null,"Вожега рп, Мира ул, д. 19",null,null,null,null,null,"Вожега рп, Мира ул, д. 19",null,null,null,null,null,null,null,null,"Вожега рп, Мира ул, д. 19",null,null,null,null,null,"Вожега рп, Мира ул, д. 19",null,null,null,null,null,null,null,"Вожега рп, Мира ул, д. 19",null,null,null,null,null,null,"Вожега рп, Мира ул, д. 19",null,null,null,null,null,null,null,null,null,null,null,null,null,null,null,null,null,null,null,null,null,null,null,null,null,null,null,null,null,null,null,null,null,null,null,null,null,null,null,null,null,null,null,null,null,null,null,null,"Общий счет РО 333,80","Признан аварийным. Заключение 2/2023 от 06.03.2023","Исключен 30.10.2023"]
["Вожега п, Новинки ул, д.1Г",{"$f":"\"Вожега п, Новинки ул, д.1Г\"","v":"Вожега п, Новинки ул, д.1Г"},{"$f":"\"Вожега п, Новинки ул, д.1Г\"","v":"Вожега п, Новинки ул, д.1Г"},{"$f":"\"Вожега п, Новинки ул, д.1Г\"","v":"Вожега п, Новинки ул, д.1Г"},"Вожега п, Новинки ул, д.1Г",{"$f":"\"Вожега п, Новинки ул, д.1Г\"","v":"Вожега п, Новинки ул, д.1Г"},null,null,null,null,null,null,null,{"$f":"\"Вожега п, Новинки ул, д.1Г\"","v":"Вожега п, Новинки ул, д.1Г"},null,null,null,null,null,null,null,null,null,null,null,null,null,null,null,null,"Вожега рп, Новинки ул, д. 1Г",null,null,null,null,"Вожега рп, Новинки ул, д. 1Г",null,null,null,null,null,null,null,null,null,null,"Вожега рп, Новинки ул, д. 1Г",null,null,null,null,null,null,"Вожега рп, Новинки ул, д. 1Г",null,null,null,null,null,"Вожега рп, Новинки ул, д. 1Г",null,null,null,null,null,null,null,null,"Вожега рп, Новинки ул, д. 1Г",null,null,null,null,null,"Вожега рп, Новинки ул, д. 1Г",null,null,null,null,null,null,null,"Вожега рп, Новинки ул, д. 1Г",null,null,null,null,null,null,"Вожега рп, Новинки ул, д. 1Г",null,null,null,null,null,null,null,null,"Вожега рп, Новинки ул, д. 1Г",null,null,null,null,"Вожега рп, Новинки ул, д. 1Г",null,null,null,null,null,null,null,null,"Вожега рп, Новинки ул, д. 1Г",null,null,null,null,"Вожега рп, Новинки ул, д. 1Г",null,null,null,null,"Вожега рп, Новинки ул, д. 1Г",null,null,"Вожега рп, Новинки ул, д. 1Г",null,null,null,null,null,null,null,null,null,null,null,null,"Общий счет РО+"]
["Вожега п, Октябрьская ул, д.11",{"$f":"\"Вожега п, Октябрьская ул, д.11\"","v":"Вожега п, Октябрьская ул, д.11"},{"$f":"\"Вожега п, Октябрьская ул, д.11\"","v":"Вожега п, Октябрьская ул, д.11"},{"$f":"\"Вожега п, Октябрьская ул, д.11\"","v":"Вожега п, Октябрьская ул, д.11"},"Вожега п, Октябрьская ул, д.11",{"$f":"\"Вожега п, Октябрьская ул, д.11\"","v":"Вожега п, Октябрьская ул, д.11"},null,null,null,null,null,null,null,{"$f":"\"Вожега п, Октябрьская ул, д.11\"","v":"Вожега п, Октябрьская ул, д.11"},null,null,null,null,null,null,null,null,null,null,null,null,null,null,null,null,"Вожега рп, Октябрьская ул, д. 11",null,null,null,null,"Вожега рп, Октябрьская ул, д. 11",null,null,null,null,null,null,null,null,null,null,"Вожега рп, Октябрьская ул, д. 11",null,null,null,null,null,null,"Вожега рп, Октябрьская ул, д. 11",null,null,null,null,null,"Вожега рп, Октябрьская ул, д. 11",null,null,null,null,null,null,null,null,"Вожега рп, Октябрьская ул, д. 11",null,null,null,null,null,"Вожега рп, Октябрьская ул, д. 11",null,null,null,null,null,null,null,"Вожега рп, Октябрьская ул, д. 11",null,null,null,null,null,null,"Вожега рп, Октябрьская ул, д. 11",null,null,null,null,null,null,null,null,"Вожега рп, Октябрьская ул, д. 11",null,null,null,null,"Вожега рп, Октябрьская ул, д. 11",null,null,null,null,null,null,null,null,"Вожега рп, Октябрьская ул, д. 11",null,null,null,null,"Вожега рп, Октябрьская ул, д. 11",null,null,null,null,"Вожега рп, Октябрьская ул, д. 11",null,null,"Вожега рп, Октябрьская ул, д. 11",null,null,null,null,null,null,null,null,null,null,null,null,"Общий счет РО+"]
["Вожега п, Октябрьская ул, д.29",{"$f":"\"Вожега п, Октябрьская ул, д.29\"","v":"Вожега п, Октябрьская ул, д.29"},{"$f":"\"Вожега п, Октябрьская ул, д.29\"","v":"Вожега п, Октябрьская ул, д.29"},{"$f":"\"Вожега п, Октябрьская ул, д.29\"","v":"Вожега п, Октябрьская ул, д.29"},"Вожега п, Октябрьская ул, д.29",{"$f":"\"Вожега п, Октябрьская ул, д.29\"","v":"Вожега п, Октябрьская ул, д.29"},null,null,null,null,null,null,null,{"$f":"\"Вожега п, Октябрьская ул, д.29\"","v":"Вожега п, Октябрьская ул, д.29"},null,null,null,null,null,null,null,null,null,null,null,null,null,null,null,null,"Вожега рп, Октябрьская ул, д. 29",null,null,null,null,null,null,null,null,null,null,null,null,null,null,null,null,null,null,null,null,null,null,null,null,null,null,null,null,null,null,null,null,null,null,null,null,null,null,null,null,null,null,null,null,null,null,null,null,null,null,null,null,null,null,null,null,null,null,null,null,null,null,null,null,null,null,null,null,null,null,null,null,null,null,null,null,null,null,null,null,null,null,null,null,null,null,null,null,null,null,null,null,null,null,null,null,null,null,null,null,null,null,null,null,null,null,null,"Общий счет РО - 157,10","Дом 4-х квартирный","Исключен 01.04.2019"]
["Вожега п, Октябрьская ул, д.30",{"$f":"\"Вожега п, Октябрьская ул, д.30\"","v":"Вожега п, Октябрьская ул, д.30"},{"$f":"\"Вожега п, Октябрьская ул, д.30\"","v":"Вожега п, Октябрьская ул, д.30"},{"$f":"\"Вожега п, Октябрьская ул, д.30\"","v":"Вожега п, Октябрьская ул, д.30"},"Вожега п, Октябрьская ул, д.30",{"$f":"\"Вожега п, Октябрьская ул, д.30\"","v":"Вожега п, Октябрьская ул, д.30"},null,null,null,null,null,null,null,{"$f":"\"Вожега п, Октябрьская ул, д.30\"","v":"Вожега п, Октябрьская ул, д.30"},null,null,null,null,null,null,null,null,null,null,null,null,null,null,null,null,"Вожега рп, Октябрьская ул, д. 30",null,null,null,null,"Вожега рп, Октябрьская ул, д. 30",null,null,null,null,null,null,null,null,null,null,"Вожега рп, Октябрьская ул, д. 30",null,null,null,null,null,null,"Вожега рп, Октябрьская ул, д. 30",null,null,null,null,null,"Вожега рп, Октябрьская ул, д. 30",null,null,null,null,null,null,null,null,"Вожега рп, Октябрьская ул, д. 30",null,null,null,null,null,"Вожега рп, Октябрьская ул, д. 30",null,null,null,null,null,null,null,"Вожега рп, Октябрьская ул, д. 30",null,null,null,null,null,null,"Вожега рп, Октябрьская ул, д. 30",null,null,null,null,null,null,null,null,"Вожега рп, Октябрьская ул, д. 30",null,null,null,null,"Вожега рп, Октябрьская ул, д. 30",null,null,null,null,null,null,null,null,"Вожега рп, Октябрьская ул, д. 30",null,null,null,null,"Вожега рп, Октябрьская ул, д. 30",null,null,null,null,"Вожега рп, Октябрьская ул, д. 30",null,null,"Вожега рп, Октябрьская ул, д. 30",null,null,null,null,null,null,null,null,null,null,null,null,"Общий счет РО+"]
["Вожега п, Октябрьская ул, д.32",{"$f":"\"Вожега п, Октябрьская ул, д.32\"","v":"Вожега п, Октябрьская ул, д.32"},{"$f":"\"Вожега п, Октябрьская ул, д.32\"","v":"Вожега п, Октябрьская ул, д.32"},{"$f":"\"Вожега п, Октябрьская ул, д.32\"","v":"Вожега п, Октябрьская ул, д.32"},"Вожега п, Октябрьская ул, д.32",{"$f":"\"Вожега п, Октябрьская ул, д.32\"","v":"Вожега п, Октябрьская ул, д.32"},null,null,null,null,null,null,null,{"$f":"\"Вожега п, Октябрьская ул, д.32\"","v":"Вожега п, Октябрьская ул, д.32"},null,null,null,null,null,null,null,null,null,null,null,null,null,null,null,null,"Вожега рп, Октябрьская ул, д. 32",null,null,null,null,"Вожега рп, Октябрьская ул, д. 32",null,null,null,null,null,null,null,null,null,null,"Вожега рп, Октябрьская ул, д. 32",null,null,null,null,null,null,"Вожега рп, Октябрьская ул, д. 32",null,null,null,null,null,"Вожега рп, Октябрьская ул, д. 32",null,null,null,null,null,null,null,null,"Вожега рп, Октябрьская ул, д. 32",null,null,null,null,null,"Вожега рп, Октябрьская ул, д. 32",null,null,null,null,null,null,null,"Вожега рп, Октябрьская ул, д. 32",null,null,null,null,null,null,"Вожега рп, Октябрьская ул, д. 32",null,null,null,null,null,null,null,null,"Вожега рп, Октябрьская ул, д. 32",null,null,null,null,"Вожега рп, Октябрьская ул, д. 32",null,null,null,null,null,null,null,null,"Вожега рп, Октябрьская ул, д. 32",null,null,null,null,"Вожега рп, Октябрьская ул, д. 32",null,null,null,null,"Вожега рп, Октябрьская ул, д. 32",null,null,"Вожега рп, Октябрьская ул, д. 32",null,null,null,null,null,null,null,null,null,null,null,null,"Общий счет РО+"]
["Вожега п, Октябрьская ул, д.35",{"$f":"\"Вожега п, Октябрьская ул, д.35\"","v":"Вожега п, Октябрьская ул, д.35"},{"$f":"\"Вожега п, Октябрьская ул, д.35\"","v":"Вожега п, Октябрьская ул, д.35"},{"$f":"\"Вожега п, Октябрьская ул, д.35\"","v":"Вожега п, Октябрьская ул, д.35"},"Вожега п, Октябрьская ул, д.35",{"$f":"\"Вожега п, Октябрьская ул, д.35\"","v":"Вожега п, Октябрьская ул, д.35"},null,null,null,null,null,null,null,{"$f":"\"Вожега п, Октябрьская ул, д.35\"","v":"Вожега п, Октябрьская ул, д.35"},null,null,null,null,null,null,null,null,null,null,null,null,null,null,null,null,"Вожега рп, Октябрьская ул, д. 35",null,null,null,null,"Вожега рп, Октябрьская ул, д. 35",null,null,null,null,null,null,null,null,null,null,"Вожега рп, Октябрьская ул, д. 35",null,null,null,null,null,null,"Вожега рп, Октябрьская ул, д. 35",null,null,null,null,null,"Вожега рп, Октябрьская ул, д. 35",null,null,null,null,null,null,null,null,"Вожега рп, Октябрьская ул, д. 35",null,null,null,null,null,"Вожега рп, Октябрьская ул, д. 35",null,null,null,null,null,null,null,"Вожега рп, Октябрьская ул, д. 35",null,null,null,null,null,null,"Вожега рп, Октябрьская ул, д. 35",null,null,null,null,null,null,null,null,"Вожега рп, Октябрьская ул, д. 35",null,null,null,null,"Вожега рп, Октябрьская ул, д. 35",null,null,null,null,null,null,null,null,"Вожега рп, Октябрьская ул, д. 35",null,null,null,null,"Вожега рп, Октябрьская ул, д. 35",null,null,null,null,"Вожега рп, Октябрьская ул, д. 35",null,null,"Вожега рп, Октябрьская ул, д. 35",null,null,null,null,null,null,null,null,null,null,null,null,"Общий счет РО+"]
["Вожега п, Октябрьская ул, д.40А",{"$f":"\"Вожега п, Октябрьская ул, д.40А\"","v":"Вожега п, Октябрьская ул, д.40А"},{"$f":"\"Вожега п, Октябрьская ул, д.40А\"","v":"Вожега п, Октябрьская ул, д.40А"},{"$f":"\"Вожега п, Октябрьская ул, д.40А\"","v":"Вожега п, Октябрьская ул, д.40А"},"Вожега п, Октябрьская ул, д.40А",{"$f":"\"Вожега п, Октябрьская ул, д.40А\"","v":"Вожега п, Октябрьская ул, д.40А"},null,null,null,null,null,null,null,{"$f":"\"Вожега п, Октябрьская ул, д.40А\"","v":"Вожега п, Октябрьская ул, д.40А"},null,null,null,null,null,null,null,null,null,null,null,null,null,null,null,null,"Вожега рп, Октябрьская ул, д. 40А",null,null,null,null,"Вожега рп, Октябрьская ул, д. 40А",null,null,null,null,null,null,null,null,null,null,"Вожега рп, Октябрьская ул, д. 40А",null,null,null,null,null,null,"Вожега рп, Октябрьская ул, д. 40А",null,null,null,null,null,"Вожега рп, Октябрьская ул, д. 40А",null,null,null,null,null,null,null,null,"Вожега рп, Октябрьская ул, д. 40А",null,null,null,null,null,"Вожега рп, Октябрьская ул, д. 40А",null,null,null,null,null,null,null,"Вожега рп, Октябрьская ул, д. 40А",null,null,null,null,null,null,"Вожега рп, Октябрьская ул, д. 40А",null,null,null,null,null,null,null,null,"Вожега рп, Октябрьская ул, д. 40А",null,null,null,null,"Вожега рп, Октябрьская ул, д. 40А",null,null,null,null,null,null,null,null,"Вожега рп, Октябрьская ул, д. 40А",null,null,null,null,"Вожега рп, Октябрьская ул, д. 40А",null,null,null,null,"Вожега рп, Октябрьская ул, д. 40А",null,null,"Вожега рп, Октябрьская ул, д. 40А",null,null,null,null,null,null,null,null,null,null,null,null,"Общий счет РО+"]
["Вожега п, Октябрьская ул, д.42А",{"$f":"\"Вожега п, Октябрьская ул, д.42А\"","v":"Вожега п, Октябрьская ул, д.42А"},{"$f":"\"Вожега п, Октябрьская ул, д.42А\"","v":"Вожега п, Октябрьская ул, д.42А"},{"$f":"\"Вожега п, Октябрьская ул, д.42А\"","v":"Вожега п, Октябрьская ул, д.42А"},"Вожега п, Октябрьская ул, д.42А",{"$f":"\"Вожега п, Октябрьская ул, д.42А\"","v":"Вожега п, Октябрьская ул, д.42А"},null,null,null,null,null,null,null,{"$f":"\"Вожега п, Октябрьская ул, д.42А\"","v":"Вожега п, Октябрьская ул, д.42А"},null,null,null,null,null,null,null,null,null,null,null,null,null,null,null,null,"Вожега рп, Октябрьская ул, д. 42А",null,null,null,null,null,null,null,null,null,null,null,null,null,null,null,null,null,null,null,null,null,null,null,null,null,null,null,null,null,null,null,null,null,null,null,null,null,null,null,null,null,null,null,null,null,null,null,null,null,null,null,null,null,null,null,null,null,null,null,null,null,null,null,null,null,null,null,null,null,null,null,null,null,null,null,null,null,null,null,null,null,null,null,null,null,null,null,null,null,null,null,null,null,null,null,null,null,null,null,null,null,null,null,null,null,null,null,"Общий счет РО - 373,20","Дом 4-х квартирный","Исключен 01.04.2019"]
["Вожега п, Октябрьская ул, д.42Б",{"$f":"\"Вожега п, Октябрьская ул, д.42Б\"","v":"Вожега п, Октябрьская ул, д.42Б"},{"$f":"\"Вожега п, Октябрьская ул, д.42Б\"","v":"Вожега п, Октябрьская ул, д.42Б"},{"$f":"\"Вожега п, Октябрьская ул, д.42Б\"","v":"Вожега п, Октябрьская ул, д.42Б"},"Вожега п, Октябрьская ул, д.42Б",{"$f":"\"Вожега п, Октябрьская ул, д.42Б\"","v":"Вожега п, Октябрьская ул, д.42Б"},null,null,null,null,null,null,null,{"$f":"\"Вожега п, Октябрьская ул, д.42Б\"","v":"Вожега п, Октябрьская ул, д.42Б"},null,null,null,null,null,null,null,null,null,null,null,null,null,null,null,null,"Вожега рп, Октябрьская ул, д. 42Б",null,null,null,null,"Вожега рп, Октябрьская ул, д. 42Б",null,null,null,null,null,null,null,null,null,null,"Вожега рп, Октябрьская ул, д. 42Б",null,null,null,null,null,null,"Вожега рп, Октябрьская ул, д. 42Б",null,null,null,null,null,"Вожега рп, Октябрьская ул, д. 42Б",null,null,null,null,null,null,null,null,"Вожега рп, Октябрьская ул, д. 42Б",null,null,null,null,null,"Вожега рп, Октябрьская ул, д. 42Б",null,null,null,null,null,null,null,"Вожега рп, Октябрьская ул, д. 42Б",null,null,null,null,null,null,"Вожега рп, Октябрьская ул, д. 42Б",null,null,null,null,null,null,null,null,"Вожега рп, Октябрьская ул, д. 42Б",null,null,null,null,"Вожега рп, Октябрьская ул, д. 42Б",null,null,null,null,null,null,null,null,"Вожега рп, Октябрьская ул, д. 42Б",null,null,null,null,"Вожега рп, Октябрьская ул, д. 42Б",null,null,null,null,"Вожега рп, Октябрьская ул, д. 42Б",null,null,"Вожега рп, Октябрьская ул, д. 42Б",null,null,null,null,null,null,null,null,null,null,null,null,"Общий счет РО+"]
["Вожега п, Октябрьская ул, д.44",{"$f":"\"Вожега п, Октябрьская ул, д.44\"","v":"Вожега п, Октябрьская ул, д.44"},{"$f":"\"Вожега п, Октябрьская ул, д.44\"","v":"Вожега п, Октябрьская ул, д.44"},{"$f":"\"Вожега п, Октябрьская ул, д.44\"","v":"Вожега п, Октябрьская ул, д.44"},"Вожега п, Октябрьская ул, д.44",{"$f":"\"Вожега п, Октябрьская ул, д.44\"","v":"Вожега п, Октябрьская ул, д.44"},null,null,null,null,null,null,null,{"$f":"\"Вожега п, Октябрьская ул, д.44\"","v":"Вожега п, Октябрьская ул, д.44"},null,null,null,null,null,null,null,null,null,null,null,null,null,null,null,null,"Вожега рп, Октябрьская ул, д. 44",null,null,null,null,"Вожега рп, Октябрьская ул, д. 44",null,null,null,null,null,null,null,null,null,null,"Вожега рп, Октябрьская ул, д. 44",null,null,null,null,null,null,"Вожега рп, Октябрьская ул, д. 44",null,null,null,null,null,"Вожега рп, Октябрьская ул, д. 44",null,null,null,null,null,null,null,null,"Вожега рп, Октябрьская ул, д. 44",null,null,null,null,null,"Вожега рп, Октябрьская ул, д. 44",null,null,null,null,null,null,null,"Вожега рп, Октябрьская ул, д. 44",null,null,null,null,null,null,"Вожега рп, Октябрьская ул, д. 44",null,null,null,null,null,null,null,null,"Вожега рп, Октябрьская ул, д. 44",null,null,null,null,"Вожега рп, Октябрьская ул, д. 44",null,null,null,null,null,null,null,null,"Вожега рп, Октябрьская ул, д. 44",null,null,null,null,"Вожега рп, Октябрьская ул, д. 44",null,null,null,null,"Вожега рп, Октябрьская ул, д. 44",null,null,"Вожега рп, Октябрьская ул, д. 44",null,null,null,null,null,null,null,null,null,null,null,null,"Общий счет РО+"]
["Вожега п, Октябрьская ул, д.45А",{"$f":"\"Вожега п, Октябрьская ул, д.45А\"","v":"Вожега п, Октябрьская ул, д.45А"},{"$f":"\"Вожега п, Октябрьская ул, д.45А\"","v":"Вожега п, Октябрьская ул, д.45А"},{"$f":"\"Вожега п, Октябрьская ул, д.45А\"","v":"Вожега п, Октябрьская ул, д.45А"},"Вожега п, Октябрьская ул, д.45А",{"$f":"\"Вожега п, Октябрьская ул, д.45А\"","v":"Вожега п, Октябрьская ул, д.45А"},null,null,null,null,null,null,null,{"$f":"\"Вожега п, Октябрьская ул, д.45А\"","v":"Вожега п, Октябрьская ул, д.45А"},null,null,null,null,null,null,null,null,null,null,null,null,null,null,null,null,"Вожега рп, Октябрьская ул, д. 45А",null,null,null,null,"Вожега рп, Октябрьская ул, д. 45А",null,null,null,null,null,null,null,null,null,null,"Вожега рп, Октябрьская ул, д. 45А",null,null,null,null,null,null,"Вожега рп, Октябрьская ул, д. 45А",null,null,null,null,null,"Вожега рп, Октябрьская ул, д. 45А",null,null,null,null,null,null,null,null,"Вожега рп, Октябрьская ул, д. 45А",null,null,null,null,null,"Вожега рп, Октябрьская ул, д. 45А",null,null,null,null,null,null,null,"Вожега рп, Октябрьская ул, д. 45А",null,null,null,null,null,null,"Вожега рп, Октябрьская ул, д. 45А",null,null,null,null,null,null,null,null,"Вожега рп, Октябрьская ул, д. 45А",null,null,null,null,"Вожега рп, Октябрьская ул, д. 45А",null,null,null,null,null,null,null,null,"Вожега рп, Октябрьская ул, д. 45А",null,null,null,null,"Вожега рп, Октябрьская ул, д. 45А",null,null,null,null,"Вожега рп, Октябрьская ул, д. 45А",null,null,"Вожега рп, Октябрьская ул, д. 45А",null,null,null,null,null,null,null,null,null,null,null,null,"Общий счет РО+"]
["Вожега п, Октябрьская ул, д.45",{"$f":"\"Вожега п, Октябрьская ул, д.45\"","v":"Вожега п, Октябрьская ул, д.45"},{"$f":"\"Вожега п, Октябрьская ул, д.45\"","v":"Вожега п, Октябрьская ул, д.45"},{"$f":"\"Вожега п, Октябрьская ул, д.45\"","v":"Вожега п, Октябрьская ул, д.45"},"Вожега п, Октябрьская ул, д.45",{"$f":"\"Вожега п, Октябрьская ул, д.45\"","v":"Вожега п, Октябрьская ул, д.45"},null,null,null,null,null,null,null,{"$f":"\"Вожега п, Октябрьская ул, д.45\"","v":"Вожега п, Октябрьская ул, д.45"},null,null,null,null,null,null,null,null,null,null,null,null,null,null,null,null,"Вожега рп, Октябрьская ул, д. 45",null,null,null,null,"Вожега рп, Октябрьская ул, д. 45",null,null,null,null,null,null,null,null,null,null,"Вожега рп, Октябрьская ул, д. 45",null,null,null,null,null,null,"Вожега рп, Октябрьская ул, д. 45",null,null,null,null,null,"Вожега рп, Октябрьская ул, д. 45",null,null,null,null,null,null,null,null,"Вожега рп, Октябрьская ул, д. 45",null,null,null,null,null,"Вожега рп, Октябрьская ул, д. 45",null,null,null,null,null,null,null,"Вожега рп, Октябрьская ул, д. 45",null,null,null,null,null,null,"Вожега рп, Октябрьская ул, д. 45",null,null,null,null,null,null,null,null,"Вожега рп, Октябрьская ул, д. 45",null,null,null,null,"Вожега рп, Октябрьская ул, д. 45",null,null,null,null,null,null,null,null,"Вожега рп, Октябрьская ул, д. 45",null,null,null,null,"Вожега рп, Октябрьская ул, д. 45",null,null,null,null,"Вожега рп, Октябрьская ул, д. 45",null,null,"Вожега рп, Октябрьская ул, д. 45",null,null,null,null,null,null,null,null,null,null,null,null,"Общий счет РО+"]
["Вожега п, Октябрьская ул, д.46",{"$f":"\"Вожега п, Октябрьская ул, д.46\"","v":"Вожега п, Октябрьская ул, д.46"},{"$f":"\"Вожега п, Октябрьская ул, д.46\"","v":"Вожега п, Октябрьская ул, д.46"},{"$f":"\"Вожега п, Октябрьская ул, д.46\"","v":"Вожега п, Октябрьская ул, д.46"},"Вожега п, Октябрьская ул, д.46",{"$f":"\"Вожега п, Октябрьская ул, д.46\"","v":"Вожега п, Октябрьская ул, д.46"},null,null,null,null,null,null,null,{"$f":"\"Вожега п, Октябрьская ул, д.46\"","v":"Вожега п, Октябрьская ул, д.46"},null,null,null,null,null,null,null,null,null,null,null,null,null,null,null,null,"Вожега рп, Октябрьская ул, д. 46",null,null,null,null,"Вожега рп, Октябрьская ул, д. 46",null,null,null,null,null,null,null,null,null,null,"Вожега рп, Октябрьская ул, д. 46",null,null,null,null,null,null,"Вожега рп, Октябрьская ул, д. 46",null,null,null,null,null,"Вожега рп, Октябрьская ул, д. 46",null,null,null,null,null,null,null,null,"Вожега рп, Октябрьская ул, д. 46",null,null,null,null,null,"Вожега рп, Октябрьская ул, д. 46",null,null,null,null,null,null,null,"Вожега рп, Октябрьская ул, д. 46",null,null,null,null,null,null,"Вожега рп, Октябрьская ул, д. 46",null,null,null,null,null,null,null,null,"Вожега рп, Октябрьская ул, д. 46",null,null,null,null,"Вожега рп, Октябрьская ул, д. 46",null,null,null,null,null,null,null,null,"Вожега рп, Октябрьская ул, д. 46",null,null,null,null,"Вожега рп, Октябрьская ул, д. 46",null,null,null,null,"Вожега рп, Октябрьская ул, д. 46",null,null,"Вожега рп, Октябрьская ул, д. 46",null,null,null,null,null,null,null,null,null,null,null,null,"Общий счет РО+"]
["Вожега п, Октябрьская ул, д.47",{"$f":"\"Вожега п, Октябрьская ул, д.47\"","v":"Вожега п, Октябрьская ул, д.47"},{"$f":"\"Вожега п, Октябрьская ул, д.47\"","v":"Вожега п, Октябрьская ул, д.47"},{"$f":"\"Вожега п, Октябрьская ул, д.47\"","v":"Вожега п, Октябрьская ул, д.47"},"Вожега п, Октябрьская ул, д.47",{"$f":"\"Вожега п, Октябрьская ул, д.47\"","v":"Вожега п, Октябрьская ул, д.47"},null,null,null,null,null,null,null,{"$f":"\"Вожега п, Октябрьская ул, д.47\"","v":"Вожега п, Октябрьская ул, д.47"},null,null,null,null,null,null,null,null,null,null,null,null,null,null,null,null,"Вожега рп, Октябрьская ул, д. 47",null,null,null,null,"Вожега рп, Октябрьская ул, д. 47",null,null,null,null,null,null,null,null,null,null,"Вожега рп, Октябрьская ул, д. 47",null,null,null,null,null,null,"Вожега рп, Октябрьская ул, д. 47",null,null,null,null,null,"Вожега рп, Октябрьская ул, д. 47",null,null,null,null,null,null,null,null,"Вожега рп, Октябрьская ул, д. 47",null,null,null,null,null,"Вожега рп, Октябрьская ул, д. 47",null,null,null,null,null,null,null,"Вожега рп, Октябрьская ул, д. 47",null,null,null,null,null,null,"Вожега рп, Октябрьская ул, д. 47",null,null,null,null,null,null,null,null,"Вожега рп, Октябрьская ул, д. 47",null,null,null,null,"Вожега рп, Октябрьская ул, д. 47",null,null,null,null,null,null,null,null,"Вожега рп, Октябрьская ул, д. 47",null,null,null,null,"Вожега рп, Октябрьская ул, д. 47",null,null,null,null,"Вожега рп, Октябрьская ул, д. 47",null,null,"Вожега рп, Октябрьская ул, д. 47",null,null,null,null,null,null,null,null,null,null,null,null,"Общий счет РО+"]
["Вожега п, Октябрьская ул, д.48",{"$f":"\"Вожега п, Октябрьская ул, д.48\"","v":"Вожега п, Октябрьская ул, д.48"},{"$f":"\"Вожега п, Октябрьская ул, д.48\"","v":"Вожега п, Октябрьская ул, д.48"},{"$f":"\"Вожега п, Октябрьская ул, д.48\"","v":"Вожега п, Октябрьская ул, д.48"},"Вожега п, Октябрьская ул, д.48",{"$f":"\"Вожега п, Октябрьская ул, д.48\"","v":"Вожега п, Октябрьская ул, д.48"},null,null,null,null,null,null,null,{"$f":"\"Вожега п, Октябрьская ул, д.48\"","v":"Вожега п, Октябрьская ул, д.48"},null,null,null,null,null,null,null,null,null,null,null,null,null,null,null,null,"Вожега рп, Октябрьская ул, д. 48",null,null,null,null,"Вожега рп, Октябрьская ул, д. 48",null,null,null,null,null,null,null,null,null,null,"Вожега рп, Октябрьская ул, д. 48",null,null,null,null,null,null,"Вожега рп, Октябрьская ул, д. 48",null,null,null,null,null,"Вожега рп, Октябрьская ул, д. 48",null,null,null,null,null,null,null,null,"Вожега рп, Октябрьская ул, д. 48",null,null,null,null,null,"Вожега рп, Октябрьская ул, д. 48",null,null,null,null,null,null,null,"Вожега рп, Октябрьская ул, д. 48",null,null,null,null,null,null,"Вожега рп, Октябрьская ул, д. 48",null,null,null,null,null,null,null,null,"Вожега рп, Октябрьская ул, д. 48",null,null,null,null,"Вожега рп, Октябрьская ул, д. 48",null,null,null,null,null,null,null,null,"Вожега рп, Октябрьская ул, д. 48",null,null,null,null,"Вожега рп, Октябрьская ул, д. 48",null,null,null,null,"Вожега рп, Октябрьская ул, д. 48",null,null,"Вожега рп, Октябрьская ул, д. 48",null,null,null,null,null,null,null,null,null,null,null,null,"Общий счет РО+"]
["Вожега п, Октябрьская ул, д.49",{"$f":"\"Вожега п, Октябрьская ул, д.49\"","v":"Вожега п, Октябрьская ул, д.49"},{"$f":"\"Вожега п, Октябрьская ул, д.49\"","v":"Вожега п, Октябрьская ул, д.49"},{"$f":"\"Вожега п, Октябрьская ул, д.49\"","v":"Вожега п, Октябрьская ул, д.49"},"Вожега п, Октябрьская ул, д.49",{"$f":"\"Вожега п, Октябрьская ул, д.49\"","v":"Вожега п, Октябрьская ул, д.49"},null,null,null,null,null,null,null,{"$f":"\"Вожега п, Октябрьская ул, д.49\"","v":"Вожега п, Октябрьская ул, д.49"},null,null,null,null,null,null,null,null,null,null,null,null,null,null,null,null,"Вожега рп, Октябрьская ул, д. 49",null,null,null,null,"Вожега рп, Октябрьская ул, д. 49",null,null,null,null,null,null,null,null,null,null,"Вожега рп, Октябрьская ул, д. 49",null,null,null,null,null,null,"Вожега рп, Октябрьская ул, д. 49",null,null,null,null,null,"Вожега рп, Октябрьская ул, д. 49",null,null,null,null,null,null,null,null,"Вожега рп, Октябрьская ул, д. 49",null,null,null,null,null,"Вожега рп, Октябрьская ул, д. 49",null,null,null,null,null,null,null,"Вожега рп, Октябрьская ул, д. 49",null,null,null,null,null,null,"Вожега рп, Октябрьская ул, д. 49",null,null,null,null,null,null,null,null,"Вожега рп, Октябрьская ул, д. 49",null,null,null,null,"Вожега рп, Октябрьская ул, д. 49",null,null,null,null,null,null,null,null,"Вожега рп, Октябрьская ул, д. 49",null,null,null,null,"Вожега рп, Октябрьская ул, д. 49",null,null,null,null,"Вожега рп, Октябрьская ул, д. 49",null,null,"Вожега рп, Октябрьская ул, д. 49",null,null,null,null,null,null,null,null,null,null,null,null,"Общий счет РО+"]
["Вожега п, Октябрьская ул, д.50Б",{"$f":"\"Вожега п, Октябрьская ул, д.50Б\"","v":"Вожега п, Октябрьская ул, д.50Б"},{"$f":"\"Вожега п, Октябрьская ул, д.50Б\"","v":"Вожега п, Октябрьская ул, д.50Б"},{"$f":"\"Вожега п, Октябрьская ул, д.50Б\"","v":"Вожега п, Октябрьская ул, д.50Б"},"Вожега п, Октябрьская ул, д.50Б",{"$f":"\"Вожега п, Октябрьская ул, д.50Б\"","v":"Вожега п, Октябрьская ул, д.50Б"},null,null,null,null,null,null,null,{"$f":"\"Вожега п, Октябрьская ул, д.50Б\"","v":"Вожега п, Октябрьская ул, д.50Б"},null,null,null,null,null,null,null,null,null,null,null,null,null,null,null,null,"Вожега рп, Октябрьская ул, д. 50Б",null,null,null,null,"Вожега рп, Октябрьская ул, д. 50Б",null,null,null,null,null,null,null,null,null,null,"Вожега рп, Октябрьская ул, д. 50Б",null,null,null,null,null,null,"Вожега рп, Октябрьская ул, д. 50Б",null,null,null,null,null,"Вожега рп, Октябрьская ул, д. 50Б",null,null,null,null,null,null,null,null,"Вожега рп, Октябрьская ул, д. 50Б",null,null,null,null,null,"Вожега рп, Октябрьская ул, д. 50Б",null,null,null,null,null,null,null,"Вожега рп, Октябрьская ул, д. 50Б",null,null,null,null,null,null,"Вожега рп, Октябрьская ул, д. 50Б",null,null,null,null,null,null,null,null,"Вожега рп, Октябрьская ул, д. 50Б",null,null,null,null,"Вожега рп, Октябрьская ул, д. 50Б",null,null,null,null,null,null,null,null,"Вожега рп, Октябрьская ул, д. 50Б",null,null,null,null,"Вожега рп, Октябрьская ул, д. 50Б",null,null,null,null,"Вожега рп, Октябрьская ул, д. 50Б",null,null,"Вожега рп, Октябрьская ул, д. 50Б",null,null,null,null,null,null,null,null,null,null,null,null,"Общий счет РО+"]
["Вожега п, Октябрьская ул, д.50В",{"$f":"\"Вожега п, Октябрьская ул, д.50В\"","v":"Вожега п, Октябрьская ул, д.50В"},{"$f":"\"Вожега п, Октябрьская ул, д.50В\"","v":"Вожега п, Октябрьская ул, д.50В"},{"$f":"\"Вожега п, Октябрьская ул, д.50В\"","v":"Вожега п, Октябрьская ул, д.50В"},"Вожега п, Октябрьская ул, д.50В",{"$f":"\"Вожега п, Октябрьская ул, д.50В\"","v":"Вожега п, Октябрьская ул, д.50В"},null,null,null,null,null,null,null,{"$f":"\"Вожега п, Октябрьская ул, д.50В\"","v":"Вожега п, Октябрьская ул, д.50В"},null,null,null,null,null,null,null,null,null,null,null,null,null,null,null,null,"Вожега рп, Октябрьская ул, д. 50В",null,null,null,null,null,null,null,null,null,null,null,null,null,null,null,null,null,null,null,null,null,null,null,null,null,null,null,null,null,null,null,null,null,null,null,null,null,null,null,null,null,null,null,null,null,null,null,null,null,null,null,null,null,null,null,null,null,null,null,null,null,null,null,null,null,null,null,null,null,null,null,null,null,null,null,null,null,null,null,null,null,null,null,null,null,null,null,null,null,null,null,null,null,null,null,null,null,null,null,null,null,null,null,null,null,null,null,"Общий счет РО - 254,90","Дом 4-х квартирный","Исключен 01.04.2019"]
["Вожега п, Октябрьская ул, д.59",{"$f":"\"Вожега п, Октябрьская ул, д.59\"","v":"Вожега п, Октябрьская ул, д.59"},{"$f":"\"Вожега п, Октябрьская ул, д.59\"","v":"Вожега п, Октябрьская ул, д.59"},{"$f":"\"Вожега п, Октябрьская ул, д.59\"","v":"Вожега п, Октябрьская ул, д.59"},"Вожега п, Октябрьская ул, д.59",{"$f":"\"Вожега п, Октябрьская ул, д.59\"","v":"Вожега п, Октябрьская ул, д.59"},null,null,null,null,null,null,null,{"$f":"\"Вожега п, Октябрьская ул, д.59\"","v":"Вожега п, Октябрьская ул, д.59"},null,null,null,null,null,null,null,null,null,null,null,null,null,null,null,null,"Вожега рп, Октябрьская ул, д. 59",null,null,null,null,"Вожега рп, Октябрьская ул, д. 59",null,null,null,null,null,null,null,null,null,null,"Вожега рп, Октябрьская ул, д. 59",null,null,null,null,null,null,"Вожега рп, Октябрьская ул, д. 59",null,null,null,null,null,"Вожега рп, Октябрьская ул, д. 59",null,null,null,null,null,null,null,null,"Вожега рп, Октябрьская ул, д. 59",null,null,null,null,null,"Вожега рп, Октябрьская ул, д. 59",null,null,null,null,null,null,null,"Вожега рп, Октябрьская ул, д. 59",null,null,null,null,null,null,"Вожега рп, Октябрьская ул, д. 59",null,null,null,null,null,null,null,null,"Вожега рп, Октябрьская ул, д. 59",null,null,null,null,"Вожега рп, Октябрьская ул, д. 59",null,null,null,null,null,null,null,null,"Вожега рп, Октябрьская ул, д. 59",null,null,null,null,"Вожега рп, Октябрьская ул, д. 59",null,null,null,null,"Вожега рп, Октябрьская ул, д. 59",null,null,"Вожега рп, Октябрьская ул, д. 59",null,null,null,null,null,null,null,null,null,null,null,null,"Общий счет РО+"]
["Вожега п, Октябрьская ул, д.59Б",{"$f":"\"Вожега п, Октябрьская ул, д.59Б\"","v":"Вожега п, Октябрьская ул, д.59Б"},{"$f":"\"Вожега п, Октябрьская ул, д.59Б\"","v":"Вожега п, Октябрьская ул, д.59Б"},{"$f":"\"Вожега п, Октябрьская ул, д.59Б\"","v":"Вожега п, Октябрьская ул, д.59Б"},"Вожега п, Октябрьская ул, д.59Б",{"$f":"\"Вожега п, Октябрьская ул, д.59Б\"","v":"Вожега п, Октябрьская ул, д.59Б"},null,null,null,null,null,null,null,{"$f":"\"Вожега п, Октябрьская ул, д.59Б\"","v":"Вожега п, Октябрьская ул, д.59Б"},null,null,null,null,null,null,null,null,null,null,null,null,null,null,null,null,"Вожега рп, Октябрьская ул, д. 59Б",null,null,null,null,"Вожега рп, Октябрьская ул, д. 59Б",null,null,null,null,null,null,null,null,null,null,"Вожега рп, Октябрьская ул, д. 59Б",null,null,null,null,null,null,"Вожега рп, Октябрьская ул, д. 59Б",null,null,null,null,null,"Вожега рп, Октябрьская ул, д. 59Б",null,null,null,null,null,null,null,null,"Вожега рп, Октябрьская ул, д. 59Б",null,null,null,null,null,"Вожега рп, Октябрьская ул, д. 59Б",null,null,null,null,null,null,null,"Вожега рп, Октябрьская ул, д. 59Б",null,null,null,null,null,null,"Вожега рп, Октябрьская ул, д. 59Б",null,null,null,null,null,null,null,null,"Вожега рп, Октябрьская ул, д. 59Б",null,null,null,null,"Вожега рп, Октябрьская ул, д. 59Б",null,null,null,null,null,null,null,null,"Вожега рп, Октябрьская ул, д. 59Б",null,null,null,null,"Вожега рп, Октябрьская ул, д. 59Б",null,null,null,null,"Вожега рп, Октябрьская ул, д. 59Б",null,null,"Вожега рп, Октябрьская ул, д. 59Б",null,null,null,null,null,null,null,null,null,null,null,null,"Общий счет РО+"]
["Вожега п, Октябрьская ул, д.59А",{"$f":"\"Вожега п, Октябрьская ул, д.59А\"","v":"Вожега п, Октябрьская ул, д.59А"},{"$f":"\"Вожега п, Октябрьская ул, д.59А\"","v":"Вожега п, Октябрьская ул, д.59А"},{"$f":"\"Вожега п, Октябрьская ул, д.59А\"","v":"Вожега п, Октябрьская ул, д.59А"},"Вожега п, Октябрьская ул, д.59А",{"$f":"\"Вожега п, Октябрьская ул, д.59А\"","v":"Вожега п, Октябрьская ул, д.59А"},null,null,null,null,null,null,null,{"$f":"\"Вожега п, Октябрьская ул, д.59А\"","v":"Вожега п, Октябрьская ул, д.59А"},null,null,null,null,null,null,null,null,null,null,null,null,null,null,null,null,"Вожега рп, Октябрьская ул, д. 59А",null,null,null,null,"Вожега рп, Октябрьская ул, д. 59А",null,null,null,null,null,null,null,null,null,null,"Вожега рп, Октябрьская ул, д. 59А",null,null,null,null,null,null,"Вожега рп, Октябрьская ул, д. 59А",null,null,null,null,null,"Вожега рп, Октябрьская ул, д. 59А",null,null,null,null,null,null,null,null,"Вожега рп, Октябрьская ул, д. 59А",null,null,null,null,null,"Вожега рп, Октябрьская ул, д. 59А",null,null,null,null,null,null,null,"Вожега рп, Октябрьская ул, д. 59А",null,null,null,null,null,null,"Вожега рп, Октябрьская ул, д. 59А",null,null,null,null,null,null,null,null,"Вожега рп, Октябрьская ул, д. 59А",null,null,null,null,"Вожега рп, Октябрьская ул, д. 59А",null,null,null,null,null,null,null,null,"Вожега рп, Октябрьская ул, д. 59А",null,null,null,null,"Вожега рп, Октябрьская ул, д. 59А",null,null,null,null,"Вожега рп, Октябрьская ул, д. 59А",null,null,"Вожега рп, Октябрьская ул, д. 59А",null,null,null,null,null,null,null,null,null,null,null,null,"Общий счет РО+"]
["Вожега п, Октябрьская ул, д.60",{"$f":"\"Вожега п, Октябрьская ул, д.60\"","v":"Вожега п, Октябрьская ул, д.60"},{"$f":"\"Вожега п, Октябрьская ул, д.60\"","v":"Вожега п, Октябрьская ул, д.60"},{"$f":"\"Вожега п, Октябрьская ул, д.60\"","v":"Вожега п, Октябрьская ул, д.60"},"Вожега п, Октябрьская ул, д.60",{"$f":"\"Вожега п, Октябрьская ул, д.60\"","v":"Вожега п, Октябрьская ул, д.60"},null,null,null,null,null,null,null,{"$f":"\"Вожега п, Октябрьская ул, д.60\"","v":"Вожега п, Октябрьская ул, д.60"},null,null,null,null,null,null,null,null,null,null,null,null,null,null,null,null,"Вожега рп, Октябрьская ул, д. 60",null,null,null,null,"Вожега рп, Октябрьская ул, д. 60",null,null,null,null,null,null,null,null,null,null,"Вожега рп, Октябрьская ул, д. 60",null,null,null,null,null,null,"Вожега рп, Октябрьская ул, д. 60",null,null,null,null,null,"Вожега рп, Октябрьская ул, д. 60",null,null,null,null,null,null,null,null,"Вожега рп, Октябрьская ул, д. 60",null,null,null,null,null,"Вожега рп, Октябрьская ул, д. 60",null,null,null,null,null,null,null,"Вожега рп, Октябрьская ул, д. 60",null,null,null,null,null,null,"Вожега рп, Октябрьская ул, д. 60",null,null,null,null,null,null,null,null,"Вожега рп, Октябрьская ул, д. 60",null,null,null,null,"Вожега рп, Октябрьская ул, д. 60",null,null,null,null,null,null,null,null,"Вожега рп, Октябрьская ул, д. 60",null,null,null,null,"Вожега рп, Октябрьская ул, д. 60",null,null,null,null,"Вожега рп, Октябрьская ул, д. 60",null,null,"Вожега рп, Октябрьская ул, д. 60",null,null,null,null,null,null,null,null,null,null,null,null,"Общий счет РО+"]
["Вожега п, Октябрьская ул, д.61А",{"$f":"\"Вожега п, Октябрьская ул, д.61А\"","v":"Вожега п, Октябрьская ул, д.61А"},{"$f":"\"Вожега п, Октябрьская ул, д.61А\"","v":"Вожега п, Октябрьская ул, д.61А"},{"$f":"\"Вожега п, Октябрьская ул, д.61А\"","v":"Вожега п, Октябрьская ул, д.61А"},"Вожега п, Октябрьская ул, д.61А",{"$f":"\"Вожега п, Октябрьская ул, д.61А\"","v":"Вожега п, Октябрьская ул, д.61А"},null,null,null,null,null,null,null,{"$f":"\"Вожега п, Октябрьская ул, д.61А\"","v":"Вожега п, Октябрьская ул, д.61А"},null,null,null,null,null,null,null,null,null,null,null,null,null,null,null,null,"Вожега рп, Октябрьская ул, д. 61А",null,null,null,null,"Вожега рп, Октябрьская ул, д. 61А",null,null,null,null,null,null,null,null,null,null,"Вожега рп, Октябрьская ул, д. 61А",null,null,null,null,null,null,"Вожега рп, Октябрьская ул, д. 61А",null,null,null,null,null,"Вожега рп, Октябрьская ул, д. 61А",null,null,null,null,null,null,null,null,"Вожега рп, Октябрьская ул, д. 61А",null,null,null,null,null,"Вожега рп, Октябрьская ул, д. 61А",null,null,null,null,null,null,null,"Вожега рп, Октябрьская ул, д. 61А",null,null,null,null,null,null,"Вожега рп, Октябрьская ул, д. 61А",null,null,null,null,null,null,null,null,"Вожега рп, Октябрьская ул, д. 61А",null,null,null,null,"Вожега рп, Октябрьская ул, д. 61А",null,null,null,null,null,null,null,null,"Вожега рп, Октябрьская ул, д. 61А",null,null,null,null,"Вожега рп, Октябрьская ул, д. 61А",null,null,null,null,"Вожега рп, Октябрьская ул, д. 61А",null,null,"Вожега рп, Октябрьская ул, д. 61А",null,null,null,null,null,null,null,null,null,null,null,null,"Общий счет РО+"]
["Вожега п, Октябрьская ул, д.61",{"$f":"\"Вожега п, Октябрьская ул, д.61\"","v":"Вожега п, Октябрьская ул, д.61"},{"$f":"\"Вожега п, Октябрьская ул, д.61\"","v":"Вожега п, Октябрьская ул, д.61"},{"$f":"\"Вожега п, Октябрьская ул, д.61\"","v":"Вожега п, Октябрьская ул, д.61"},"Вожега п, Октябрьская ул, д.61",{"$f":"\"Вожега п, Октябрьская ул, д.61\"","v":"Вожега п, Октябрьская ул, д.61"},null,null,null,null,null,null,null,{"$f":"\"Вожега п, Октябрьская ул, д.61\"","v":"Вожега п, Октябрьская ул, д.61"},null,null,null,null,null,null,null,null,null,null,null,null,null,null,null,null,"Вожега рп, Октябрьская ул, д. 61",null,null,null,null,"Вожега рп, Октябрьская ул, д. 61",null,null,null,null,null,null,null,null,null,null,"Вожега рп, Октябрьская ул, д. 61",null,null,null,null,null,null,"Вожега рп, Октябрьская ул, д. 61",null,null,null,null,null,"Вожега рп, Октябрьская ул, д. 61",null,null,null,null,null,null,null,null,"Вожега рп, Октябрьская ул, д. 61",null,null,null,null,null,"Вожега рп, Октябрьская ул, д. 61",null,null,null,null,null,null,null,"Вожега рп, Октябрьская ул, д. 61",null,null,null,null,null,null,"Вожега рп, Октябрьская ул, д. 61",null,null,null,null,null,null,null,null,"Вожега рп, Октябрьская ул, д. 61",null,null,null,null,"Вожега рп, Октябрьская ул, д. 61",null,null,null,null,null,null,null,null,"Вожега рп, Октябрьская ул, д. 61",null,null,null,null,"Вожега рп, Октябрьская ул, д. 61",null,null,null,null,"Вожега рп, Октябрьская ул, д. 61",null,null,"Вожега рп, Октябрьская ул, д. 61",null,null,null,null,null,null,null,null,null,null,null,null,"Общий счет РО+"]
["Вожега п, Октябрьская ул, д.63",{"$f":"\"Вожега п, Октябрьская ул, д.63\"","v":"Вожега п, Октябрьская ул, д.63"},{"$f":"\"Вожега п, Октябрьская ул, д.63\"","v":"Вожега п, Октябрьская ул, д.63"},{"$f":"\"Вожега п, Октябрьская ул, д.63\"","v":"Вожега п, Октябрьская ул, д.63"},"Вожега п, Октябрьская ул, д.63",{"$f":"\"Вожега п, Октябрьская ул, д.63\"","v":"Вожега п, Октябрьская ул, д.63"},null,null,null,null,null,null,null,{"$f":"\"Вожега п, Октябрьская ул, д.63\"","v":"Вожега п, Октябрьская ул, д.63"},null,null,null,null,null,null,null,null,null,null,null,null,null,null,null,null,"Вожега рп, Октябрьская ул, д. 63",null,null,null,null,"Вожега рп, Октябрьская ул, д. 63",null,null,null,null,null,null,null,null,null,null,"Вожега рп, Октябрьская ул, д. 63",null,null,null,null,null,null,"Вожега рп, Октябрьская ул, д. 63",null,null,null,null,null,"Вожега рп, Октябрьская ул, д. 63",null,null,null,null,null,null,null,null,"Вожега рп, Октябрьская ул, д. 63",null,null,null,null,null,"Вожега рп, Октябрьская ул, д. 63",null,null,null,null,null,null,null,"Вожега рп, Октябрьская ул, д. 63",null,null,null,null,null,null,"Вожега рп, Октябрьская ул, д. 63",null,null,null,null,null,null,null,null,"Вожега рп, Октябрьская ул, д. 63",null,null,null,null,"Вожега рп, Октябрьская ул, д. 63",null,null,null,null,null,null,null,null,"Вожега рп, Октябрьская ул, д. 63",null,null,null,null,"Вожега рп, Октябрьская ул, д. 63",null,null,null,null,"Вожега рп, Октябрьская ул, д. 63",null,null,"Вожега рп, Октябрьская ул, д. 63",null,null,null,null,null,null,null,null,null,null,null,null,"Общий счет РО+"]
["Вожега п, Октябрьская ул, д.64А",{"$f":"\"Вожега п, Октябрьская ул, д.64А\"","v":"Вожега п, Октябрьская ул, д.64А"},{"$f":"\"Вожега п, Октябрьская ул, д.64А\"","v":"Вожега п, Октябрьская ул, д.64А"},{"$f":"\"Вожега п, Октябрьская ул, д.64А\"","v":"Вожега п, Октябрьская ул, д.64А"},"Вожега п, Октябрьская ул, д.64А",{"$f":"\"Вожега п, Октябрьская ул, д.64А\"","v":"Вожега п, Октябрьская ул, д.64А"},null,null,null,null,null,null,null,{"$f":"\"Вожега п, Октябрьская ул, д.64А\"","v":"Вожега п, Октябрьская ул, д.64А"},null,null,null,null,null,null,null,null,null,null,null,null,null,null,null,null,"Вожега рп, Октябрьская ул, д. 64А",null,null,null,null,"Вожега рп, Октябрьская ул, д. 64А",null,null,null,null,null,null,null,null,null,null,"Вожега рп, Октябрьская ул, д. 64А",null,null,null,null,null,null,"Вожега рп, Октябрьская ул, д. 64А",null,null,null,null,null,"Вожега рп, Октябрьская ул, д. 64А",null,null,null,null,null,null,null,null,"Вожега рп, Октябрьская ул, д. 64А",null,null,null,null,null,"Вожега рп, Октябрьская ул, д. 64А",null,null,null,null,null,null,null,"Вожега рп, Октябрьская ул, д. 64А",null,null,null,null,null,null,"Вожега рп, Октябрьская ул, д. 64А",null,null,null,null,null,null,null,null,"Вожега рп, Октябрьская ул, д. 64А",null,null,null,null,"Вожега рп, Октябрьская ул, д. 64А",null,null,null,null,null,null,null,null,"Вожега рп, Октябрьская ул, д. 64А",null,null,null,null,"Вожега рп, Октябрьская ул, д. 64А",null,null,null,null,"Вожега рп, Октябрьская ул, д. 64А",null,null,"Вожега рп, Октябрьская ул, д. 64А",null,null,null,null,null,null,null,null,null,null,null,null,"Общий счет РО+"]
["Вожега п, Октябрьская ул, д.65",{"$f":"\"Вожега п, Октябрьская ул, д.65\"","v":"Вожега п, Октябрьская ул, д.65"},{"$f":"\"Вожега п, Октябрьская ул, д.65\"","v":"Вожега п, Октябрьская ул, д.65"},{"$f":"\"Вожега п, Октябрьская ул, д.65\"","v":"Вожега п, Октябрьская ул, д.65"},"Вожега п, Октябрьская ул, д.65",{"$f":"\"Вожега п, Октябрьская ул, д.65\"","v":"Вожега п, Октябрьская ул, д.65"},null,null,null,null,null,null,null,{"$f":"\"Вожега п, Октябрьская ул, д.65\"","v":"Вожега п, Октябрьская ул, д.65"},null,null,null,null,null,null,null,null,null,null,null,null,null,null,null,null,"Вожега рп, Октябрьская ул, д. 65",null,null,null,null,"Вожега рп, Октябрьская ул, д. 65",null,null,null,null,null,null,null,null,null,null,"Вожега рп, Октябрьская ул, д. 65",null,null,null,null,null,null,"Вожега рп, Октябрьская ул, д. 65",null,null,null,null,null,"Вожега рп, Октябрьская ул, д. 65",null,null,null,null,null,null,null,null,"Вожега рп, Октябрьская ул, д. 65",null,null,null,null,null,"Вожега рп, Октябрьская ул, д. 65",null,null,null,null,null,null,null,"Вожега рп, Октябрьская ул, д. 65",null,null,null,null,null,null,"Вожега рп, Октябрьская ул, д. 65",null,null,null,null,null,null,null,null,"Вожега рп, Октябрьская ул, д. 65",null,null,null,null,"Вожега рп, Октябрьская ул, д. 65",null,null,null,null,null,null,null,null,"Вожега рп, Октябрьская ул, д. 65",null,null,null,null,"Вожега рп, Октябрьская ул, д. 65",null,null,null,null,"Вожега рп, Октябрьская ул, д. 65",null,null,"Вожега рп, Октябрьская ул, д. 65",null,null,null,null,null,null,null,null,null,null,null,null,"Общий счет РО+"]
["Вожега п, Октябрьская ул, д.65А",{"$f":"\"Вожега п, Октябрьская ул, д.65А\"","v":"Вожега п, Октябрьская ул, д.65А"},{"$f":"\"Вожега п, Октябрьская ул, д.65А\"","v":"Вожега п, Октябрьская ул, д.65А"},{"$f":"\"Вожега п, Октябрьская ул, д.65А\"","v":"Вожега п, Октябрьская ул, д.65А"},"Вожега п, Октябрьская ул, д.65А",{"$f":"\"Вожега п, Октябрьская ул, д.65А\"","v":"Вожега п, Октябрьская ул, д.65А"},null,null,null,null,null,null,null,{"$f":"\"Вожега п, Октябрьская ул, д.65А\"","v":"Вожега п, Октябрьская ул, д.65А"},null,null,null,null,null,null,null,null,null,null,null,null,null,null,null,null,"Вожега рп, Октябрьская ул, д. 65А",null,null,null,null,"Вожега рп, Октябрьская ул, д. 65А",null,null,null,null,null,null,null,null,null,null,"Вожега рп, Октябрьская ул, д. 65А",null,null,null,null,null,null,"Вожега рп, Октябрьская ул, д. 65А",null,null,null,null,null,"Вожега рп, Октябрьская ул, д. 65А",null,null,null,null,null,null,null,null,"Вожега рп, Октябрьская ул, д. 65А",null,null,null,null,null,"Вожега рп, Октябрьская ул, д. 65А",null,null,null,null,null,null,null,"Вожега рп, Октябрьская ул, д. 65А",null,null,null,null,null,null,"Вожега рп, Октябрьская ул, д. 65А",null,null,null,null,null,null,null,null,"Вожега рп, Октябрьская ул, д. 65А",null,null,null,null,"Вожега рп, Октябрьская ул, д. 65А",null,null,null,null,null,null,null,null,"Вожега рп, Октябрьская ул, д. 65А",null,null,null,null,"Вожега рп, Октябрьская ул, д. 65А",null,null,null,null,"Вожега рп, Октябрьская ул, д. 65А",null,null,"Вожега рп, Октябрьская ул, д. 65А",null,null,null,null,null,null,null,null,null,null,null,null,"Общий счет РО+"]
["Вожега п, Октябрьская ул, д.65В",{"$f":"\"Вожега п, Октябрьская ул, д.65В\"","v":"Вожега п, Октябрьская ул, д.65В"},{"$f":"\"Вожега п, Октябрьская ул, д.65В\"","v":"Вожега п, Октябрьская ул, д.65В"},{"$f":"\"Вожега п, Октябрьская ул, д.65В\"","v":"Вожега п, Октябрьская ул, д.65В"},"Вожега п, Октябрьская ул, д.65В",{"$f":"\"Вожега п, Октябрьская ул, д.65В\"","v":"Вожега п, Октябрьская ул, д.65В"},null,null,null,null,null,null,null,{"$f":"\"Вожега п, Октябрьская ул, д.65В\"","v":"Вожега п, Октябрьская ул, д.65В"},null,null,null,null,null,null,null,null,null,null,null,null,null,null,null,null,"Вожега рп, Октябрьская ул, д. 65В",null,null,null,null,"Вожега рп, Октябрьская ул, д. 65В",null,null,null,null,null,null,null,null,null,null,"Вожега рп, Октябрьская ул, д. 65В",null,null,null,null,null,null,"Вожега рп, Октябрьская ул, д. 65В",null,null,null,null,null,"Вожега рп, Октябрьская ул, д. 65В",null,null,null,null,null,null,null,null,"Вожега рп, Октябрьская ул, д. 65В",null,null,null,null,null,"Вожега рп, Октябрьская ул, д. 65В",null,null,null,null,null,null,null,"Вожега рп, Октябрьская ул, д. 65В",null,null,null,null,null,null,"Вожега рп, Октябрьская ул, д. 65В",null,null,null,null,null,null,null,null,"Вожега рп, Октябрьская ул, д. 65В",null,null,null,null,"Вожега рп, Октябрьская ул, д. 65В",null,null,null,null,null,null,null,null,"Вожега рп, Октябрьская ул, д. 65В",null,null,null,null,"Вожега рп, Октябрьская ул, д. 65В",null,null,null,null,"Вожега рп, Октябрьская ул, д. 65В",null,null,"Вожега рп, Октябрьская ул, д. 65В",null,null,null,null,null,null,null,null,null,null,null,null,"Общий счет РО+"]
["Вожега п, Октябрьская ул, д.65Б",{"$f":"\"Вожега п, Октябрьская ул, д.65Б\"","v":"Вожега п, Октябрьская ул, д.65Б"},{"$f":"\"Вожега п, Октябрьская ул, д.65Б\"","v":"Вожега п, Октябрьская ул, д.65Б"},{"$f":"\"Вожега п, Октябрьская ул, д.65Б\"","v":"Вожега п, Октябрьская ул, д.65Б"},"Вожега п, Октябрьская ул, д.65Б",{"$f":"\"Вожега п, Октябрьская ул, д.65Б\"","v":"Вожега п, Октябрьская ул, д.65Б"},null,null,null,null,null,null,null,{"$f":"\"Вожега п, Октябрьская ул, д.65Б\"","v":"Вожега п, Октябрьская ул, д.65Б"},null,null,null,null,null,null,null,null,null,null,null,null,null,null,null,null,"Вожега рп, Октябрьская ул, д. 65Б",null,null,null,null,"Вожега рп, Октябрьская ул, д. 65Б",null,null,null,null,null,null,null,null,null,null,"Вожега рп, Октябрьская ул, д. 65Б",null,null,null,null,null,null,"Вожега рп, Октябрьская ул, д. 65Б",null,null,null,null,null,"Вожега рп, Октябрьская ул, д. 65Б",null,null,null,null,null,null,null,null,"Вожега рп, Октябрьская ул, д. 65Б",null,null,null,null,null,"Вожега рп, Октябрьская ул, д. 65Б",null,null,null,null,null,null,null,"Вожега рп, Октябрьская ул, д. 65Б",null,null,null,null,null,null,"Вожега рп, Октябрьская ул, д. 65Б",null,null,null,null,null,null,null,null,"Вожега рп, Октябрьская ул, д. 65Б",null,null,null,null,"Вожега рп, Октябрьская ул, д. 65Б",null,null,null,null,null,null,null,null,"Вожега рп, Октябрьская ул, д. 65Б",null,null,null,null,"Вожега рп, Октябрьская ул, д. 65Б",null,null,null,null,"Вожега рп, Октябрьская ул, д. 65Б",null,null,"Вожега рп, Октябрьская ул, д. 65Б",null,null,null,null,null,null,null,null,null,null,null,null,"Общий счет РО+"]
["Вожега п, Октябрьская ул, д.66",{"$f":"\"Вожега п, Октябрьская ул, д.66\"","v":"Вожега п, Октябрьская ул, д.66"},{"$f":"\"Вожега п, Октябрьская ул, д.66\"","v":"Вожега п, Октябрьская ул, д.66"},{"$f":"\"Вожега п, Октябрьская ул, д.66\"","v":"Вожега п, Октябрьская ул, д.66"},"Вожега п, Октябрьская ул, д.66",{"$f":"\"Вожега п, Октябрьская ул, д.66\"","v":"Вожега п, Октябрьская ул, д.66"},null,null,null,null,null,null,null,{"$f":"\"Вожега п, Октябрьская ул, д.66\"","v":"Вожега п, Октябрьская ул, д.66"},null,null,null,null,null,null,null,null,null,null,null,null,null,null,null,null,"Вожега рп, Октябрьская ул, д. 66",null,null,null,null,null,null,null,null,null,null,null,null,null,null,null,null,null,null,null,null,null,null,null,null,null,null,null,null,null,null,null,null,null,null,null,null,null,null,null,null,null,null,null,null,null,null,null,null,null,null,null,null,null,null,null,null,null,null,null,null,null,null,null,null,null,null,null,null,null,null,null,null,null,null,null,null,null,null,null,null,null,null,null,null,null,null,null,null,null,null,null,null,null,null,null,null,null,null,null,null,null,null,null,null,null,null,null,"Общий счет РО - 211,90","Дом 4-х квартирный","Исключен 01.04.2019"]
[null,{"$f":"\"Вожега п, Октябрьская ул, д.66Б\"","v":"Вожега п, Октябрьская ул, д.66Б"},{"$f":"\"Вожега п, Октябрьская ул, д.66Б\"","v":"Вожега п, Октябрьская ул, д.66Б"},{"$f":"\"Вожега п, Октябрьская ул, д.66Б\"","v":"Вожега п, Октябрьская ул, д.66Б"},"Вожега п, Октябрьская ул, д.66Б",{"$f":"\"Вожега п, Октябрьская ул, д.66Б\"","v":"Вожега п, Октябрьская ул, д.66Б"},null,null,null,null,null,null,null,{"$f":"\"Вожега п, Октябрьская ул, д.66Б\"","v":"Вожега п, Октябрьская ул, д.66Б"},null,null,null,null,null,null,null,null,null,null,null,null,null,null,null,null,"Вожега рп, Октябрьская ул, д. 66Б",null,null,null,null,"Вожега рп, Октябрьская ул, д. 66Б",null,null,null,null,null,null,null,null,null,null,"Вожега рп, Октябрьская ул, д. 66Б",null,null,null,null,null,null,"Вожега рп, Октябрьская ул, д. 66Б",null,null,null,null,null,"Вожега рп, Октябрьская ул, д. 66Б",null,null,null,null,null,null,null,null,"Вожега рп, Октябрьская ул, д. 66Б",null,null,null,null,null,"Вожега рп, Октябрьская ул, д. 66Б",null,null,null,null,null,null,null,"Вожега рп, Октябрьская ул, д. 66Б",null,null,null,null,null,null,"Вожега рп, Октябрьская ул, д. 66Б",null,null,null,null,null,null,null,null,"Вожега рп, Октябрьская ул, д. 66Б",null,null,null,null,"Вожега рп, Октябрьская ул, д. 66Б",null,null,null,null,null,null,null,null,"Вожега рп, Октябрьская ул, д. 66Б",null,null,null,null,"Вожега рп, Октябрьская ул, д. 66Б",null,null,null,null,"Вожега рп, Октябрьская ул, д. 66Б",null,null,"Вожега рп, Октябрьская ул, д. 66Б",null,null,null,null,null,null,null,null,null,null,null,null,"Общий счет РО+"]
["Вожега п, Октябрьская ул, д.66А",{"$f":"\"Вожега п, Октябрьская ул, д.66А\"","v":"Вожега п, Октябрьская ул, д.66А"},{"$f":"\"Вожега п, Октябрьская ул, д.66А\"","v":"Вожега п, Октябрьская ул, д.66А"},{"$f":"\"Вожега п, Октябрьская ул, д.66А\"","v":"Вожега п, Октябрьская ул, д.66А"},"Вожега п, Октябрьская ул, д.66А",{"$f":"\"Вожега п, Октябрьская ул, д.66А\"","v":"Вожега п, Октябрьская ул, д.66А"},null,null,null,null,null,null,null,{"$f":"\"Вожега п, Октябрьская ул, д.66А\"","v":"Вожега п, Октябрьская ул, д.66А"},null,null,null,null,null,null,null,null,null,null,null,null,null,null,null,null,"Вожега рп, Октябрьская ул, д. 66А",null,null,null,null,"Вожега рп, Октябрьская ул, д. 66А",null,null,null,null,null,null,null,null,null,null,"Вожега рп, Октябрьская ул, д. 66А",null,null,null,null,null,null,"Вожега рп, Октябрьская ул, д. 66А",null,null,null,null,null,"Вожега рп, Октябрьская ул, д. 66А",null,null,null,null,null,null,null,null,"Вожега рп, Октябрьская ул, д. 66А",null,null,null,null,null,"Вожега рп, Октябрьская ул, д. 66А",null,null,null,null,null,null,null,"Вожега рп, Октябрьская ул, д. 66А",null,null,null,null,null,null,"Вожега рп, Октябрьская ул, д. 66А",null,null,null,null,null,null,null,null,"Вожега рп, Октябрьская ул, д. 66А",null,null,null,null,"Вожега рп, Октябрьская ул, д. 66А",null,null,null,null,null,null,null,null,"Вожега рп, Октябрьская ул, д. 66А",null,null,null,null,"Вожега рп, Октябрьская ул, д. 66А",null,null,null,null,"Вожега рп, Октябрьская ул, д. 66А",null,null,"Вожега рп, Октябрьская ул, д. 66А",null,null,null,null,null,null,null,null,null,null,null,null,"Общий счет РО+"]
["Вожега п, Октябрьская ул, д.67",{"$f":"\"Вожега п, Октябрьская ул, д.67\"","v":"Вожега п, Октябрьская ул, д.67"},{"$f":"\"Вожега п, Октябрьская ул, д.67\"","v":"Вожега п, Октябрьская ул, д.67"},{"$f":"\"Вожега п, Октябрьская ул, д.67\"","v":"Вожега п, Октябрьская ул, д.67"},"Вожега п, Октябрьская ул, д.67",{"$f":"\"Вожега п, Октябрьская ул, д.67\"","v":"Вожега п, Октябрьская ул, д.67"},null,null,null,null,null,null,null,{"$f":"\"Вожега п, Октябрьская ул, д.67\"","v":"Вожега п, Октябрьская ул, д.67"},null,null,null,null,null,null,null,null,null,null,null,null,null,null,null,null,"Вожега рп, Октябрьская ул, д. 67",null,null,null,null,"Вожега рп, Октябрьская ул, д. 67",null,null,null,null,null,null,null,null,null,null,"Вожега рп, Октябрьская ул, д. 67",null,null,null,null,null,null,"Вожега рп, Октябрьская ул, д. 67",null,null,null,null,null,"Вожега рп, Октябрьская ул, д. 67",null,null,null,null,null,null,null,null,"Вожега рп, Октябрьская ул, д. 67",null,null,null,null,null,"Вожега рп, Октябрьская ул, д. 67",null,null,null,null,null,null,null,"Вожега рп, Октябрьская ул, д. 67",null,null,null,null,null,null,"Вожега рп, Октябрьская ул, д. 67",null,null,null,null,null,null,null,null,"Вожега рп, Октябрьская ул, д. 67",null,null,null,null,"Вожега рп, Октябрьская ул, д. 67",null,null,null,null,null,null,null,null,"Вожега рп, Октябрьская ул, д. 67",null,null,null,null,"Вожега рп, Октябрьская ул, д. 67",null,null,null,null,"Вожега рп, Октябрьская ул, д. 67",null,null,"Вожега рп, Октябрьская ул, д. 67",null,null,null,null,null,null,null,null,null,null,null,null,"Общий счет РО+"]
["Вожега п, Октябрьская ул, д.67Б",{"$f":"\"Вожега п, Октябрьская ул, д.67Б\"","v":"Вожега п, Октябрьская ул, д.67Б"},{"$f":"\"Вожега п, Октябрьская ул, д.67Б\"","v":"Вожега п, Октябрьская ул, д.67Б"},{"$f":"\"Вожега п, Октябрьская ул, д.67Б\"","v":"Вожега п, Октябрьская ул, д.67Б"},"Вожега п, Октябрьская ул, д.67Б",{"$f":"\"Вожега п, Октябрьская ул, д.67Б\"","v":"Вожега п, Октябрьская ул, д.67Б"},null,null,null,null,null,null,null,{"$f":"\"Вожега п, Октябрьская ул, д.67Б\"","v":"Вожега п, Октябрьская ул, д.67Б"},null,null,null,null,null,null,null,null,null,null,null,null,null,null,null,null,"Вожега рп, Октябрьская ул, д. 67Б",null,null,null,null,"Вожега рп, Октябрьская ул, д. 67Б",null,null,null,null,null,null,null,null,null,null,"Вожега рп, Октябрьская ул, д. 67Б",null,null,null,null,null,null,"Вожега рп, Октябрьская ул, д. 67Б",null,null,null,null,null,"Вожега рп, Октябрьская ул, д. 67Б",null,null,null,null,null,null,null,null,"Вожега рп, Октябрьская ул, д. 67Б",null,null,null,null,null,"Вожега рп, Октябрьская ул, д. 67Б",null,null,null,null,null,null,null,"Вожега рп, Октябрьская ул, д. 67Б",null,null,null,null,null,null,"Вожега рп, Октябрьская ул, д. 67Б",null,null,null,null,null,null,null,null,"Вожега рп, Октябрьская ул, д. 67Б",null,null,null,null,"Вожега рп, Октябрьская ул, д. 67Б",null,null,null,null,null,null,null,null,"Вожега рп, Октябрьская ул, д. 67Б",null,null,null,null,"Вожега рп, Октябрьская ул, д. 67Б",null,null,null,null,"Вожега рп, Октябрьская ул, д. 67Б",null,null,"Вожега рп, Октябрьская ул, д. 67Б",null,null,null,null,null,null,null,null,null,null,null,null,"Общий счет РО+"]
["Вожега п, Октябрьская ул, д.67А",{"$f":"\"Вожега п, Октябрьская ул, д.67А\"","v":"Вожега п, Октябрьская ул, д.67А"},{"$f":"\"Вожега п, Октябрьская ул, д.67А\"","v":"Вожега п, Октябрьская ул, д.67А"},{"$f":"\"Вожега п, Октябрьская ул, д.67А\"","v":"Вожега п, Октябрьская ул, д.67А"},"Вожега п, Октябрьская ул, д.67А",{"$f":"\"Вожега п, Октябрьская ул, д.67А\"","v":"Вожега п, Октябрьская ул, д.67А"},null,null,null,null,null,null,null,{"$f":"\"Вожега п, Октябрьская ул, д.67А\"","v":"Вожега п, Октябрьская ул, д.67А"},null,null,null,null,null,null,null,null,null,null,null,null,null,null,null,null,"Вожега рп, Октябрьская ул, д. 67А",null,null,null,null,"Вожега рп, Октябрьская ул, д. 67А",null,null,null,null,null,null,null,null,null,null,"Вожега рп, Октябрьская ул, д. 67А",null,null,null,null,null,null,"Вожега рп, Октябрьская ул, д. 67А",null,null,null,null,null,"Вожега рп, Октябрьская ул, д. 67А",null,null,null,null,null,null,null,null,"Вожега рп, Октябрьская ул, д. 67А",null,null,null,null,null,"Вожега рп, Октябрьская ул, д. 67А",null,null,null,null,null,null,null,"Вожега рп, Октябрьская ул, д. 67А",null,null,null,null,null,null,"Вожега рп, Октябрьская ул, д. 67А",null,null,null,null,null,null,null,null,"Вожега рп, Октябрьская ул, д. 67А",null,null,null,null,"Вожега рп, Октябрьская ул, д. 67А",null,null,null,null,null,null,null,null,"Вожега рп, Октябрьская ул, д. 67А",null,null,null,null,"Вожега рп, Октябрьская ул, д. 67А",null,null,null,null,"Вожега рп, Октябрьская ул, д. 67А",null,null,"Вожега рп, Октябрьская ул, д. 67А",null,null,null,null,null,null,null,null,null,null,null,null,"Общий счет РО+"]
["Вожега п, Октябрьская ул, д.68А",{"$f":"\"Вожега п, Октябрьская ул, д.68А\"","v":"Вожега п, Октябрьская ул, д.68А"},{"$f":"\"Вожега п, Октябрьская ул, д.68А\"","v":"Вожега п, Октябрьская ул, д.68А"},{"$f":"\"Вожега п, Октябрьская ул, д.68А\"","v":"Вожега п, Октябрьская ул, д.68А"},"Вожега п, Октябрьская ул, д.68А",{"$f":"\"Вожега п, Октябрьская ул, д.68А\"","v":"Вожега п, Октябрьская ул, д.68А"},null,null,null,null,null,null,null,{"$f":"\"Вожега п, Октябрьская ул, д.68А\"","v":"Вожега п, Октябрьская ул, д.68А"},null,null,null,null,null,null,null,null,null,null,null,null,null,null,null,null,"Вожега рп, Октябрьская ул, д. 68А",null,null,null,null,"Вожега рп, Октябрьская ул, д. 68А",null,null,null,null,null,null,null,null,null,null,"Вожега рп, Октябрьская ул, д. 68А",null,null,null,null,null,null,"Вожега рп, Октябрьская ул, д. 68А",null,null,null,null,null,"Вожега рп, Октябрьская ул, д. 68А",null,null,null,null,null,null,null,null,"Вожега рп, Октябрьская ул, д. 68А",null,null,null,null,null,"Вожега рп, Октябрьская ул, д. 68А",null,null,null,null,null,null,null,"Вожега рп, Октябрьская ул, д. 68А",null,null,null,null,null,null,"Вожега рп, Октябрьская ул, д. 68А",null,null,null,null,null,null,null,null,"Вожега рп, Октябрьская ул, д. 68А",null,null,null,null,"Вожега рп, Октябрьская ул, д. 68А",null,null,null,null,null,null,null,null,"Вожега рп, Октябрьская ул, д. 68А",null,null,null,null,"Вожега рп, Октябрьская ул, д. 68А",null,null,null,null,"Вожега рп, Октябрьская ул, д. 68А",null,null,"Вожега рп, Октябрьская ул, д. 68А",null,null,null,null,null,null,null,null,null,null,null,null,"Общий счет РО+"]
["Вожега п, Октябрьская ул, д.68",{"$f":"\"Вожега п, Октябрьская ул, д.68\"","v":"Вожега п, Октябрьская ул, д.68"},{"$f":"\"Вожега п, Октябрьская ул, д.68\"","v":"Вожега п, Октябрьская ул, д.68"},{"$f":"\"Вожега п, Октябрьская ул, д.68\"","v":"Вожега п, Октябрьская ул, д.68"},"Вожега п, Октябрьская ул, д.68",{"$f":"\"Вожега п, Октябрьская ул, д.68\"","v":"Вожега п, Октябрьская ул, д.68"},null,null,null,null,null,null,null,{"$f":"\"Вожега п, Октябрьская ул, д.68\"","v":"Вожега п, Октябрьская ул, д.68"},null,null,null,null,null,null,null,null,null,null,null,null,null,null,null,null,"Вожега рп, Октябрьская ул, д. 68",null,null,null,null,"Вожега рп, Октябрьская ул, д. 68",null,null,null,null,null,null,null,null,null,null,"Вожега рп, Октябрьская ул, д. 68",null,null,null,null,null,null,"Вожега рп, Октябрьская ул, д. 68",null,null,null,null,null,"Вожега рп, Октябрьская ул, д. 68",null,null,null,null,null,null,null,null,"Вожега рп, Октябрьская ул, д. 68",null,null,null,null,null,"Вожега рп, Октябрьская ул, д. 68",null,null,null,null,null,null,null,"Вожега рп, Октябрьская ул, д. 68",null,null,null,null,null,null,"Вожега рп, Октябрьская ул, д. 68",null,null,null,null,null,null,null,null,"Вожега рп, Октябрьская ул, д. 68",null,null,null,null,"Вожега рп, Октябрьская ул, д. 68",null,null,null,null,null,null,null,null,"Вожега рп, Октябрьская ул, д. 68",null,null,null,null,"Вожега рп, Октябрьская ул, д. 68",null,null,null,null,"Вожега рп, Октябрьская ул, д. 68",null,null,"Вожега рп, Октябрьская ул, д. 68",null,null,null,null,null,null,null,null,null,null,null,null,"Общий счет РО+"]
["Вожега п, Октябрьская ул, д.69",{"$f":"\"Вожега п, Октябрьская ул, д.69\"","v":"Вожега п, Октябрьская ул, д.69"},{"$f":"\"Вожега п, Октябрьская ул, д.69\"","v":"Вожега п, Октябрьская ул, д.69"},{"$f":"\"Вожега п, Октябрьская ул, д.69\"","v":"Вожега п, Октябрьская ул, д.69"},"Вожега п, Октябрьская ул, д.69",{"$f":"\"Вожега п, Октябрьская ул, д.69\"","v":"Вожега п, Октябрьская ул, д.69"},null,null,null,null,null,null,null,{"$f":"\"Вожега п, Октябрьская ул, д.69\"","v":"Вожега п, Октябрьская ул, д.69"},null,null,null,null,null,null,null,null,null,null,null,null,null,null,null,null,"Вожега рп, Октябрьская ул, д. 69",null,null,null,null,"Вожега рп, Октябрьская ул, д. 69",null,null,null,null,null,null,null,null,null,null,"Вожега рп, Октябрьская ул, д. 69",null,null,null,null,null,null,"Вожега рп, Октябрьская ул, д. 69",null,null,null,null,null,"Вожега рп, Октябрьская ул, д. 69",null,null,null,null,null,null,null,null,"Вожега рп, Октябрьская ул, д. 69",null,null,null,null,null,"Вожега рп, Октябрьская ул, д. 69",null,null,null,null,null,null,null,"Вожега рп, Октябрьская ул, д. 69",null,null,null,null,null,null,"Вожега рп, Октябрьская ул, д. 69",null,null,null,null,null,null,null,null,"Вожега рп, Октябрьская ул, д. 69",null,null,null,null,"Вожега рп, Октябрьская ул, д. 69",null,null,null,null,null,null,null,null,"Вожега рп, Октябрьская ул, д. 69",null,null,null,null,"Вожега рп, Октябрьская ул, д. 69",null,null,null,null,"Вожега рп, Октябрьская ул, д. 69",null,null,"Вожега рп, Октябрьская ул, д. 69",null,null,null,null,null,null,null,null,null,null,null,null,"Общий счет РО+"]
["Вожега п, Октябрьская ул, д.70",{"$f":"\"Вожега п, Октябрьская ул, д.70\"","v":"Вожега п, Октябрьская ул, д.70"},{"$f":"\"Вожега п, Октябрьская ул, д.70\"","v":"Вожега п, Октябрьская ул, д.70"},{"$f":"\"Вожега п, Октябрьская ул, д.70\"","v":"Вожега п, Октябрьская ул, д.70"},"Вожега п, Октябрьская ул, д.70",{"$f":"\"Вожега п, Октябрьская ул, д.70\"","v":"Вожега п, Октябрьская ул, д.70"},null,null,null,null,null,null,null,{"$f":"\"Вожега п, Октябрьская ул, д.70\"","v":"Вожега п, Октябрьская ул, д.70"},null,null,null,null,null,null,null,null,null,null,null,null,null,null,null,null,"Вожега рп, Октябрьская ул, д. 70",null,null,null,null,"Вожега рп, Октябрьская ул, д. 70",null,null,null,null,null,null,null,null,null,null,"Вожега рп, Октябрьская ул, д. 70",null,null,null,null,null,null,"Вожега рп, Октябрьская ул, д. 70",null,null,null,null,null,"Вожега рп, Октябрьская ул, д. 70",null,null,null,null,null,null,null,null,"Вожега рп, Октябрьская ул, д. 70",null,null,null,null,null,"Вожега рп, Октябрьская ул, д. 70",null,null,null,null,null,null,null,"Вожега рп, Октябрьская ул, д. 70",null,null,null,null,null,null,"Вожега рп, Октябрьская ул, д. 70",null,null,null,null,null,null,null,null,"Вожега рп, Октябрьская ул, д. 70",null,null,null,null,"Вожега рп, Октябрьская ул, д. 70",null,null,null,null,null,null,null,null,"Вожега рп, Октябрьская ул, д. 70",null,null,null,null,"Вожега рп, Октябрьская ул, д. 70",null,null,null,null,"Вожега рп, Октябрьская ул, д. 70",null,null,"Вожега рп, Октябрьская ул, д. 70",null,null,null,null,null,null,null,null,null,null,null,null,"Общий счет РО+"]
["Вожега п, Октябрьская ул, д.72",{"$f":"\"Вожега п, Октябрьская ул, д.72\"","v":"Вожега п, Октябрьская ул, д.72"},{"$f":"\"Вожега п, Октябрьская ул, д.72\"","v":"Вожега п, Октябрьская ул, д.72"},{"$f":"\"Вожега п, Октябрьская ул, д.72\"","v":"Вожега п, Октябрьская ул, д.72"},"Вожега п, Октябрьская ул, д.72",{"$f":"\"Вожега п, Октябрьская ул, д.72\"","v":"Вожега п, Октябрьская ул, д.72"},null,null,null,null,null,null,null,{"$f":"\"Вожега п, Октябрьская ул, д.72\"","v":"Вожега п, Октябрьская ул, д.72"},null,null,null,null,null,null,null,null,null,null,null,null,null,null,null,null,"Вожега рп, Октябрьская ул, д. 72",null,null,null,null,"Вожега рп, Октябрьская ул, д. 72",null,null,null,null,null,null,null,null,null,null,"Вожега рп, Октябрьская ул, д. 72",null,null,null,null,null,null,"Вожега рп, Октябрьская ул, д. 72",null,null,null,null,null,"Вожега рп, Октябрьская ул, д. 72",null,null,null,null,null,null,null,null,"Вожега рп, Октябрьская ул, д. 72",null,null,null,null,null,"Вожега рп, Октябрьская ул, д. 72",null,null,null,null,null,null,null,"Вожега рп, Октябрьская ул, д. 72",null,null,null,null,null,null,"Вожега рп, Октябрьская ул, д. 72",null,null,null,null,null,null,null,null,"Вожега рп, Октябрьская ул, д. 72",null,null,null,null,"Вожега рп, Октябрьская ул, д. 72",null,null,null,null,null,null,null,null,"Вожега рп, Октябрьская ул, д. 72",null,null,null,null,"Вожега рп, Октябрьская ул, д. 72",null,null,null,null,"Вожега рп, Октябрьская ул, д. 72",null,null,"Вожега рп, Октябрьская ул, д. 72",null,null,null,null,null,null,null,null,null,null,null,null,"Общий счет РО+"]
["Вожега п, Октябрьская ул, д.73А",{"$f":"\"Вожега п, Октябрьская ул, д.73А\"","v":"Вожега п, Октябрьская ул, д.73А"},{"$f":"\"Вожега п, Октябрьская ул, д.73А\"","v":"Вожега п, Октябрьская ул, д.73А"},{"$f":"\"Вожега п, Октябрьская ул, д.73А\"","v":"Вожега п, Октябрьская ул, д.73А"},"Вожега п, Октябрьская ул, д.73А",{"$f":"\"Вожега п, Октябрьская ул, д.73А\"","v":"Вожега п, Октябрьская ул, д.73А"},null,null,null,null,null,null,null,{"$f":"\"Вожега п, Октябрьская ул, д.73А\"","v":"Вожега п, Октябрьская ул, д.73А"},null,null,null,null,null,null,null,null,null,null,null,null,null,null,null,null,"Вожега рп, Октябрьская ул, д. 73А",null,null,null,null,"Вожега рп, Октябрьская ул, д. 73А",null,null,null,null,null,null,null,null,null,null,"Вожега рп, Октябрьская ул, д. 73А",null,null,null,null,null,null,"Вожега рп, Октябрьская ул, д. 73А",null,null,null,null,null,"Вожега рп, Октябрьская ул, д. 73А",null,null,null,null,null,null,null,null,"Вожега рп, Октябрьская ул, д. 73А",null,null,null,null,null,"Вожега рп, Октябрьская ул, д. 73А",null,null,null,null,null,null,null,"Вожега рп, Октябрьская ул, д. 73А",null,null,null,null,null,null,"Вожега рп, Октябрьская ул, д. 73А",null,null,null,null,null,null,null,null,"Вожега рп, Октябрьская ул, д. 73А",null,null,null,null,"Вожега рп, Октябрьская ул, д. 73А",null,null,null,null,null,null,null,null,"Вожега рп, Октябрьская ул, д. 73А",null,null,null,null,"Вожега рп, Октябрьская ул, д. 73А",null,null,null,null,"Вожега рп, Октябрьская ул, д. 73А",null,null,"Вожега рп, Октябрьская ул, д. 73А",null,null,null,null,null,null,null,null,null,null,null,null,"Общий счет РО+"]
["Вожега п, Октябрьская ул, д.73",{"$f":"\"Вожега п, Октябрьская ул, д.73\"","v":"Вожега п, Октябрьская ул, д.73"},{"$f":"\"Вожега п, Октябрьская ул, д.73\"","v":"Вожега п, Октябрьская ул, д.73"},{"$f":"\"Вожега п, Октябрьская ул, д.73\"","v":"Вожега п, Октябрьская ул, д.73"},"Вожега п, Октябрьская ул, д.73",{"$f":"\"Вожега п, Октябрьская ул, д.73\"","v":"Вожега п, Октябрьская ул, д.73"},null,null,null,null,null,null,null,{"$f":"\"Вожега п, Октябрьская ул, д.73\"","v":"Вожега п, Октябрьская ул, д.73"},null,null,null,null,null,null,null,null,null,null,null,null,null,null,null,null,"Вожега рп, Октябрьская ул, д. 73",null,null,null,null,"Вожега рп, Октябрьская ул, д. 73",null,null,null,null,null,null,null,null,null,null,"Вожега рп, Октябрьская ул, д. 73",null,null,null,null,null,null,"Вожега рп, Октябрьская ул, д. 73",null,null,null,null,null,"Вожега рп, Октябрьская ул, д. 73",null,null,null,null,null,null,null,null,"Вожега рп, Октябрьская ул, д. 73",null,null,null,null,null,"Вожега рп, Октябрьская ул, д. 73",null,null,null,null,null,null,null,"Вожега рп, Октябрьская ул, д. 73",null,null,null,null,null,null,"Вожега рп, Октябрьская ул, д. 73",null,null,null,null,null,null,null,null,"Вожега рп, Октябрьская ул, д. 73",null,null,null,null,"Вожега рп, Октябрьская ул, д. 73",null,null,null,null,null,null,null,null,"Вожега рп, Октябрьская ул, д. 73",null,null,null,null,"Вожега рп, Октябрьская ул, д. 73",null,null,null,null,"Вожега рп, Октябрьская ул, д. 73",null,null,"Вожега рп, Октябрьская ул, д. 73",null,null,null,null,null,null,null,null,null,null,null,null,"Общий счет РО+"]
["Вожега п, Октябрьский пер, д.9",{"$f":"\"Вожега п, Октябрьский пер, д.9\"","v":"Вожега п, Октябрьский пер, д.9"},{"$f":"\"Вожега п, Октябрьский пер, д.9\"","v":"Вожега п, Октябрьский пер, д.9"},{"$f":"\"Вожега п, Октябрьский пер, д.9\"","v":"Вожега п, Октябрьский пер, д.9"},"Вожега п, Октябрьский пер, д.9",{"$f":"\"Вожега п, Октябрьский пер, д.9\"","v":"Вожега п, Октябрьский пер, д.9"},null,null,null,null,null,null,null,{"$f":"\"Вожега п, Октябрьский пер, д.9\"","v":"Вожега п, Октябрьский пер, д.9"},null,null,null,null,null,null,null,null,null,null,null,null,null,null,null,null,"Вожега рп, Октябрьский пер., д. 9",null,null,null,null,"Вожега рп, Октябрьский пер., д. 9",null,null,null,null,null,null,null,null,null,null,"Вожега рп, Октябрьский пер., д. 9",null,null,null,null,null,null,null,null,null,null,null,null,"Вожега рп, Октябрьский пер., д. 9",null,null,null,null,null,null,null,null,"Вожега рп, Октябрьский пер., д. 9",null,null,null,null,null,"Вожега рп, Октябрьский пер., д. 9",null,null,null,null,null,null,null,"Вожега рп, Октябрьский пер., д. 9",null,null,null,null,null,null,"Вожега рп, Октябрьский пер., д. 9",null,null,null,null,null,null,null,null,"Вожега рп, Октябрьский пер., д. 9",null,null,null,null,"Вожега рп, Октябрьский пер., д. 9",null,null,null,null,null,null,null,null,"Вожега рп, Октябрьский пер., д. 9",null,null,null,null,"Вожега рп, Октябрьский пер., д. 9",null,null,null,null,"Вожега рп, Октябрьский пер., д. 9",null,null,"Вожега рп, Октябрьский пер., д. 9",null,null,null,null,null,null,null,null,null,null,null,null,"Общий счет РО+",null,"Исключен 27.07.2020  Включен 28.12.2020 "]
["Вожега п, Октябрьский пер, д.22А",{"$f":"\"Вожега п, Октябрьский пер, д.22А\"","v":"Вожега п, Октябрьский пер, д.22А"},{"$f":"\"Вожега п, Октябрьский пер, д.22А\"","v":"Вожега п, Октябрьский пер, д.22А"},{"$f":"\"Вожега п, Октябрьский пер, д.22А\"","v":"Вожега п, Октябрьский пер, д.22А"},"Вожега п, Октябрьский пер, д.22А",{"$f":"\"Вожега п, Октябрьский пер, д.22А\"","v":"Вожега п, Октябрьский пер, д.22А"},null,null,null,null,null,null,null,{"$f":"\"Вожега п, Октябрьский пер, д.22А\"","v":"Вожега п, Октябрьский пер, д.22А"},null,null,null,null,null,null,null,null,null,null,null,null,null,null,null,null,"Вожега рп, Октябрьский пер., д. 22А",null,null,null,null,"Вожега рп, Октябрьский пер., д. 22А",null,null,null,null,null,null,null,null,null,null,"Вожега рп, Октябрьский пер., д. 22А",null,null,null,null,null,null,"Вожега рп, Октябрьский пер., д. 22А",null,null,null,null,null,"Вожега рп, Октябрьский пер., д. 22А",null,null,null,null,null,null,null,null,"Вожега рп, Октябрьский пер., д. 22А",null,null,null,null,null,"Вожега рп, Октябрьский пер., д. 22А",null,null,null,null,null,null,null,"Вожега рп, Октябрьский пер., д. 22А",null,null,null,null,null,null,"Вожега рп, Октябрьский пер., д. 22А",null,null,null,null,null,null,null,null,"Вожега рп, Октябрьский пер., д. 22А",null,null,null,null,"Вожега рп, Октябрьский пер., д. 22А",null,null,null,null,null,null,null,null,"Вожега рп, Октябрьский пер., д. 22А",null,null,null,null,"Вожега рп, Октябрьский пер., д. 22А",null,null,null,null,"Вожега рп, Октябрьский пер., д. 22А",null,null,"Вожега рп, Октябрьский пер., д. 22А",null,null,null,null,null,null,null,null,null,null,null,null,"Общий счет РО+"]
["Вожега п, Путейская ул, д.1",{"$f":"\"Вожега п, Путейская ул, д.1\"","v":"Вожега п, Путейская ул, д.1"},{"$f":"\"Вожега п, Путейская ул, д.1\"","v":"Вожега п, Путейская ул, д.1"},{"$f":"\"Вожега п, Путейская ул, д.1\"","v":"Вожега п, Путейская ул, д.1"},"Вожега п, Путейская ул, д.1",{"$f":"\"Вожега п, Путейская ул, д.1\"","v":"Вожега п, Путейская ул, д.1"},null,null,null,null,null,null,null,{"$f":"\"Вожега п, Путейская ул, д.1\"","v":"Вожега п, Путейская ул, д.1"},null,null,null,null,null,null,null,null,null,null,null,null,null,null,null,null,"Вожега рп, Путейская ул, д. 1",null,null,null,null,"Вожега рп, Путейская ул, д. 1",null,null,null,null,null,null,null,null,null,null,"Вожега рп, Путейская ул, д. 1",null,null,null,null,null,null,"Вожега рп, Путейская ул, д. 1",null,null,null,null,null,"Вожега рп, Путейская ул, д. 1",null,null,null,null,null,null,null,null,"Вожега рп, Путейская ул, д. 1",null,null,null,null,null,"Вожега рп, Путейская ул, д. 1",null,null,null,null,null,null,null,"Вожега рп, Путейская ул, д. 1",null,null,null,null,null,null,"Вожега рп, Путейская ул, д. 1",null,null,null,null,null,null,null,null,"Вожега рп, Путейская ул, д. 1",null,null,null,null,"Вожега рп, Путейская ул, д. 1",null,null,null,null,null,null,null,null,"Вожега рп, Путейская ул, д. 1",null,null,null,null,"Вожега рп, Путейская ул, д. 1",null,null,null,null,"Вожега рп, Путейская ул, д. 1",null,null,"Вожега рп, Путейская ул, д. 1",null,null,null,null,null,null,null,null,null,null,null,null,"Общий счет РО+"]
["Вожега п, Путейская ул, д.2",{"$f":"\"Вожега п, Путейская ул, д.2\"","v":"Вожега п, Путейская ул, д.2"},{"$f":"\"Вожега п, Путейская ул, д.2\"","v":"Вожега п, Путейская ул, д.2"},{"$f":"\"Вожега п, Путейская ул, д.2\"","v":"Вожега п, Путейская ул, д.2"},"Вожега п, Путейская ул, д.2",{"$f":"\"Вожега п, Путейская ул, д.2\"","v":"Вожега п, Путейская ул, д.2"},null,null,null,null,null,null,null,{"$f":"\"Вожега п, Путейская ул, д.2\"","v":"Вожега п, Путейская ул, д.2"},null,null,null,null,null,null,null,null,null,null,null,null,null,null,null,null,"Вожега рп, Путейская ул, д. 2",null,null,null,null,"Вожега рп, Путейская ул, д. 2",null,null,null,null,null,null,null,null,null,null,"Вожега рп, Путейская ул, д. 2",null,null,null,null,null,null,"Вожега рп, Путейская ул, д. 2",null,null,null,null,null,"Вожега рп, Путейская ул, д. 2",null,null,null,null,null,null,null,null,"Вожега рп, Путейская ул, д. 2",null,null,null,null,null,"Вожега рп, Путейская ул, д. 2",null,null,null,null,null,null,null,"Вожега рп, Путейская ул, д. 2",null,null,null,null,null,null,"Вожега рп, Путейская ул, д. 2",null,null,null,null,null,null,null,null,"Вожега рп, Путейская ул, д. 2",null,null,null,null,"Вожега рп, Путейская ул, д. 2",null,null,null,null,null,null,null,null,"Вожега рп, Путейская ул, д. 2",null,null,null,null,"Вожега рп, Путейская ул, д. 2",null,null,null,null,"Вожега рп, Путейская ул, д. 2",null,null,"Вожега рп, Путейская ул, д. 2",null,null,null,null,null,null,null,null,null,null,null,null,"Общий счет РО+"]
["Вожега п, Путейская ул, д.3",{"$f":"\"Вожега п, Путейская ул, д.3\"","v":"Вожега п, Путейская ул, д.3"},{"$f":"\"Вожега п, Путейская ул, д.3\"","v":"Вожега п, Путейская ул, д.3"},{"$f":"\"Вожега п, Путейская ул, д.3\"","v":"Вожега п, Путейская ул, д.3"},"Вожега п, Путейская ул, д.3",{"$f":"\"Вожега п, Путейская ул, д.3\"","v":"Вожега п, Путейская ул, д.3"},null,null,null,null,null,null,null,{"$f":"\"Вожега п, Путейская ул, д.3\"","v":"Вожега п, Путейская ул, д.3"},null,null,null,null,null,null,null,null,null,null,null,null,null,null,null,null,"Вожега рп, Путейская ул, д. 3",null,null,null,null,"Вожега рп, Путейская ул, д. 3",null,null,null,null,null,null,null,null,null,null,"Вожега рп, Путейская ул, д. 3",null,null,null,null,null,null,"Вожега рп, Путейская ул, д. 3",null,null,null,null,null,"Вожега рп, Путейская ул, д. 3",null,null,null,null,null,null,null,null,"Вожега рп, Путейская ул, д. 3",null,null,null,null,null,"Вожега рп, Путейская ул, д. 3",null,null,null,null,null,null,null,"Вожега рп, Путейская ул, д. 3",null,null,null,null,null,null,"Вожега рп, Путейская ул, д. 3",null,null,null,null,null,null,null,null,"Вожега рп, Путейская ул, д. 3",null,null,null,null,"Вожега рп, Путейская ул, д. 3",null,null,null,null,null,null,null,null,"Вожега рп, Путейская ул, д. 3",null,null,null,null,"Вожега рп, Путейская ул, д. 3",null,null,null,null,"Вожега рп, Путейская ул, д. 3",null,null,"Вожега рп, Путейская ул, д. 3",null,null,null,null,null,null,null,null,null,null,null,null,"Общий счет РО+"]
["Вожега п, Путейская ул, д.4",{"$f":"\"Вожега п, Путейская ул, д.4\"","v":"Вожега п, Путейская ул, д.4"},{"$f":"\"Вожега п, Путейская ул, д.4\"","v":"Вожега п, Путейская ул, д.4"},{"$f":"\"Вожега п, Путейская ул, д.4\"","v":"Вожега п, Путейская ул, д.4"},"Вожега п, Путейская ул, д.4",{"$f":"\"Вожега п, Путейская ул, д.4\"","v":"Вожега п, Путейская ул, д.4"},null,null,null,null,null,null,null,{"$f":"\"Вожега п, Путейская ул, д.4\"","v":"Вожега п, Путейская ул, д.4"},null,null,null,null,null,null,null,null,null,null,null,null,null,null,null,null,"Вожега рп, Путейская ул, д. 4",null,null,null,null,"Вожега рп, Путейская ул, д. 4",null,null,null,null,null,null,null,null,null,null,"Вожега рп, Путейская ул, д. 4",null,null,null,null,null,null,"Вожега рп, Путейская ул, д. 4",null,null,null,null,null,"Вожега рп, Путейская ул, д. 4",null,null,null,null,null,null,null,null,"Вожега рп, Путейская ул, д. 4",null,null,null,null,null,"Вожега рп, Путейская ул, д. 4",null,null,null,null,null,null,null,"Вожега рп, Путейская ул, д. 4",null,null,null,null,null,null,"Вожега рп, Путейская ул, д. 4",null,null,null,null,null,null,null,null,"Вожега рп, Путейская ул, д. 4",null,null,null,null,"Вожега рп, Путейская ул, д. 4",null,null,null,null,null,null,null,null,"Вожега рп, Путейская ул, д. 4",null,null,null,null,"Вожега рп, Путейская ул, д. 4",null,null,null,null,"Вожега рп, Путейская ул, д. 4",null,null,"Вожега рп, Путейская ул, д. 4",null,null,null,null,null,null,null,null,null,null,null,null,"Общий счет РО+"]
["Вожега п, Путейская ул, д.6",{"$f":"\"Вожега п, Путейская ул, д.6\"","v":"Вожега п, Путейская ул, д.6"},{"$f":"\"Вожега п, Путейская ул, д.6\"","v":"Вожега п, Путейская ул, д.6"},{"$f":"\"Вожега п, Путейская ул, д.6\"","v":"Вожега п, Путейская ул, д.6"},"Вожега п, Путейская ул, д.6",{"$f":"\"Вожега п, Путейская ул, д.6\"","v":"Вожега п, Путейская ул, д.6"},null,null,null,null,null,null,null,{"$f":"\"Вожега п, Путейская ул, д.6\"","v":"Вожега п, Путейская ул, д.6"},null,null,null,null,null,null,null,null,null,null,null,null,null,null,null,null,"Вожега рп, Путейская ул, д. 6",null,null,null,null,"Вожега рп, Путейская ул, д. 6",null,null,null,null,null,null,null,null,null,null,"Вожега рп, Путейская ул, д. 6",null,null,null,null,null,null,"Вожега рп, Путейская ул, д. 6",null,null,null,null,null,"Вожега рп, Путейская ул, д. 6",null,null,null,null,null,null,null,null,"Вожега рп, Путейская ул, д. 6",null,null,null,null,null,"Вожега рп, Путейская ул, д. 6",null,null,null,null,null,null,null,"Вожега рп, Путейская ул, д. 6",null,null,null,null,null,null,"Вожега рп, Путейская ул, д. 6",null,null,null,null,null,null,null,null,"Вожега рп, Путейская ул, д. 6",null,null,null,null,"Вожега рп, Путейская ул, д. 6",null,null,null,null,null,null,null,null,"Вожега рп, Путейская ул, д. 6",null,null,null,null,"Вожега рп, Путейская ул, д. 6",null,null,null,null,"Вожега рп, Путейская ул, д. 6",null,null,"Вожега рп, Путейская ул, д. 6",null,null,null,null,null,null,null,null,null,null,null,null,"Общий счет РО+"]
["Вожега п, Рабочая ул, д.34",{"$f":"\"Вожега п, Рабочая ул, д.34\"","v":"Вожега п, Рабочая ул, д.34"},{"$f":"\"Вожега п, Рабочая ул, д.34\"","v":"Вожега п, Рабочая ул, д.34"},{"$f":"\"Вожега п, Рабочая ул, д.34\"","v":"Вожега п, Рабочая ул, д.34"},"Вожега п, Рабочая ул, д.34",{"$f":"\"Вожега п, Рабочая ул, д.34\"","v":"Вожега п, Рабочая ул, д.34"},null,null,null,null,null,null,null,{"$f":"\"Вожега п, Рабочая ул, д.34\"","v":"Вожега п, Рабочая ул, д.34"},null,null,null,null,null,null,null,null,null,null,null,null,null,null,null,null,"Вожега рп, Рабочая ул, д. 34",null,null,null,null,"Вожега рп, Рабочая ул, д. 34",null,null,null,null,null,null,null,null,null,null,"Вожега рп, Рабочая ул, д. 34",null,null,null,null,null,null,"Вожега рп, Рабочая ул, д. 34",null,null,null,null,null,"Вожега рп, Рабочая ул, д. 34",null,null,null,null,null,null,null,null,"Вожега рп, Рабочая ул, д. 34",null,null,null,null,null,"Вожега рп, Рабочая ул, д. 34",null,null,null,null,null,null,null,null,null,null,null,null,null,null,null,null,null,null,null,null,null,null,null,null,null,null,null,null,null,null,null,null,null,null,null,null,null,null,null,null,null,null,null,null,null,null,null,null,null,null,null,null,null,null,null,null,null,null,null,null,null,null,null,"Общий счет РО - 326,60","Признан аварийным. Постановление № 250 от 24.06.2022","Исключен 19.09.2022"]
["Вожега п, Садовая ул, д.11",{"$f":"\"Вожега п, Садовая ул, д.11\"","v":"Вожега п, Садовая ул, д.11"},{"$f":"\"Вожега п, Садовая ул, д.11\"","v":"Вожега п, Садовая ул, д.11"},{"$f":"\"Вожега п, Садовая ул, д.11\"","v":"Вожега п, Садовая ул, д.11"},"Вожега п, Садовая ул, д.11",{"$f":"\"Вожега п, Садовая ул, д.11\"","v":"Вожега п, Садовая ул, д.11"},null,null,null,null,null,null,null,{"$f":"\"Вожега п, Садовая ул, д.11\"","v":"Вожега п, Садовая ул, д.11"},null,null,null,null,null,null,null,null,null,null,null,null,null,null,null,null,"Вожега рп, Садовая ул, д. 11",null,null,null,null,"Вожега рп, Садовая ул, д. 11",null,null,null,null,null,null,null,null,null,null,"Вожега рп, Садовая ул, д. 11",null,null,null,null,null,null,"Вожега рп, Садовая ул, д. 11",null,null,null,null,null,"Вожега рп, Садовая ул, д. 11",null,null,null,null,null,null,null,null,"Вожега рп, Садовая ул, д. 11",null,null,null,null,null,"Вожега рп, Садовая ул, д. 11",null,null,null,null,null,null,null,"Вожега рп, Садовая ул, д. 11",null,null,null,null,null,null,"Вожега рп, Садовая ул, д. 11",null,null,null,null,null,null,null,null,"Вожега рп, Садовая ул, д. 11",null,null,null,null,"Вожега рп, Садовая ул, д. 11",null,null,null,null,null,null,null,null,"Вожега рп, Садовая ул, д. 11",null,null,null,null,"Вожега рп, Садовая ул, д. 11",null,null,null,null,"Вожега рп, Садовая ул, д. 11",null,null,"Вожега рп, Садовая ул, д. 11",null,null,null,null,null,null,null,null,null,null,null,null,"Общий счет РО+"]
["Вожега п, Садовая ул, д.13",{"$f":"\"Вожега п, Садовая ул, д.13\"","v":"Вожега п, Садовая ул, д.13"},{"$f":"\"Вожега п, Садовая ул, д.13\"","v":"Вожега п, Садовая ул, д.13"},{"$f":"\"Вожега п, Садовая ул, д.13\"","v":"Вожега п, Садовая ул, д.13"},"Вожега п, Садовая ул, д.13",{"$f":"\"Вожега п, Садовая ул, д.13\"","v":"Вожега п, Садовая ул, д.13"},null,null,null,null,null,null,null,{"$f":"\"Вожега п, Садовая ул, д.13\"","v":"Вожега п, Садовая ул, д.13"},null,null,null,null,null,null,null,null,null,null,null,null,null,null,null,null,"Вожега рп, Садовая ул, д. 13",null,null,null,null,"Вожега рп, Садовая ул, д. 13",null,null,null,null,null,null,null,null,null,null,"Вожега рп, Садовая ул, д. 13",null,null,null,null,null,null,"Вожега рп, Садовая ул, д. 13",null,null,null,null,null,"Вожега рп, Садовая ул, д. 13",null,null,null,null,null,null,null,null,"Вожега рп, Садовая ул, д. 13",null,null,null,null,null,"Вожега рп, Садовая ул, д. 13",null,null,null,null,null,null,null,"Вожега рп, Садовая ул, д. 13",null,null,null,null,null,null,"Вожега рп, Садовая ул, д. 13",null,null,null,null,null,null,null,null,"Вожега рп, Садовая ул, д. 13",null,null,null,null,"Вожега рп, Садовая ул, д. 13",null,null,null,null,null,null,null,null,"Вожега рп, Садовая ул, д. 13",null,null,null,null,"Вожега рп, Садовая ул, д. 13",null,null,null,null,"Вожега рп, Садовая ул, д. 13",null,null,"Вожега рп, Садовая ул, д. 13",null,null,null,null,null,null,null,null,null,null,null,null,"Общий счет РО+"]
["Вожега п, Садовая ул, д.16",{"$f":"\"Вожега п, Садовая ул, д.16\"","v":"Вожега п, Садовая ул, д.16"},{"$f":"\"Вожега п, Садовая ул, д.16\"","v":"Вожега п, Садовая ул, д.16"},{"$f":"\"Вожега п, Садовая ул, д.16\"","v":"Вожега п, Садовая ул, д.16"},"Вожега п, Садовая ул, д.16",{"$f":"\"Вожега п, Садовая ул, д.16\"","v":"Вожега п, Садовая ул, д.16"},null,null,null,null,null,null,null,{"$f":"\"Вожега п, Садовая ул, д.16\"","v":"Вожега п, Садовая ул, д.16"},null,null,null,null,null,null,null,null,null,null,null,null,null,null,null,null,"Вожега рп, Садовая ул, д. 16",null,null,null,null,"Вожега рп, Садовая ул, д. 16",null,null,null,null,null,null,null,null,null,null,"Вожега рп, Садовая ул, д. 16",null,null,null,null,null,null,"Вожега рп, Садовая ул, д. 16",null,null,null,null,null,"Вожега рп, Садовая ул, д. 16",null,null,null,null,null,null,null,null,"Вожега рп, Садовая ул, д. 16",null,null,null,null,null,"Вожега рп, Садовая ул, д. 16",null,null,null,null,null,null,null,"Вожега рп, Садовая ул, д. 16",null,null,null,null,null,null,"Вожега рп, Садовая ул, д. 16",null,null,null,null,null,null,null,null,"Вожега рп, Садовая ул, д. 16",null,null,null,null,"Вожега рп, Садовая ул, д. 16",null,null,null,null,null,null,null,null,"Вожега рп, Садовая ул, д. 16",null,null,null,null,"Вожега рп, Садовая ул, д. 16",null,null,null,null,"Вожега рп, Садовая ул, д. 16",null,null,"Вожега рп, Садовая ул, д. 16",null,null,null,null,null,null,null,null,null,null,null,null,"Общий счет РО+"]
[null,{"$f":"\"Вожега п, Садовая ул, д.18\"","v":"Вожега п, Садовая ул, д.18"},{"$f":"\"Вожега п, Садовая ул, д.18\"","v":"Вожега п, Садовая ул, д.18"},{"$f":"\"Вожега п, Садовая ул, д.18\"","v":"Вожега п, Садовая ул, д.18"},"Вожега п, Садовая ул, д.18",{"$f":"\"Вожега п, Садовая ул, д.18\"","v":"Вожега п, Садовая ул, д.18"},null,null,null,null,null,null,null,{"$f":"\"Вожега п, Садовая ул, д.18\"","v":"Вожега п, Садовая ул, д.18"},null,null,null,null,null,null,null,null,null,null,null,null,null,null,null,null,"Вожега рп, Садовая ул, д. 18",null,null,null,null,"Вожега рп, Садовая ул, д. 18",null,null,null,null,null,null,null,null,null,null,"Вожега рп, Садовая ул, д. 18",null,null,null,null,null,null,"Вожега рп, Садовая ул, д. 18",null,null,null,null,null,"Вожега рп, Садовая ул, д. 18",null,null,null,null,null,null,null,null,"Вожега рп, Садовая ул, д. 18",null,null,null,null,null,"Вожега рп, Садовая ул, д. 18",null,null,null,null,null,null,null,"Вожега рп, Садовая ул, д. 18",null,null,null,null,null,null,"Вожега рп, Садовая ул, д. 18",null,null,null,null,null,null,null,null,"Вожега рп, Садовая ул, д. 18",null,null,null,null,"Вожега рп, Садовая ул, д. 18",null,null,null,null,null,null,null,null,"Вожега рп, Садовая ул, д. 18",null,null,null,null,"Вожега рп, Садовая ул, д. 18",null,null,null,null,"Вожега рп, Садовая ул, д. 18",null,null,"Вожега рп, Садовая ул, д. 18",null,null,null,null,null,null,null,null,null,null,null,null,"Общий счет РО+"]
["Вожега п, Садовая ул, д.20",{"$f":"\"Вожега п, Садовая ул, д.20\"","v":"Вожега п, Садовая ул, д.20"},{"$f":"\"Вожега п, Садовая ул, д.20\"","v":"Вожега п, Садовая ул, д.20"},{"$f":"\"Вожега п, Садовая ул, д.20\"","v":"Вожега п, Садовая ул, д.20"},"Вожега п, Садовая ул, д.20",{"$f":"\"Вожега п, Садовая ул, д.20\"","v":"Вожега п, Садовая ул, д.20"},null,null,null,null,null,null,null,null,null,null,null,null,null,null,null,null,null,null,null,null,null,null,null,null,null,null,null,null,null,null,null,null,null,null,null,null,null,null,null,null,null,null,null,null,null,null,null,null,null,null,null,null,null,null,null,null,null,null,null,null,null,null,null,null,null,null,null,null,null,null,null,null,null,null,null,null,null,null,null,null,null,null,null,null,null,null,null,null,null,null,null,null,null,null,null,null,null,null,null,null,null,null,null,null,null,null,null,null,null,null,null,null,null,null,null,null,null,null,null,null,null,null,null,null,null,null,null,null,null,null,null,null,"Общий счет РО 374,60","аварийный с 06.10.2016 постановление № 220","Исключен 10.07.2017"]
["Вожега п, Садовая ул, д.21",{"$f":"\"Вожега п, Садовая ул, д.21\"","v":"Вожега п, Садовая ул, д.21"},{"$f":"\"Вожега п, Садовая ул, д.21\"","v":"Вожега п, Садовая ул, д.21"},{"$f":"\"Вожега п, Садовая ул, д.21\"","v":"Вожега п, Садовая ул, д.21"},"Вожега п, Садовая ул, д.21",{"$f":"\"Вожега п, Садовая ул, д.21\"","v":"Вожега п, Садовая ул, д.21"},null,null,null,null,null,null,null,{"$f":"\"Вожега п, Садовая ул, д.21\"","v":"Вожега п, Садовая ул, д.21"},null,null,null,null,null,null,null,null,null,null,null,null,null,null,null,null,"Вожега рп, Садовая ул, д. 21",null,null,null,null,"Вожега рп, Садовая ул, д. 21",null,null,null,null,null,null,null,null,null,null,"Вожега рп, Садовая ул, д. 21",null,null,null,null,null,null,"Вожега рп, Садовая ул, д. 21",null,null,null,null,null,"Вожега рп, Садовая ул, д. 21",null,null,null,null,null,null,null,null,"Вожега рп, Садовая ул, д. 21",null,null,null,null,null,"Вожега рп, Садовая ул, д. 21",null,null,null,null,null,null,null,"Вожега рп, Садовая ул, д. 21",null,null,null,null,null,null,"Вожега рп, Садовая ул, д. 21",null,null,null,null,null,null,null,null,"Вожега рп, Садовая ул, д. 21",null,null,null,null,"Вожега рп, Садовая ул, д. 21",null,null,null,null,null,null,null,null,"Вожега рп, Садовая ул, д. 21",null,null,null,null,"Вожега рп, Садовая ул, д. 21",null,null,null,null,"Вожега рп, Садовая ул, д. 21",null,null,"Вожега рп, Садовая ул, д. 21",null,null,null,null,null,null,null,null,null,null,null,null,"Общий счет РО+"]
["Вожега п, Садовая ул, д.22",{"$f":"\"Вожега п, Садовая ул, д.22\"","v":"Вожега п, Садовая ул, д.22"},{"$f":"\"Вожега п, Садовая ул, д.22\"","v":"Вожега п, Садовая ул, д.22"},{"$f":"\"Вожега п, Садовая ул, д.22\"","v":"Вожега п, Садовая ул, д.22"},"Вожега п, Садовая ул, д.22",{"$f":"\"Вожега п, Садовая ул, д.22\"","v":"Вожега п, Садовая ул, д.22"},null,null,null,null,null,null,null,{"$f":"\"Вожега п, Садовая ул, д.22\"","v":"Вожега п, Садовая ул, д.22"},null,null,null,null,null,null,null,null,null,null,null,null,null,null,null,null,"Вожега рп, Садовая ул, д. 22",null,null,null,null,"Вожега рп, Садовая ул, д. 22",null,null,null,null,null,null,null,null,null,null,"Вожега рп, Садовая ул, д. 22",null,null,null,null,null,null,"Вожега рп, Садовая ул, д. 22",null,null,null,null,null,"Вожега рп, Садовая ул, д. 22",null,null,null,null,null,null,null,null,"Вожега рп, Садовая ул, д. 22",null,null,null,null,null,"Вожега рп, Садовая ул, д. 22",null,null,null,null,null,null,null,"Вожега рп, Садовая ул, д. 22",null,null,null,null,null,null,"Вожега рп, Садовая ул, д. 22",null,null,null,null,null,null,null,null,"Вожега рп, Садовая ул, д. 22",null,null,null,null,"Вожега рп, Садовая ул, д. 22",null,null,null,null,null,null,null,null,"Вожега рп, Садовая ул, д. 22",null,null,null,null,null,null,null,null,null,null,null,null,null,null,null,null,null,null,null,null,null,null,null,null,null,"Общий счет РО+715,80","Признан аварийным. Постановление 1504 от 27.12.2024","Исключен 02.04.2025"]
["Вожега п, Садовая ул, д.25",{"$f":"\"Вожега п, Садовая ул, д.25\"","v":"Вожега п, Садовая ул, д.25"},{"$f":"\"Вожега п, Садовая ул, д.25\"","v":"Вожега п, Садовая ул, д.25"},{"$f":"\"Вожега п, Садовая ул, д.25\"","v":"Вожега п, Садовая ул, д.25"},"Вожега п, Садовая ул, д.25",{"$f":"\"Вожега п, Садовая ул, д.25\"","v":"Вожега п, Садовая ул, д.25"},null,null,null,null,null,null,null,{"$f":"\"Вожега п, Садовая ул, д.25\"","v":"Вожега п, Садовая ул, д.25"},null,null,null,null,null,null,null,null,null,null,null,null,null,null,null,null,"Вожега рп, Садовая ул, д. 25",null,null,null,null,"Вожега рп, Садовая ул, д. 25",null,null,null,null,null,null,null,null,null,null,"Вожега рп, Садовая ул, д. 25",null,null,null,null,null,null,"Вожега рп, Садовая ул, д. 25",null,null,null,null,null,"Вожега рп, Садовая ул, д. 25",null,null,null,null,null,null,null,null,"Вожега рп, Садовая ул, д. 25",null,null,null,null,null,"Вожега рп, Садовая ул, д. 25",null,null,null,null,null,null,null,"Вожега рп, Садовая ул, д. 25",null,null,null,null,null,null,"Вожега рп, Садовая ул, д. 25",null,null,null,null,null,null,null,null,"Вожега рп, Садовая ул, д. 25",null,null,null,null,"Вожега рп, Садовая ул, д. 25",null,null,null,null,null,null,null,null,"Вожега рп, Садовая ул, д. 25",null,null,null,null,"Вожега рп, Садовая ул, д. 25",null,null,null,null,"Вожега рп, Садовая ул, д. 25",null,null,null,null,null,null,null,null,null,null,null,null,null,null,null,"Общий счет РО+455,80","Признан аварийным. Постановление 1009 от 06.10.2025","Исключен 03.12.2025"]
["Вожега п, Садовая ул, д.26",{"$f":"\"Вожега п, Садовая ул, д.26\"","v":"Вожега п, Садовая ул, д.26"},{"$f":"\"Вожега п, Садовая ул, д.26\"","v":"Вожега п, Садовая ул, д.26"},{"$f":"\"Вожега п, Садовая ул, д.26\"","v":"Вожега п, Садовая ул, д.26"},"Вожега п, Садовая ул, д.26",{"$f":"\"Вожега п, Садовая ул, д.26\"","v":"Вожега п, Садовая ул, д.26"},null,null,null,null,null,null,null,{"$f":"\"Вожега п, Садовая ул, д.26\"","v":"Вожега п, Садовая ул, д.26"},null,null,null,null,null,null,null,null,null,null,null,null,null,null,null,null,"Вожега рп, Садовая ул, д. 26",null,null,null,null,"Вожега рп, Садовая ул, д. 26",null,null,null,null,null,null,null,null,null,null,"Вожега рп, Садовая ул, д. 26",null,null,null,null,null,null,"Вожега рп, Садовая ул, д. 26",null,null,null,null,null,"Вожега рп, Садовая ул, д. 26",null,null,null,null,null,null,null,null,"Вожега рп, Садовая ул, д. 26",null,null,null,null,null,"Вожега рп, Садовая ул, д. 26",null,null,null,null,null,null,null,"Вожега рп, Садовая ул, д. 26",null,null,null,null,null,null,"Вожега рп, Садовая ул, д. 26",null,null,null,null,null,null,null,null,"Вожега рп, Садовая ул, д. 26",null,null,null,null,"Вожега рп, Садовая ул, д. 26",null,null,null,null,null,null,null,null,"Вожега рп, Садовая ул, д. 26",null,null,null,null,"Вожега рп, Садовая ул, д. 26",null,null,null,null,"Вожега рп, Садовая ул, д. 26",null,null,"Вожега рп, Садовая ул, д. 26",null,null,null,null,null,null,null,null,null,null,null,null,"Общий счет РО+"]
["Вожега п, Садовая ул, д.27",{"$f":"\"Вожега п, Садовая ул, д.27\"","v":"Вожега п, Садовая ул, д.27"},{"$f":"\"Вожега п, Садовая ул, д.27\"","v":"Вожега п, Садовая ул, д.27"},{"$f":"\"Вожега п, Садовая ул, д.27\"","v":"Вожега п, Садовая ул, д.27"},"Вожега п, Садовая ул, д.27",{"$f":"\"Вожега п, Садовая ул, д.27\"","v":"Вожега п, Садовая ул, д.27"},null,null,null,null,null,null,null,{"$f":"\"Вожега п, Садовая ул, д.27\"","v":"Вожега п, Садовая ул, д.27"},null,null,null,null,null,null,null,null,null,null,null,null,null,null,null,null,"Вожега рп, Садовая ул, д. 27",null,null,null,null,"Вожега рп, Садовая ул, д. 27",null,null,null,null,null,null,null,null,null,null,"Вожега рп, Садовая ул, д. 27",null,null,null,null,null,null,"Вожега рп, Садовая ул, д. 27",null,null,null,null,null,"Вожега рп, Садовая ул, д. 27",null,null,null,null,null,null,null,null,"Вожега рп, Садовая ул, д. 27",null,null,null,null,null,"Вожега рп, Садовая ул, д. 27",null,null,null,null,null,null,null,"Вожега рп, Садовая ул, д. 27",null,null,null,null,null,null,"Вожега рп, Садовая ул, д. 27",null,null,null,null,null,null,null,null,"Вожега рп, Садовая ул, д. 27",null,null,null,null,"Вожега рп, Садовая ул, д. 27",null,null,null,null,null,null,null,null,"Вожега рп, Садовая ул, д. 27",null,null,null,null,"Вожега рп, Садовая ул, д. 27",null,null,null,null,"Вожега рп, Садовая ул, д. 27",null,null,"Вожега рп, Садовая ул, д. 27",null,null,null,null,null,null,null,null,null,null,null,null,"Общий счет РО+"]
["Вожега п, Садовая ул, д.28",{"$f":"\"Вожега п, Садовая ул, д.28\"","v":"Вожега п, Садовая ул, д.28"},{"$f":"\"Вожега п, Садовая ул, д.28\"","v":"Вожега п, Садовая ул, д.28"},{"$f":"\"Вожега п, Садовая ул, д.28\"","v":"Вожега п, Садовая ул, д.28"},"Вожега п, Садовая ул, д.28",{"$f":"\"Вожега п, Садовая ул, д.28\"","v":"Вожега п, Садовая ул, д.28"},null,null,null,null,null,null,null,{"$f":"\"Вожега п, Садовая ул, д.28\"","v":"Вожега п, Садовая ул, д.28"},null,null,null,null,null,null,null,null,null,null,null,null,null,null,null,null,"Вожега рп, Садовая ул, д. 28",null,null,null,null,"Вожега рп, Садовая ул, д. 28",null,null,null,null,null,null,null,null,null,null,"Вожега рп, Садовая ул, д. 28",null,null,null,null,null,null,"Вожега рп, Садовая ул, д. 28",null,null,null,null,null,"Вожега рп, Садовая ул, д. 28",null,null,null,null,null,null,null,null,"Вожега рп, Садовая ул, д. 28",null,null,null,null,null,"Вожега рп, Садовая ул, д. 28",null,null,null,null,null,null,null,"Вожега рп, Садовая ул, д. 28",null,null,null,null,null,null,"Вожега рп, Садовая ул, д. 28",null,null,null,null,null,null,null,null,"Вожега рп, Садовая ул, д. 28",null,null,null,null,"Вожега рп, Садовая ул, д. 28",null,null,null,null,null,null,null,null,"Вожега рп, Садовая ул, д. 28",null,null,null,null,"Вожега рп, Садовая ул, д. 28",null,null,null,null,"Вожега рп, Садовая ул, д. 28",null,null,"Вожега рп, Садовая ул, д. 28",null,null,null,null,null,null,null,null,null,null,null,null,"Общий счет РО+"]
["Вожега п, Садовая ул, д.29А",{"$f":"\"Вожега п, Садовая ул, д.29А\"","v":"Вожега п, Садовая ул, д.29А"},{"$f":"\"Вожега п, Садовая ул, д.29А\"","v":"Вожега п, Садовая ул, д.29А"},{"$f":"\"Вожега п, Садовая ул, д.29А\"","v":"Вожега п, Садовая ул, д.29А"},"Вожега п, Садовая ул, д.29А",{"$f":"\"Вожега п, Садовая ул, д.29А\"","v":"Вожега п, Садовая ул, д.29А"},null,null,null,null,null,null,null,{"$f":"\"Вожега п, Садовая ул, д.29А\"","v":"Вожега п, Садовая ул, д.29А"},null,null,null,null,null,null,null,null,null,null,null,null,null,null,null,null,"Вожега рп, Садовая ул, д. 29А",null,null,null,null,"Вожега рп, Садовая ул, д. 29А",null,null,null,null,null,null,null,null,null,null,"Вожега рп, Садовая ул, д. 29А",null,null,null,null,null,null,"Вожега рп, Садовая ул, д. 29А",null,null,null,null,null,"Вожега рп, Садовая ул, д. 29А",null,null,null,null,null,null,null,null,"Вожега рп, Садовая ул, д. 29А",null,null,null,null,null,"Вожега рп, Садовая ул, д. 29А",null,null,null,null,null,null,null,"Вожега рп, Садовая ул, д. 29А",null,null,null,null,null,null,"Вожега рп, Садовая ул, д. 29А",null,null,null,null,null,null,null,null,"Вожега рп, Садовая ул, д. 29А",null,null,null,null,"Вожега рп, Садовая ул, д. 29А",null,null,null,null,null,null,null,null,"Вожега рп, Садовая ул, д. 29А",null,null,null,null,"Вожега рп, Садовая ул, д. 29А",null,null,null,null,"Вожега рп, Садовая ул, д. 29А",null,null,"Вожега рп, Садовая ул, д. 29А",null,null,null,null,null,null,null,null,null,null,null,null,"Общий счет РО+"]
["Вожега п, Садовая ул, д.31",{"$f":"\"Вожега п, Садовая ул, д.31\"","v":"Вожега п, Садовая ул, д.31"},{"$f":"\"Вожега п, Садовая ул, д.31\"","v":"Вожега п, Садовая ул, д.31"},{"$f":"\"Вожега п, Садовая ул, д.31\"","v":"Вожега п, Садовая ул, д.31"},"Вожега п, Садовая ул, д.31",{"$f":"\"Вожега п, Садовая ул, д.31\"","v":"Вожега п, Садовая ул, д.31"},null,null,null,null,null,null,null,{"$f":"\"Вожега п, Садовая ул, д.31\"","v":"Вожега п, Садовая ул, д.31"},null,null,null,null,null,null,null,null,null,null,null,null,null,null,null,null,"Вожега рп, Садовая ул, д. 31",null,null,null,null,null,null,null,null,null,null,null,null,null,null,null,null,null,null,null,null,null,null,null,null,null,null,null,null,null,null,null,null,null,null,null,null,null,null,null,null,null,null,null,null,null,null,null,null,null,null,null,null,null,null,null,null,null,null,null,null,null,null,null,null,null,null,null,null,null,null,null,null,null,null,null,null,null,null,null,null,null,null,null,null,null,null,null,null,null,null,null,null,null,null,null,null,null,null,null,null,null,null,null,null,null,null,null,"Общий счет РО - 272,10","Дом 4-х квартирный","Исключен 01.04.2019"]
["Вожега п, Садовая ул, д.33",{"$f":"\"Вожега п, Садовая ул, д.33\"","v":"Вожега п, Садовая ул, д.33"},{"$f":"\"Вожега п, Садовая ул, д.33\"","v":"Вожега п, Садовая ул, д.33"},{"$f":"\"Вожега п, Садовая ул, д.33\"","v":"Вожега п, Садовая ул, д.33"},"Вожега п, Садовая ул, д.33",{"$f":"\"Вожега п, Садовая ул, д.33\"","v":"Вожега п, Садовая ул, д.33"},null,null,null,null,null,null,null,{"$f":"\"Вожега п, Садовая ул, д.33\"","v":"Вожега п, Садовая ул, д.33"},null,null,null,null,null,null,null,null,null,null,null,null,null,null,null,null,"Вожега рп, Садовая ул, д. 33",null,null,null,null,"Вожега рп, Садовая ул, д. 33",null,null,null,null,null,null,null,null,null,null,"Вожега рп, Садовая ул, д. 33",null,null,null,null,null,null,"Вожега рп, Садовая ул, д. 33",null,null,null,null,null,"Вожега рп, Садовая ул, д. 33",null,null,null,null,null,null,null,null,"Вожега рп, Садовая ул, д. 33",null,null,null,null,null,"Вожега рп, Садовая ул, д. 33",null,null,null,null,null,null,null,"Вожега рп, Садовая ул, д. 33",null,null,null,null,null,null,"Вожега рп, Садовая ул, д. 33",null,null,null,null,null,null,null,null,"Вожега рп, Садовая ул, д. 33",null,null,null,null,"Вожега рп, Садовая ул, д. 33",null,null,null,null,null,null,null,null,"Вожега рп, Садовая ул, д. 33",null,null,null,null,"Вожега рп, Садовая ул, д. 33",null,null,null,null,"Вожега рп, Садовая ул, д. 33",null,null,"Вожега рп, Садовая ул, д. 33",null,null,null,null,null,null,null,null,null,null,null,null,"Общий счет РО+"]
["Вожега п, Свободы ул, д.11",{"$f":"\"Вожега п, Свободы ул, д.11\"","v":"Вожега п, Свободы ул, д.11"},{"$f":"\"Вожега п, Свободы ул, д.11\"","v":"Вожега п, Свободы ул, д.11"},{"$f":"\"Вожега п, Свободы ул, д.11\"","v":"Вожега п, Свободы ул, д.11"},"Вожега п, Свободы ул, д.11",{"$f":"\"Вожега п, Свободы ул, д.11\"","v":"Вожега п, Свободы ул, д.11"},null,null,null,null,null,null,null,{"$f":"\"Вожега п, Свободы ул, д.11\"","v":"Вожега п, Свободы ул, д.11"},null,null,null,null,null,null,null,null,null,null,null,null,null,null,null,null,null,null,null,null,null,null,null,null,null,null,null,null,null,null,null,null,null,null,null,null,null,null,null,null,null,null,null,null,null,null,null,null,null,null,null,null,null,null,null,null,null,null,null,null,null,null,null,null,null,null,null,null,null,null,null,null,null,null,null,null,null,null,null,null,null,null,null,null,null,null,null,null,null,null,null,null,null,null,null,null,null,null,null,null,null,null,null,null,null,null,null,null,null,null,null,null,null,null,null,null,null,null,null,null,null,null,null,null,"Общий счет РО 324,00","Признан аварийным. Заключение № 06 от 09.02.2018","Исключен 30.11.2018"]
["Вожега п, Свободы ул, д.13",{"$f":"\"Вожега п, Свободы ул, д.13\"","v":"Вожега п, Свободы ул, д.13"},{"$f":"\"Вожега п, Свободы ул, д.13\"","v":"Вожега п, Свободы ул, д.13"},{"$f":"\"Вожега п, Свободы ул, д.13\"","v":"Вожега п, Свободы ул, д.13"},"Вожега п, Свободы ул, д.13",{"$f":"\"Вожега п, Свободы ул, д.13\"","v":"Вожега п, Свободы ул, д.13"},null,null,null,null,null,null,null,{"$f":"\"Вожега п, Свободы ул, д.13\"","v":"Вожега п, Свободы ул, д.13"},null,null,null,null,null,null,null,null,null,null,null,null,null,null,null,null,"Вожега рп, Свободы ул, д. 13",null,null,null,null,"Вожега рп, Свободы ул, д. 13",null,null,null,null,null,null,null,null,null,null,"Вожега рп, Свободы ул, д. 13",null,null,null,null,null,null,"Вожега рп, Свободы ул, д. 13",null,null,null,null,null,"Вожега рп, Свободы ул, д. 13",null,null,null,null,null,null,null,null,"Вожега рп, Свободы ул, д. 13",null,null,null,null,null,"Вожега рп, Свободы ул, д. 13",null,null,null,null,null,null,null,"Вожега рп, Свободы ул, д. 13",null,null,null,null,null,null,"Вожега рп, Свободы ул, д. 13",null,null,null,null,null,null,null,null,"Вожега рп, Свободы ул, д. 13",null,null,null,null,"Вожега рп, Свободы ул, д. 13",null,null,null,null,null,null,null,null,"Вожега рп, Свободы ул, д. 13",null,null,null,null,"Вожега рп, Свободы ул, д. 13",null,null,null,null,"Вожега рп, Свободы ул, д. 13",null,null,"Вожега рп, Свободы ул, д. 13",null,null,null,null,null,null,null,null,null,null,null,null,"Общий счет РО+"]
["Вожега п, Свободы ул, д.17",{"$f":"\"Вожега п, Свободы ул, д.17\"","v":"Вожега п, Свободы ул, д.17"},{"$f":"\"Вожега п, Свободы ул, д.17\"","v":"Вожега п, Свободы ул, д.17"},{"$f":"\"Вожега п, Свободы ул, д.17\"","v":"Вожега п, Свободы ул, д.17"},"Вожега п, Свободы ул, д.17",{"$f":"\"Вожега п, Свободы ул, д.17\"","v":"Вожега п, Свободы ул, д.17"},null,null,null,null,null,null,null,{"$f":"\"Вожега п, Свободы ул, д.17\"","v":"Вожега п, Свободы ул, д.17"},null,null,null,null,null,null,null,null,null,null,null,null,null,null,null,null,null,null,null,null,null,null,null,null,null,null,null,null,null,null,null,null,null,null,null,null,null,null,null,null,null,null,null,null,null,null,null,null,null,null,null,null,null,null,null,null,null,null,null,null,null,null,null,null,null,null,null,null,null,null,null,null,null,null,null,null,null,null,null,null,null,null,null,null,null,null,null,null,null,null,null,null,null,null,null,null,null,null,null,null,null,null,null,null,null,null,null,null,null,null,null,null,null,null,null,null,null,null,null,null,null,null,null,null,"Общий счет РО 261,20","Признан аварийным. Постановление № 107 от 16.06.2017","Исключен 30.11.2018"]
["Вожега п, Свободы ул, д.29",{"$f":"\"Вожега п, Свободы ул, д.29\"","v":"Вожега п, Свободы ул, д.29"},{"$f":"\"Вожега п, Свободы ул, д.29\"","v":"Вожега п, Свободы ул, д.29"},{"$f":"\"Вожега п, Свободы ул, д.29\"","v":"Вожега п, Свободы ул, д.29"},"Вожега п, Свободы ул, д.29",{"$f":"\"Вожега п, Свободы ул, д.29\"","v":"Вожега п, Свободы ул, д.29"},null,null,null,null,null,null,null,{"$f":"\"Вожега п, Свободы ул, д.29\"","v":"Вожега п, Свободы ул, д.29"},null,null,null,null,null,null,null,null,null,null,null,null,null,null,null,null,"Вожега рп, Свободы ул, д. 29",null,null,null,null,"Вожега рп, Свободы ул, д. 29",null,null,null,null,null,null,null,null,null,null,"Вожега рп, Свободы ул, д. 29",null,null,null,null,null,null,"Вожега рп, Свободы ул, д. 29",null,null,null,null,null,"Вожега рп, Свободы ул, д. 29",null,null,null,null,null,null,null,null,"Вожега рп, Свободы ул, д. 29",null,null,null,null,null,"Вожега рп, Свободы ул, д. 29",null,null,null,null,null,null,null,"Вожега рп, Свободы ул, д. 29",null,null,null,null,null,null,"Вожега рп, Свободы ул, д. 29",null,null,null,null,null,null,null,null,"Вожега рп, Свободы ул, д. 29",null,null,null,null,"Вожега рп, Свободы ул, д. 29",null,null,null,null,null,null,null,null,"Вожега рп, Свободы ул, д. 29",null,null,null,null,"Вожега рп, Свободы ул, д. 29",null,null,null,null,"Вожега рп, Свободы ул, д. 29",null,null,"Вожега рп, Свободы ул, д. 29",null,null,null,null,null,null,null,null,null,null,null,null,"Общий счет РО+"]
["Вожега п, Свободы ул, д.35",{"$f":"\"Вожега п, Свободы ул, д.35\"","v":"Вожега п, Свободы ул, д.35"},{"$f":"\"Вожега п, Свободы ул, д.35\"","v":"Вожега п, Свободы ул, д.35"},{"$f":"\"Вожега п, Свободы ул, д.35\"","v":"Вожега п, Свободы ул, д.35"},"Вожега п, Свободы ул, д.35",{"$f":"\"Вожега п, Свободы ул, д.35\"","v":"Вожега п, Свободы ул, д.35"},null,null,null,null,null,null,null,{"$f":"\"Вожега п, Свободы ул, д.35\"","v":"Вожега п, Свободы ул, д.35"},null,null,null,null,null,null,null,null,null,null,null,null,null,null,null,null,"Вожега рп, Свободы ул, д. 35",null,null,null,null,"Вожега рп, Свободы ул, д. 35",null,null,null,null,null,null,null,null,null,null,"Вожега рп, Свободы ул, д. 35",null,null,null,null,null,null,"Вожега рп, Свободы ул, д. 35",null,null,null,null,null,"Вожега рп, Свободы ул, д. 35",null,null,null,null,null,null,null,null,"Вожега рп, Свободы ул, д. 35",null,null,null,null,null,"Вожега рп, Свободы ул, д. 35",null,null,null,null,null,null,null,"Вожега рп, Свободы ул, д. 35",null,null,null,null,null,null,null,null,null,null,null,null,null,null,null,null,null,null,null,null,null,null,null,null,null,null,null,null,null,null,null,null,null,null,null,null,null,null,null,null,null,null,null,null,null,null,null,null,null,null,null,null,null,null,null,"Общий счет РО, 330,10","Признан аварийным. Постановление № 345 от 23.09.2022","Исключен 06.03.2023"]
["Вожега п, Связи ул, д.6",{"$f":"\"Вожега п, Связи ул, д.6\"","v":"Вожега п, Связи ул, д.6"},{"$f":"\"Вожега п, Связи ул, д.6\"","v":"Вожега п, Связи ул, д.6"},{"$f":"\"Вожега п, Связи ул, д.6\"","v":"Вожега п, Связи ул, д.6"},"Вожега п, Связи ул, д.6",{"$f":"\"Вожега п, Связи ул, д.6\"","v":"Вожега п, Связи ул, д.6"},null,null,null,null,null,null,null,{"$f":"\"Вожега п, Связи ул, д.6\"","v":"Вожега п, Связи ул, д.6"},null,null,null,null,null,null,null,null,null,null,null,null,null,null,null,null,"Вожега рп, Связи ул, д. 6",null,null,null,null,"Вожега рп, Связи ул, д. 6",null,null,null,null,null,null,null,null,null,null,"Вожега рп, Связи ул, д. 6",null,null,null,null,null,null,"Вожега рп, Связи ул, д. 6",null,null,null,null,null,"Вожега рп, Связи ул, д. 6",null,null,null,null,null,null,null,null,"Вожега рп, Связи ул, д. 6",null,null,null,null,null,"Вожега рп, Связи ул, д. 6",null,null,null,null,null,null,null,"Вожега рп, Связи ул, д. 6",null,null,null,null,null,null,"Вожега рп, Связи ул, д. 6",null,null,null,null,null,null,null,null,"Вожега рп, Связи ул, д. 6",null,null,null,null,"Вожега рп, Связи ул, д. 6",null,null,null,null,null,null,null,null,"Вожега рп, Связи ул, д. 6",null,null,null,null,"Вожега рп, Связи ул, д. 6",null,null,null,null,"Вожега рп, Связи ул, д. 6",null,null,"Вожега рп, Связи ул, д. 6",null,null,null,null,null,null,null,null,null,null,null,null,"Общий счет РО+"]
["Вожега п, Северная ул, д.1",null,null,null,null,null,null,null,null,null,null,null,null,null,null,null,null,null,null,null,null,null,null,null,null,null,null,null,null,null,null,null,null,null,null,null,null,null,null,null,null,null,null,null,null,null,null,null,null,null,null,null,null,null,null,null,null,null,null,null,null,null,null,null,null,null,null,null,null,null,null,null,null,null,null,null,null,null,null,null,null,null,null,null,null,null,null,null,null,null,null,null,null,null,null,null,null,null,null,null,null,null,null,null,null,null,null,null,null,null,null,null,null,null,null,null,null,null,null,null,null,null,null,null,null,null,null,null,null,null,null,null,null,null,null,null,null,null,null,null,"Исключен"]
["Вожега п, Северная ул, д.4",null,null,null,null,null,null,null,null,null,null,null,null,null,null,null,null,null,null,null,null,null,null,null,null,null,null,null,null,null,null,null,null,null,null,null,null,null,null,null,null,null,null,null,null,null,null,null,null,null,null,null,null,null,null,null,null,null,null,null,null,null,null,null,null,null,null,null,null,null,null,null,null,null,null,null,null,null,null,null,null,null,null,null,null,null,null,null,null,null,null,null,null,null,null,null,null,null,null,null,null,null,null,null,null,null,null,null,null,null,null,null,null,null,null,null,null,null,null,null,null,null,null,null,null,null,null,null,null,null,null,null,null,null,null,null,null,null,null,null,"Исключен"]
["Вожега п, Советская ул, д.9А",{"$f":"\"Вожега п, Советская ул, д.9А\"","v":"Вожега п, Советская ул, д.9А"},{"$f":"\"Вожега п, Советская ул, д.9А\"","v":"Вожега п, Советская ул, д.9А"},{"$f":"\"Вожега п, Советская ул, д.9А\"","v":"Вожега п, Советская ул, д.9А"},"Вожега п, Советская ул, д.9А",{"$f":"\"Вожега п, Советская ул, д.9А\"","v":"Вожега п, Советская ул, д.9А"},null,null,null,null,null,null,null,{"$f":"\"Вожега п, Советская ул, д.9А\"","v":"Вожега п, Советская ул, д.9А"},null,null,null,null,null,null,null,null,null,null,null,null,null,null,null,null,"Вожега рп, Советская ул, д. 9А",null,null,null,null,"Вожега рп, Советская ул, д. 9А",null,null,null,null,null,null,null,null,null,null,"Вожега рп, Советская ул, д. 9А",null,null,null,null,null,null,"Вожега рп, Советская ул, д. 9А",null,null,null,null,null,"Вожега рп, Советская ул, д. 9А",null,null,null,null,null,null,null,null,"Вожега рп, Советская ул, д. 9А",null,null,null,null,null,"Вожега рп, Советская ул, д. 9А",null,null,null,null,null,null,null,"Вожега рп, Советская ул, д. 9А",null,null,null,null,null,null,"Вожега рп, Советская ул, д. 9А",null,null,null,null,null,null,null,null,"Вожега рп, Советская ул, д. 9А",null,null,null,null,"Вожега рп, Советская ул, д. 9А",null,null,null,null,null,null,null,null,"Вожега рп, Советская ул, д. 9А",null,null,null,null,"Вожега рп, Советская ул, д. 9А",null,null,null,null,"Вожега рп, Советская ул, д. 9А",null,null,"Вожега рп, Советская ул, д. 9А",null,null,null,null,null,null,null,null,null,null,null,null,"Общий счет РО+"]
["Вожега п, Советская ул, д.22",{"$f":"\"Вожега п, Советская ул, д.22\"","v":"Вожега п, Советская ул, д.22"},{"$f":"\"Вожега п, Советская ул, д.22\"","v":"Вожега п, Советская ул, д.22"},{"$f":"\"Вожега п, Советская ул, д.22\"","v":"Вожега п, Советская ул, д.22"},"Вожега п, Советская ул, д.22",{"$f":"\"Вожега п, Советская ул, д.22\"","v":"Вожега п, Советская ул, д.22"},null,null,null,null,null,null,null,{"$f":"\"Вожега п, Советская ул, д.22\"","v":"Вожега п, Советская ул, д.22"},null,null,null,null,null,null,null,null,null,null,null,null,null,null,null,null,"Вожега рп, Советская ул, д. 22",null,null,null,null,"Вожега рп, Советская ул, д. 22",null,null,null,null,null,null,null,null,null,null,"Вожега рп, Советская ул, д. 22",null,null,null,null,null,null,"Вожега рп, Советская ул, д. 22",null,null,null,null,null,"Вожега рп, Советская ул, д. 22",null,null,null,null,null,null,null,null,"Вожега рп, Советская ул, д. 22",null,null,null,null,null,"Вожега рп, Советская ул, д. 22",null,null,null,null,null,null,null,"Вожега рп, Советская ул, д. 22",null,null,null,null,null,null,"Вожега рп, Советская ул, д. 22",null,null,null,null,null,null,null,null,"Вожега рп, Советская ул, д. 22",null,null,null,null,"Вожега рп, Советская ул, д. 22",null,null,null,null,null,null,null,null,"Вожега рп, Советская ул, д. 22",null,null,null,null,"Вожега рп, Советская ул, д. 22",null,null,null,null,"Вожега рп, Советская ул, д. 22",null,null,"Вожега рп, Советская ул, д. 22",null,null,null,null,null,null,null,null,null,null,null,null,"Общий счет РО+"]
["Вожега п, Спортивная ул, д.3",{"$f":"\"Вожега п, Спортивная ул, д.3\"","v":"Вожега п, Спортивная ул, д.3"},{"$f":"\"Вожега п, Спортивная ул, д.3\"","v":"Вожега п, Спортивная ул, д.3"},{"$f":"\"Вожега п, Спортивная ул, д.3\"","v":"Вожега п, Спортивная ул, д.3"},"Вожега п, Спортивная ул, д.3",{"$f":"\"Вожега п, Спортивная ул, д.3\"","v":"Вожега п, Спортивная ул, д.3"},null,null,null,null,null,null,null,{"$f":"\"Вожега п, Спортивная ул, д.3\"","v":"Вожега п, Спортивная ул, д.3"},null,null,null,null,null,null,null,null,null,null,null,null,null,null,null,null,"Вожега рп, Спортивная ул, д. 3",null,null,null,null,"Вожега рп, Спортивная ул, д. 3",null,null,null,null,null,null,null,null,null,null,"Вожега рп, Спортивная ул, д. 3",null,null,null,null,null,null,"Вожега рп, Спортивная ул, д. 3",null,null,null,null,null,"Вожега рп, Спортивная ул, д. 3",null,null,null,null,null,null,null,null,"Вожега рп, Спортивная ул, д. 3",null,null,null,null,null,"Вожега рп, Спортивная ул, д. 3",null,null,null,null,null,null,null,"Вожега рп, Спортивная ул, д. 3",null,null,null,null,null,null,"Вожега рп, Спортивная ул, д. 3",null,null,null,null,null,null,null,null,"Вожега рп, Спортивная ул, д. 3",null,null,null,null,"Вожега рп, Спортивная ул, д. 3",null,null,null,null,null,null,null,null,"Вожега рп, Спортивная ул, д. 3",null,null,null,null,"Вожега рп, Спортивная ул, д. 3",null,null,null,null,"Вожега рп, Спортивная ул, д. 3",null,null,"Вожега рп, Спортивная ул, д. 3",null,null,null,null,null,null,null,null,null,null,null,null,"Общий счет РО+"]
["Вожега п, Спортивная ул, д.4",{"$f":"\"Вожега п, Спортивная ул, д.4\"","v":"Вожега п, Спортивная ул, д.4"},{"$f":"\"Вожега п, Спортивная ул, д.4\"","v":"Вожега п, Спортивная ул, д.4"},{"$f":"\"Вожега п, Спортивная ул, д.4\"","v":"Вожега п, Спортивная ул, д.4"},"Вожега п, Спортивная ул, д.4",{"$f":"\"Вожега п, Спортивная ул, д.4\"","v":"Вожега п, Спортивная ул, д.4"},null,null,null,null,null,null,null,{"$f":"\"Вожега п, Спортивная ул, д.4\"","v":"Вожега п, Спортивная ул, д.4"},null,null,null,null,null,null,null,null,null,null,null,null,null,null,null,null,"Вожега рп, Спортивная ул, д. 4",null,null,null,null,"Вожега рп, Спортивная ул, д. 4",null,null,null,null,null,null,null,null,null,null,"Вожега рп, Спортивная ул, д. 4",null,null,null,null,null,null,"Вожега рп, Спортивная ул, д. 4",null,null,null,null,null,"Вожега рп, Спортивная ул, д. 4",null,null,null,null,null,null,null,null,"Вожега рп, Спортивная ул, д. 4",null,null,null,null,null,"Вожега рп, Спортивная ул, д. 4",null,null,null,null,null,null,null,"Вожега рп, Спортивная ул, д. 4",null,null,null,null,null,null,"Вожега рп, Спортивная ул, д. 4",null,null,null,null,null,null,null,null,"Вожега рп, Спортивная ул, д. 4",null,null,null,null,"Вожега рп, Спортивная ул, д. 4",null,null,null,null,null,null,null,null,"Вожега рп, Спортивная ул, д. 4",null,null,null,null,"Вожега рп, Спортивная ул, д. 4",null,null,null,null,"Вожега рп, Спортивная ул, д. 4",null,null,"Вожега рп, Спортивная ул, д. 4",null,null,null,null,null,null,null,null,null,null,null,null,"Общий счет РО+"]
["Вожега п, Спортивная ул, д.5",{"$f":"\"Вожега п, Спортивная ул, д.5\"","v":"Вожега п, Спортивная ул, д.5"},{"$f":"\"Вожега п, Спортивная ул, д.5\"","v":"Вожега п, Спортивная ул, д.5"},{"$f":"\"Вожега п, Спортивная ул, д.5\"","v":"Вожега п, Спортивная ул, д.5"},"Вожега п, Спортивная ул, д.5",{"$f":"\"Вожега п, Спортивная ул, д.5\"","v":"Вожега п, Спортивная ул, д.5"},null,null,null,null,null,null,null,{"$f":"\"Вожега п, Спортивная ул, д.5\"","v":"Вожега п, Спортивная ул, д.5"},null,null,null,null,null,null,null,null,null,null,null,null,null,null,null,null,"Вожега рп, Спортивная ул, д. 5",null,null,null,null,"Вожега рп, Спортивная ул, д. 5",null,null,null,null,null,null,null,null,null,null,"Вожега рп, Спортивная ул, д. 5",null,null,null,null,null,null,"Вожега рп, Спортивная ул, д. 5",null,null,null,null,null,"Вожега рп, Спортивная ул, д. 5",null,null,null,null,null,null,null,null,"Вожега рп, Спортивная ул, д. 5",null,null,null,null,null,"Вожега рп, Спортивная ул, д. 5",null,null,null,null,null,null,null,"Вожега рп, Спортивная ул, д. 5",null,null,null,null,null,null,"Вожега рп, Спортивная ул, д. 5",null,null,null,null,null,null,null,null,"Вожега рп, Спортивная ул, д. 5",null,null,null,null,"Вожега рп, Спортивная ул, д. 5",null,null,null,null,null,null,null,null,"Вожега рп, Спортивная ул, д. 5",null,null,null,null,"Вожега рп, Спортивная ул, д. 5",null,null,null,null,"Вожега рп, Спортивная ул, д. 5",null,null,"Вожега рп, Спортивная ул, д. 5",null,null,null,null,null,null,null,null,null,null,null,null,"Общий счет РО+"]
["Вожега п, Спортивная ул, д.6",{"$f":"\"Вожега п, Спортивная ул, д.6\"","v":"Вожега п, Спортивная ул, д.6"},{"$f":"\"Вожега п, Спортивная ул, д.6\"","v":"Вожега п, Спортивная ул, д.6"},{"$f":"\"Вожега п, Спортивная ул, д.6\"","v":"Вожега п, Спортивная ул, д.6"},"Вожега п, Спортивная ул, д.6",{"$f":"\"Вожега п, Спортивная ул, д.6\"","v":"Вожега п, Спортивная ул, д.6"},null,null,null,null,null,null,null,{"$f":"\"Вожега п, Спортивная ул, д.6\"","v":"Вожега п, Спортивная ул, д.6"},null,null,null,null,null,null,null,null,null,null,null,null,null,null,null,null,"Вожега рп, Спортивная ул, д. 6",null,null,null,null,"Вожега рп, Спортивная ул, д. 6",null,null,null,null,null,null,null,null,null,null,"Вожега рп, Спортивная ул, д. 6",null,null,null,null,null,null,"Вожега рп, Спортивная ул, д. 6",null,null,null,null,null,"Вожега рп, Спортивная ул, д. 6",null,null,null,null,null,null,null,null,"Вожега рп, Спортивная ул, д. 6",null,null,null,null,null,"Вожега рп, Спортивная ул, д. 6",null,null,null,null,null,null,null,"Вожега рп, Спортивная ул, д. 6",null,null,null,null,null,null,"Вожега рп, Спортивная ул, д. 6",null,null,null,null,null,null,null,null,"Вожега рп, Спортивная ул, д. 6",null,null,null,null,"Вожега рп, Спортивная ул, д. 6",null,null,null,null,null,null,null,null,"Вожега рп, Спортивная ул, д. 6",null,null,null,null,"Вожега рп, Спортивная ул, д. 6",null,null,null,null,"Вожега рп, Спортивная ул, д. 6",null,null,"Вожега рп, Спортивная ул, д. 6",null,null,null,null,null,null,null,null,null,null,null,null,"Общий счет РО+"]
["Вожега п, Спортивная ул, д.6А",{"$f":"\"Вожега п, Спортивная ул, д.6А\"","v":"Вожега п, Спортивная ул, д.6А"},{"$f":"\"Вожега п, Спортивная ул, д.6А\"","v":"Вожега п, Спортивная ул, д.6А"},{"$f":"\"Вожега п, Спортивная ул, д.6А\"","v":"Вожега п, Спортивная ул, д.6А"},"Вожега п, Спортивная ул, д.6А",{"$f":"\"Вожега п, Спортивная ул, д.6А\"","v":"Вожега п, Спортивная ул, д.6А"},null,null,null,null,null,null,null,{"$f":"\"Вожега п, Спортивная ул, д.6А\"","v":"Вожега п, Спортивная ул, д.6А"},null,null,null,null,null,null,null,null,null,null,null,null,null,null,null,null,"Вожега рп, Спортивная ул, д. 6А",null,null,null,null,"Вожега рп, Спортивная ул, д. 6А",null,null,null,null,null,null,null,null,null,null,"Вожега рп, Спортивная ул, д. 6А",null,null,null,null,null,null,"Вожега рп, Спортивная ул, д. 6А",null,null,null,null,null,"Вожега рп, Спортивная ул, д. 6А",null,null,null,null,null,null,null,null,"Вожега рп, Спортивная ул, д. 6А",null,null,null,null,null,"Вожега рп, Спортивная ул, д. 6А",null,null,null,null,null,null,null,"Вожега рп, Спортивная ул, д. 6А",null,null,null,null,null,null,"Вожега рп, Спортивная ул, д. 6А",null,null,null,null,null,null,null,null,"Вожега рп, Спортивная ул, д. 6А",null,null,null,null,"Вожега рп, Спортивная ул, д. 6А",null,null,null,null,null,null,null,null,"Вожега рп, Спортивная ул, д. 6А",null,null,null,null,"Вожега рп, Спортивная ул, д. 6А",null,null,null,null,"Вожега рп, Спортивная ул, д. 6А",null,null,"Вожега рп, Спортивная ул, д. 6А",null,null,null,null,null,null,null,null,null,null,null,null,"Общий счет РО+"]
[null,{"$f":"\"Вожега п, Спортивная ул, д.8а\"","v":"Вожега п, Спортивная ул, д.8а"},{"$f":"\"Вожега п, Спортивная ул, д.8А\"","v":"Вожега п, Спортивная ул, д.8А"},{"$f":"\"Вожега п, Спортивная ул, д.8А\"","v":"Вожега п, Спортивная ул, д.8А"},"Вожега п, Спортивная ул, д.8А",{"$f":"\"Вожега п, Спортивная ул, д.8А\"","v":"Вожега п, Спортивная ул, д.8А"},null,null,null,null,null,null,null,{"$f":"\"Вожега п, Спортивная ул, д.8А\"","v":"Вожега п, Спортивная ул, д.8А"},null,null,null,null,null,null,null,null,null,null,null,null,null,null,null,null,"Вожега рп, Спортивная ул, д. 8А",null,null,null,null,"Вожега рп, Спортивная ул, д. 8А",null,null,null,null,null,null,null,null,null,null,"Вожега рп, Спортивная ул, д. 8А",null,null,null,null,null,null,"Вожега рп, Спортивная ул, д. 8А",null,null,null,null,null,"Вожега рп, Спортивная ул, д. 8А",null,null,null,null,null,null,null,null,"Вожега рп, Спортивная ул, д. 8А",null,null,null,null,null,"Вожега рп, Спортивная ул, д. 8А",null,null,null,null,null,null,null,"Вожега рп, Спортивная ул, д. 8А",null,null,null,null,null,null,"Вожега рп, Спортивная ул, д. 8А",null,null,null,null,null,null,null,null,"Вожега рп, Спортивная ул, д. 8А",null,null,null,null,"Вожега рп, Спортивная ул, д. 8А",null,null,null,null,null,null,null,null,"Вожега рп, Спортивная ул, д. 8А",null,null,null,null,"Вожега рп, Спортивная ул, д. 8А",null,null,null,null,"Вожега рп, Спортивная ул, д. 8А",null,null,"Вожега рп, Спортивная ул, д. 8А",null,null,null,null,null,null,null,null,null,null,null,null,"Общий счет РО+"]
["Вожега п, Спортивная ул, д.8",{"$f":"\"Вожега п, Спортивная ул, д.8\"","v":"Вожега п, Спортивная ул, д.8"},{"$f":"\"Вожега п, Спортивная ул, д.8\"","v":"Вожега п, Спортивная ул, д.8"},{"$f":"\"Вожега п, Спортивная ул, д.8\"","v":"Вожега п, Спортивная ул, д.8"},"Вожега п, Спортивная ул, д.8",{"$f":"\"Вожега п, Спортивная ул, д.8\"","v":"Вожега п, Спортивная ул, д.8"},null,null,null,null,null,null,null,{"$f":"\"Вожега п, Спортивная ул, д.8\"","v":"Вожега п, Спортивная ул, д.8"},null,null,null,null,null,null,null,null,null,null,null,null,null,null,null,null,"Вожега рп, Спортивная ул, д. 8",null,null,null,null,"Вожега рп, Спортивная ул, д. 8",null,null,null,null,null,null,null,null,null,null,"Вожега рп, Спортивная ул, д. 8",null,null,null,null,null,null,"Вожега рп, Спортивная ул, д. 8",null,null,null,null,null,"Вожега рп, Спортивная ул, д. 8",null,null,null,null,null,null,null,null,"Вожега рп, Спортивная ул, д. 8",null,null,null,null,null,"Вожега рп, Спортивная ул, д. 8",null,null,null,null,null,null,null,"Вожега рп, Спортивная ул, д. 8",null,null,null,null,null,null,"Вожега рп, Спортивная ул, д. 8",null,null,null,null,null,null,null,null,"Вожега рп, Спортивная ул, д. 8",null,null,null,null,"Вожега рп, Спортивная ул, д. 8",null,null,null,null,null,null,null,null,"Вожега рп, Спортивная ул, д. 8",null,null,null,null,"Вожега рп, Спортивная ул, д. 8",null,null,null,null,"Вожега рп, Спортивная ул, д. 8",null,null,"Вожега рп, Спортивная ул, д. 8",null,null,null,null,null,null,null,null,null,null,null,null,"Общий счет РО+"]
["Вожега п, Транспортная ул, д.8",{"$f":"\"Вожега п, Транспортная ул, д.8\"","v":"Вожега п, Транспортная ул, д.8"},{"$f":"\"Вожега п, Транспортная ул, д.8\"","v":"Вожега п, Транспортная ул, д.8"},{"$f":"\"Вожега п, Транспортная ул, д.8\"","v":"Вожега п, Транспортная ул, д.8"},"Вожега п, Транспортная ул, д.8",{"$f":"\"Вожега п, Транспортная ул, д.8\"","v":"Вожега п, Транспортная ул, д.8"},null,null,null,null,null,null,null,{"$f":"\"Вожега п, Транспортная ул, д.8\"","v":"Вожега п, Транспортная ул, д.8"},null,null,null,null,null,null,null,null,null,null,null,null,null,null,null,null,"Вожега рп, Транспортная ул, д. 8",null,null,null,null,"Вожега рп, Транспортная ул, д. 8",null,null,null,null,null,null,null,null,null,null,"Вожега рп, Транспортная ул, д. 8",null,null,null,null,null,null,"Вожега рп, Транспортная ул, д. 8",null,null,null,null,null,"Вожега рп, Транспортная ул, д. 8",null,null,null,null,null,null,null,null,"Вожега рп, Транспортная ул, д. 8",null,null,null,null,null,"Вожега рп, Транспортная ул, д. 8",null,null,null,null,null,null,null,"Вожега рп, Транспортная ул, д. 8",null,null,null,null,null,null,"Вожега рп, Транспортная ул, д. 8",null,null,null,null,null,null,null,null,"Вожега рп, Транспортная ул, д. 8",null,null,null,null,"Вожега рп, Транспортная ул, д. 8",null,null,null,null,null,null,null,null,"Вожега рп, Транспортная ул, д. 8",null,null,null,null,"Вожега рп, Транспортная ул, д. 8",null,null,null,null,null,null,null,null,null,null,null,null,null,null,null,null,null,null,null,null,"Общий счет РО+176,70","Признан аварийным. Постановление 425 от 24.04.2025","Исключен 18.09.2025"]
["Вожега п, Транспортная ул, д.10",{"$f":"\"Вожега п, Транспортная ул, д.10\"","v":"Вожега п, Транспортная ул, д.10"},{"$f":"\"Вожега п, Транспортная ул, д.10\"","v":"Вожега п, Транспортная ул, д.10"},{"$f":"\"Вожега п, Транспортная ул, д.10\"","v":"Вожега п, Транспортная ул, д.10"},"Вожега п, Транспортная ул, д.10",{"$f":"\"Вожега п, Транспортная ул, д.10\"","v":"Вожега п, Транспортная ул, д.10"},null,null,null,null,null,null,null,{"$f":"\"Вожега п, Транспортная ул, д.10\"","v":"Вожега п, Транспортная ул, д.10"},null,null,null,null,null,null,null,null,null,null,null,null,null,null,null,null,"Вожега рп, Транспортная ул, д. 10",null,null,null,null,"Вожега рп, Транспортная ул, д. 10",null,null,null,null,null,null,null,null,null,null,"Вожега рп, Транспортная ул, д. 10",null,null,null,null,null,null,"Вожега рп, Транспортная ул, д. 10",null,null,null,null,null,"Вожега рп, Транспортная ул, д. 10",null,null,null,null,null,null,null,null,"Вожега рп, Транспортная ул, д. 10",null,null,null,null,null,"Вожега рп, Транспортная ул, д. 10",null,null,null,null,null,null,null,"Вожега рп, Транспортная ул, д. 10",null,null,null,null,null,null,"Вожега рп, Транспортная ул, д. 10",null,null,null,null,null,null,null,null,"Вожега рп, Транспортная ул, д. 10",null,null,null,null,"Вожега рп, Транспортная ул, д. 10",null,null,null,null,null,null,null,null,"Вожега рп, Транспортная ул, д. 10",null,null,null,null,"Вожега рп, Транспортная ул, д. 10",null,null,null,null,"Вожега рп, Транспортная ул, д. 10",null,null,"Вожега рп, Транспортная ул, д. 10",null,null,null,null,null,null,null,null,null,null,null,null,"Общий счет РО+"]
["Вожега п, Транспортная ул, д.12",{"$f":"\"Вожега п, Транспортная ул, д.12\"","v":"Вожега п, Транспортная ул, д.12"},{"$f":"\"Вожега п, Транспортная ул, д.12\"","v":"Вожега п, Транспортная ул, д.12"},{"$f":"\"Вожега п, Транспортная ул, д.12\"","v":"Вожега п, Транспортная ул, д.12"},"Вожега п, Транспортная ул, д.12",{"$f":"\"Вожега п, Транспортная ул, д.12\"","v":"Вожега п, Транспортная ул, д.12"},null,null,null,null,null,null,null,{"$f":"\"Вожега п, Транспортная ул, д.12\"","v":"Вожега п, Транспортная ул, д.12"},null,null,null,null,null,null,null,null,null,null,null,null,null,null,null,null,"Вожега рп, Транспортная ул, д. 12",null,null,null,null,"Вожега рп, Транспортная ул, д. 12",null,null,null,null,null,null,null,null,null,null,"Вожега рп, Транспортная ул, д. 12",null,null,null,null,null,null,"Вожега рп, Транспортная ул, д. 12",null,null,null,null,null,"Вожега рп, Транспортная ул, д. 12",null,null,null,null,null,null,null,null,"Вожега рп, Транспортная ул, д. 12",null,null,null,null,null,"Вожега рп, Транспортная ул, д. 12",null,null,null,null,null,null,null,"Вожега рп, Транспортная ул, д. 12",null,null,null,null,null,null,"Вожега рп, Транспортная ул, д. 12",null,null,null,null,null,null,null,null,"Вожега рп, Транспортная ул, д. 12",null,null,null,null,"Вожега рп, Транспортная ул, д. 12",null,null,null,null,null,null,null,null,"Вожега рп, Транспортная ул, д. 12",null,null,null,null,"Вожега рп, Транспортная ул, д. 12",null,null,null,null,"Вожега рп, Транспортная ул, д. 12",null,null,"Вожега рп, Транспортная ул, д. 12",null,null,null,null,null,null,null,null,null,null,null,null,"Общий счет РО+"]
["Вожега п, Транспортная ул, д.16",{"$f":"\"Вожега п, Транспортная ул, д.16\"","v":"Вожега п, Транспортная ул, д.16"},{"$f":"\"Вожега п, Транспортная ул, д.16\"","v":"Вожега п, Транспортная ул, д.16"},{"$f":"\"Вожега п, Транспортная ул, д.16\"","v":"Вожега п, Транспортная ул, д.16"},"Вожега п, Транспортная ул, д.16",{"$f":"\"Вожега п, Транспортная ул, д.16\"","v":"Вожега п, Транспортная ул, д.16"},null,null,null,null,null,null,null,{"$f":"\"Вожега п, Транспортная ул, д.16\"","v":"Вожега п, Транспортная ул, д.16"},null,null,null,null,null,null,null,null,null,null,null,null,null,null,null,null,"Вожега рп, Транспортная ул, д. 16",null,null,null,null,"Вожега рп, Транспортная ул, д. 16",null,null,null,null,null,null,null,null,null,null,"Вожега рп, Транспортная ул, д. 16",null,null,null,null,null,null,"Вожега рп, Транспортная ул, д. 16",null,null,null,null,null,"Вожега рп, Транспортная ул, д. 16",null,null,null,null,null,null,null,null,"Вожега рп, Транспортная ул, д. 16",null,null,null,null,null,"Вожега рп, Транспортная ул, д. 16",null,null,null,null,null,null,null,"Вожега рп, Транспортная ул, д. 16",null,null,null,null,null,null,"Вожега рп, Транспортная ул, д. 16",null,null,null,null,null,null,null,null,"Вожега рп, Транспортная ул, д. 16",null,null,null,null,"Вожега рп, Транспортная ул, д. 16",null,null,null,null,null,null,null,null,"Вожега рп, Транспортная ул, д. 16",null,null,null,null,"Вожега рп, Транспортная ул, д. 16",null,null,null,null,"Вожега рп, Транспортная ул, д. 16",null,null,"Вожега рп, Транспортная ул, д. 16",null,null,null,null,null,null,null,null,null,null,null,null,"Общий счет РО+"]
["Вожега п, Транспортная ул, д.18",{"$f":"\"Вожега п, Транспортная ул, д.18\"","v":"Вожега п, Транспортная ул, д.18"},{"$f":"\"Вожега п, Транспортная ул, д.18\"","v":"Вожега п, Транспортная ул, д.18"},{"$f":"\"Вожега п, Транспортная ул, д.18\"","v":"Вожега п, Транспортная ул, д.18"},"Вожега п, Транспортная ул, д.18",{"$f":"\"Вожега п, Транспортная ул, д.18\"","v":"Вожега п, Транспортная ул, д.18"},null,null,null,null,null,null,null,{"$f":"\"Вожега п, Транспортная ул, д.18\"","v":"Вожега п, Транспортная ул, д.18"},null,null,null,null,null,null,null,null,null,null,null,null,null,null,null,null,"Вожега рп, Транспортная ул, д. 18",null,null,null,null,"Вожега рп, Транспортная ул, д. 18",null,null,null,null,null,null,null,null,null,null,"Вожега рп, Транспортная ул, д. 18",null,null,null,null,null,null,"Вожега рп, Транспортная ул, д. 18",null,null,null,null,null,"Вожега рп, Транспортная ул, д. 18",null,null,null,null,null,null,null,null,"Вожега рп, Транспортная ул, д. 18",null,null,null,null,null,"Вожега рп, Транспортная ул, д. 18",null,null,null,null,null,null,null,"Вожега рп, Транспортная ул, д. 18",null,null,null,null,null,null,"Вожега рп, Транспортная ул, д. 18",null,null,null,null,null,null,null,null,"Вожега рп, Транспортная ул, д. 18",null,null,null,null,"Вожега рп, Транспортная ул, д. 18",null,null,null,null,null,null,null,null,"Вожега рп, Транспортная ул, д. 18",null,null,null,null,"Вожега рп, Транспортная ул, д. 18",null,null,null,null,"Вожега рп, Транспортная ул, д. 18",null,null,"Вожега рп, Транспортная ул, д. 18",null,null,null,null,null,null,null,null,null,null,null,null,"Общий счет РО+"]
["Вожега п, Транспортная ул, д.19",{"$f":"\"Вожега п, Транспортная ул, д.19\"","v":"Вожега п, Транспортная ул, д.19"},{"$f":"\"Вожега п, Транспортная ул, д.19\"","v":"Вожега п, Транспортная ул, д.19"},{"$f":"\"Вожега п, Транспортная ул, д.19\"","v":"Вожега п, Транспортная ул, д.19"},"Вожега п, Транспортная ул, д.19",{"$f":"\"Вожега п, Транспортная ул, д.19\"","v":"Вожега п, Транспортная ул, д.19"},null,null,null,null,null,null,null,{"$f":"\"Вожега п, Транспортная ул, д.19\"","v":"Вожега п, Транспортная ул, д.19"},null,null,null,null,null,null,null,null,null,null,null,null,null,null,null,null,"Вожега рп, Транспортная ул, д. 19",null,null,null,null,"Вожега рп, Транспортная ул, д. 19",null,null,null,null,null,null,null,null,null,null,"Вожега рп, Транспортная ул, д. 19",null,null,null,null,null,null,"Вожега рп, Транспортная ул, д. 19",null,null,null,null,null,"Вожега рп, Транспортная ул, д. 19",null,null,null,null,null,null,null,null,"Вожега рп, Транспортная ул, д. 19",null,null,null,null,null,"Вожега рп, Транспортная ул, д. 19",null,null,null,null,null,null,null,"Вожега рп, Транспортная ул, д. 19",null,null,null,null,null,null,"Вожега рп, Транспортная ул, д. 19",null,null,null,null,null,null,null,null,"Вожега рп, Транспортная ул, д. 19",null,null,null,null,"Вожега рп, Транспортная ул, д. 19",null,null,null,null,null,null,null,null,"Вожега рп, Транспортная ул, д. 19",null,null,null,null,null,null,null,null,null,null,null,null,null,null,null,null,null,null,null,null,null,null,null,null,null,"Общий счет РО+487,00","Признан аварийным. Постановление 1484 от 27.12.2024","Исключен 02.04.2025"]
["Вожега п, Транспортная ул, д.20",{"$f":"\"Вожега п, Транспортная ул, д.20\"","v":"Вожега п, Транспортная ул, д.20"},{"$f":"\"Вожега п, Транспортная ул, д.20\"","v":"Вожега п, Транспортная ул, д.20"},{"$f":"\"Вожега п, Транспортная ул, д.20\"","v":"Вожега п, Транспортная ул, д.20"},"Вожега п, Транспортная ул, д.20",{"$f":"\"Вожега п, Транспортная ул, д.20\"","v":"Вожега п, Транспортная ул, д.20"},null,null,null,null,null,null,null,{"$f":"\"Вожега п, Транспортная ул, д.20\"","v":"Вожега п, Транспортная ул, д.20"},null,null,null,null,null,null,null,null,null,null,null,null,null,null,null,null,"Вожега рп, Транспортная ул, д. 20",null,null,null,null,"Вожега рп, Транспортная ул, д. 20",null,null,null,null,null,null,null,null,null,null,"Вожега рп, Транспортная ул, д. 20",null,null,null,null,null,null,"Вожега рп, Транспортная ул, д. 20",null,null,null,null,null,"Вожега рп, Транспортная ул, д. 20",null,null,null,null,null,null,null,null,"Вожега рп, Транспортная ул, д. 20",null,null,null,null,null,"Вожега рп, Транспортная ул, д. 20",null,null,null,null,null,null,null,"Вожега рп, Транспортная ул, д. 20",null,null,null,null,null,null,"Вожега рп, Транспортная ул, д. 20",null,null,null,null,null,null,null,null,"Вожега рп, Транспортная ул, д. 20",null,null,null,null,"Вожега рп, Транспортная ул, д. 20",null,null,null,null,null,null,null,null,"Вожега рп, Транспортная ул, д. 20",null,null,null,null,"Вожега рп, Транспортная ул, д. 20",null,null,null,null,"Вожега рп, Транспортная ул, д. 20",null,null,"Вожега рп, Транспортная ул, д. 20",null,null,null,null,null,null,null,null,null,null,null,null,"Общий счет РО+"]
["Вожега п, Транспортная ул, д.21",{"$f":"\"Вожега п, Транспортная ул, д.21\"","v":"Вожега п, Транспортная ул, д.21"},{"$f":"\"Вожега п, Транспортная ул, д.21\"","v":"Вожега п, Транспортная ул, д.21"},{"$f":"\"Вожега п, Транспортная ул, д.21\"","v":"Вожега п, Транспортная ул, д.21"},"Вожега п, Транспортная ул, д.21",{"$f":"\"Вожега п, Транспортная ул, д.21\"","v":"Вожега п, Транспортная ул, д.21"},null,null,null,null,null,null,null,{"$f":"\"Вожега п, Транспортная ул, д.21\"","v":"Вожега п, Транспортная ул, д.21"},null,null,null,null,null,null,null,null,null,null,null,null,null,null,null,null,"Вожега рп, Транспортная ул, д. 21",null,null,null,null,"Вожега рп, Транспортная ул, д. 21",null,null,null,null,null,null,null,null,null,null,"Вожега рп, Транспортная ул, д. 21",null,null,null,null,null,null,"Вожега рп, Транспортная ул, д. 21",null,null,null,null,null,"Вожега рп, Транспортная ул, д. 21",null,null,null,null,null,null,null,null,"Вожега рп, Транспортная ул, д. 21",null,null,null,null,null,"Вожега рп, Транспортная ул, д. 21",null,null,null,null,null,null,null,"Вожега рп, Транспортная ул, д. 21",null,null,null,null,null,null,"Вожега рп, Транспортная ул, д. 21",null,null,null,null,null,null,null,null,"Вожега рп, Транспортная ул, д. 21",null,null,null,null,null,null,null,null,null,null,null,null,null,null,null,null,null,null,null,null,null,null,null,null,null,null,null,null,null,null,null,null,null,null,null,null,null,null,null,"Общий счет РО+496,00","Признан аварийным. Постановление 1224 от 29.12.2023","Исключен 05.03.2024"]
["Вожега п, Транспортная ул, д.22",{"$f":"\"Вожега п, Транспортная ул, д.22\"","v":"Вожега п, Транспортная ул, д.22"},{"$f":"\"Вожега п, Транспортная ул, д.22\"","v":"Вожега п, Транспортная ул, д.22"},{"$f":"\"Вожега п, Транспортная ул, д.22\"","v":"Вожега п, Транспортная ул, д.22"},"Вожега п, Транспортная ул, д.22",{"$f":"\"Вожега п, Транспортная ул, д.22\"","v":"Вожега п, Транспортная ул, д.22"},null,null,null,null,null,null,null,{"$f":"\"Вожега п, Транспортная ул, д.22\"","v":"Вожега п, Транспортная ул, д.22"},null,null,null,null,null,null,null,null,null,null,null,null,null,null,null,null,"Вожега рп, Транспортная ул, д. 22",null,null,null,null,"Вожега рп, Транспортная ул, д. 22",null,null,null,null,null,null,null,null,null,null,"Вожега рп, Транспортная ул, д. 22",null,null,null,null,null,null,"Вожега рп, Транспортная ул, д. 22",null,null,null,null,null,"Вожега рп, Транспортная ул, д. 22",null,null,null,null,null,null,null,null,"Вожега рп, Транспортная ул, д. 22",null,null,null,null,null,"Вожега рп, Транспортная ул, д. 22",null,null,null,null,null,null,null,"Вожега рп, Транспортная ул, д. 22",null,null,null,null,null,null,"Вожега рп, Транспортная ул, д. 22",null,null,null,null,null,null,null,null,"Вожега рп, Транспортная ул, д. 22",null,null,null,null,"Вожега рп, Транспортная ул, д. 22",null,null,null,null,null,null,null,null,"Вожега рп, Транспортная ул, д. 22",null,null,null,null,"Вожега рп, Транспортная ул, д. 22",null,null,null,null,"Вожега рп, Транспортная ул, д. 22",null,null,"Вожега рп, Транспортная ул, д. 22",null,null,null,null,null,null,null,null,null,null,null,null,"Общий счет РО+"]
["Вожега п, Транспортная ул, д.23",{"$f":"\"Вожега п, Транспортная ул, д.23\"","v":"Вожега п, Транспортная ул, д.23"},{"$f":"\"Вожега п, Транспортная ул, д.23\"","v":"Вожега п, Транспортная ул, д.23"},{"$f":"\"Вожега п, Транспортная ул, д.23\"","v":"Вожега п, Транспортная ул, д.23"},"Вожега п, Транспортная ул, д.23",{"$f":"\"Вожега п, Транспортная ул, д.23\"","v":"Вожега п, Транспортная ул, д.23"},null,null,null,null,null,null,null,{"$f":"\"Вожега п, Транспортная ул, д.23\"","v":"Вожега п, Транспортная ул, д.23"},null,null,null,null,null,null,null,null,null,null,null,null,null,null,null,null,"Вожега рп, Транспортная ул, д. 23",null,null,null,null,"Вожега рп, Транспортная ул, д. 23",null,null,null,null,null,null,null,null,null,null,"Вожега рп, Транспортная ул, д. 23",null,null,null,null,null,null,"Вожега рп, Транспортная ул, д. 23",null,null,null,null,null,"Вожега рп, Транспортная ул, д. 23",null,null,null,null,null,null,null,null,"Вожега рп, Транспортная ул, д. 23",null,null,null,null,null,"Вожега рп, Транспортная ул, д. 23",null,null,null,null,null,null,null,"Вожега рп, Транспортная ул, д. 23",null,null,null,null,null,null,"Вожега рп, Транспортная ул, д. 23",null,null,null,null,null,null,null,null,"Вожега рп, Транспортная ул, д. 23",null,null,null,null,null,null,null,null,null,null,null,null,null,null,null,null,null,null,null,null,null,null,null,null,null,null,null,null,null,null,null,null,null,null,null,null,null,null,null,"Общий счет РО+473,00","Признан аварийным. Постановление 1225 от 29.12.2023","Исключен 05.03.2024"]
["Вожега п, Транспортная ул, д.24",{"$f":"\"Вожега п, Транспортная ул, д.24\"","v":"Вожега п, Транспортная ул, д.24"},{"$f":"\"Вожега п, Транспортная ул, д.24\"","v":"Вожега п, Транспортная ул, д.24"},{"$f":"\"Вожега п, Транспортная ул, д.24\"","v":"Вожега п, Транспортная ул, д.24"},"Вожега п, Транспортная ул, д.24",{"$f":"\"Вожега п, Транспортная ул, д.24\"","v":"Вожега п, Транспортная ул, д.24"},null,null,null,null,null,null,null,{"$f":"\"Вожега п, Транспортная ул, д.24\"","v":"Вожега п, Транспортная ул, д.24"},null,null,null,null,null,null,null,null,null,null,null,null,null,null,null,null,"Вожега рп, Транспортная ул, д. 24",null,null,null,null,"Вожега рп, Транспортная ул, д. 24",null,null,null,null,null,null,null,null,null,null,"Вожега рп, Транспортная ул, д. 24",null,null,null,null,null,null,"Вожега рп, Транспортная ул, д. 24",null,null,null,null,null,"Вожега рп, Транспортная ул, д. 24",null,null,null,null,null,null,null,null,"Вожега рп, Транспортная ул, д. 24",null,null,null,null,null,"Вожега рп, Транспортная ул, д. 24",null,null,null,null,null,null,null,"Вожега рп, Транспортная ул, д. 24",null,null,null,null,null,null,"Вожега рп, Транспортная ул, д. 24",null,null,null,null,null,null,null,null,"Вожега рп, Транспортная ул, д. 24",null,null,null,null,"Вожега рп, Транспортная ул, д. 24",null,null,null,null,null,null,null,null,"Вожега рп, Транспортная ул, д. 24",null,null,null,null,"Вожега рп, Транспортная ул, д. 24",null,null,null,null,"Вожега рп, Транспортная ул, д. 24",null,null,"Вожега рп, Транспортная ул, д. 24",null,null,null,null,null,null,null,null,null,null,null,null,"Общий счет РО+"]
["Вожега п, Транспортная ул, д.26А",{"$f":"\"Вожега п, Транспортная ул, д.26А\"","v":"Вожега п, Транспортная ул, д.26А"},{"$f":"\"Вожега п, Транспортная ул, д.26А\"","v":"Вожега п, Транспортная ул, д.26А"},{"$f":"\"Вожега п, Транспортная ул, д.26А\"","v":"Вожега п, Транспортная ул, д.26А"},"Вожега п, Транспортная ул, д.26А",{"$f":"\"Вожега п, Транспортная ул, д.26А\"","v":"Вожега п, Транспортная ул, д.26А"},null,null,null,null,null,null,null,{"$f":"\"Вожега п, Транспортная ул, д.26А\"","v":"Вожега п, Транспортная ул, д.26А"},null,null,null,null,null,null,null,null,null,null,null,null,null,null,null,null,"Вожега рп, Транспортная ул, д. 26А",null,null,null,null,"Вожега рп, Транспортная ул, д. 26А",null,null,null,null,null,null,null,null,null,null,"Вожега рп, Транспортная ул, д. 26А",null,null,null,null,null,null,"Вожега рп, Транспортная ул, д. 26А",null,null,null,null,null,"Вожега рп, Транспортная ул, д. 26А",null,null,null,null,null,null,null,null,"Вожега рп, Транспортная ул, д. 26А",null,null,null,null,null,"Вожега рп, Транспортная ул, д. 26А",null,null,null,null,null,null,null,"Вожега рп, Транспортная ул, д. 26А",null,null,null,null,null,null,"Вожега рп, Транспортная ул, д. 26А",null,null,null,null,null,null,null,null,"Вожега рп, Транспортная ул, д. 26А",null,null,null,null,"Вожега рп, Транспортная ул, д. 26А",null,null,null,null,null,null,null,null,"Вожега рп, Транспортная ул, д. 26А",null,null,null,null,null,null,null,null,null,null,null,null,null,null,null,null,null,null,null,null,null,null,null,null,null,"Общий счет РО+141,20","Признан аварийным. Постановление 1543 от 28.12.2024","Исключен 02.04.2025"]
["Вожега п, Транспортная ул, д.3",null,null,null,null,null,null,null,null,null,null,null,null,null,null,null,null,null,null,null,null,null,null,null,null,null,null,null,null,null,null,null,null,null,null,null,null,null,null,null,null,null,null,null,null,null,null,null,null,null,null,null,null,null,null,null,null,null,null,null,null,null,null,null,null,null,null,null,null,null,null,null,null,null,null,null,null,null,null,null,null,null,null,null,null,null,null,null,null,null,null,null,null,null,null,null,null,null,null,null,null,null,null,null,null,null,null,null,null,null,null,null,null,null,null,null,null,null,null,null,null,null,null,null,null,null,null,null,null,null,null,null,null,null,null,null,null,null,null,null,"Исключен "]
["Вожега п, Транспортная ул, д.31",{"$f":"\"Вожега п, Транспортная ул, д.31\"","v":"Вожега п, Транспортная ул, д.31"},{"$f":"\"Вожега п, Транспортная ул, д.31\"","v":"Вожега п, Транспортная ул, д.31"},{"$f":"\"Вожега п, Транспортная ул, д.31\"","v":"Вожега п, Транспортная ул, д.31"},"Вожега п, Транспортная ул, д.31",{"$f":"\"Вожега п, Транспортная ул, д.31\"","v":"Вожега п, Транспортная ул, д.31"},null,null,null,null,null,null,null,{"$f":"\"Вожега п, Транспортная ул, д.31\"","v":"Вожега п, Транспортная ул, д.31"},null,null,null,null,null,null,null,null,null,null,null,null,null,null,null,null,"Вожега рп, Транспортная ул, д. 31",null,null,null,null,"Вожега рп, Транспортная ул, д. 31",null,null,null,null,null,null,null,null,null,null,"Вожега рп, Транспортная ул, д. 31",null,null,null,null,null,null,"Вожега рп, Транспортная ул, д. 31",null,null,null,null,null,"Вожега рп, Транспортная ул, д. 31",null,null,null,null,null,null,null,null,"Вожега рп, Транспортная ул, д. 31",null,null,null,null,null,"Вожега рп, Транспортная ул, д. 31",null,null,null,null,null,null,null,"Вожега рп, Транспортная ул, д. 31",null,null,null,null,null,null,"Вожега рп, Транспортная ул, д. 31",null,null,null,null,null,null,null,null,"Вожега рп, Транспортная ул, д. 31",null,null,null,null,"Вожега рп, Транспортная ул, д. 31",null,null,null,null,null,null,null,null,"Вожега рп, Транспортная ул, д. 31",null,null,null,null,"Вожега рп, Транспортная ул, д. 31",null,null,null,null,"Вожега рп, Транспортная ул, д. 31",null,null,"Вожега рп, Транспортная ул, д. 31",null,null,null,null,null,null,null,null,null,null,null,null,"Общий счет РО+"]
["Вожега п, Транспортная ул, д.33",{"$f":"\"Вожега п, Транспортная ул, д.33\"","v":"Вожега п, Транспортная ул, д.33"},{"$f":"\"Вожега п, Транспортная ул, д.33\"","v":"Вожега п, Транспортная ул, д.33"},{"$f":"\"Вожега п, Транспортная ул, д.33\"","v":"Вожега п, Транспортная ул, д.33"},"Вожега п, Транспортная ул, д.33",{"$f":"\"Вожега п, Транспортная ул, д.33\"","v":"Вожега п, Транспортная ул, д.33"},null,null,null,null,null,null,null,{"$f":"\"Вожега п, Транспортная ул, д.33\"","v":"Вожега п, Транспортная ул, д.33"},null,null,null,null,null,null,null,null,null,null,null,null,null,null,null,null,"Вожега рп, Транспортная ул, д. 33",null,null,null,null,"Вожега рп, Транспортная ул, д. 33",null,null,null,null,null,null,null,null,null,null,"Вожега рп, Транспортная ул, д. 33",null,null,null,null,null,null,"Вожега рп, Транспортная ул, д. 33",null,null,null,null,null,"Вожега рп, Транспортная ул, д. 33",null,null,null,null,null,null,null,null,"Вожега рп, Транспортная ул, д. 33",null,null,null,null,null,"Вожега рп, Транспортная ул, д. 33",null,null,null,null,null,null,null,"Вожега рп, Транспортная ул, д. 33",null,null,null,null,null,null,"Вожега рп, Транспортная ул, д. 33",null,null,null,null,null,null,null,null,"Вожега рп, Транспортная ул, д. 33",null,null,null,null,"Вожега рп, Транспортная ул, д. 33",null,null,null,null,null,null,null,null,"Вожега рп, Транспортная ул, д. 33",null,null,null,null,"Вожега рп, Транспортная ул, д. 33",null,null,null,null,"Вожега рп, Транспортная ул, д. 33",null,null,"Вожега рп, Транспортная ул, д. 33",null,null,null,null,null,null,null,null,null,null,null,null,"Общий счет РО+"]
["Вожега п, Транспортная ул, д.35",{"$f":"\"Вожега п, Транспортная ул, д.35\"","v":"Вожега п, Транспортная ул, д.35"},{"$f":"\"Вожега п, Транспортная ул, д.35\"","v":"Вожега п, Транспортная ул, д.35"},{"$f":"\"Вожега п, Транспортная ул, д.35\"","v":"Вожега п, Транспортная ул, д.35"},"Вожега п, Транспортная ул, д.35",{"$f":"\"Вожега п, Транспортная ул, д.35\"","v":"Вожега п, Транспортная ул, д.35"},null,null,null,null,null,null,null,{"$f":"\"Вожега п, Транспортная ул, д.35\"","v":"Вожега п, Транспортная ул, д.35"},null,null,null,null,null,null,null,null,null,null,null,null,null,null,null,null,"Вожега рп, Транспортная ул, д. 35",null,null,null,null,"Вожега рп, Транспортная ул, д. 35",null,null,null,null,null,null,null,null,null,null,"Вожега рп, Транспортная ул, д. 35",null,null,null,null,null,null,"Вожега рп, Транспортная ул, д. 35",null,null,null,null,null,"Вожега рп, Транспортная ул, д. 35",null,null,null,null,null,null,null,null,"Вожега рп, Транспортная ул, д. 35",null,null,null,null,null,"Вожега рп, Транспортная ул, д. 35",null,null,null,null,null,null,null,"Вожега рп, Транспортная ул, д. 35",null,null,null,null,null,null,"Вожега рп, Транспортная ул, д. 35",null,null,null,null,null,null,null,null,"Вожега рп, Транспортная ул, д. 35",null,null,null,null,"Вожега рп, Транспортная ул, д. 35",null,null,null,null,null,null,null,null,"Вожега рп, Транспортная ул, д. 35",null,null,null,null,"Вожега рп, Транспортная ул, д. 35",null,null,null,null,"Вожега рп, Транспортная ул, д. 35",null,null,"Вожега рп, Транспортная ул, д. 35",null,null,null,null,null,null,null,null,null,null,null,null,"Общий счет РО+"]
["Вожега п, Транспортная ул, д.37",{"$f":"\"Вожега п, Транспортная ул, д.37\"","v":"Вожега п, Транспортная ул, д.37"},{"$f":"\"Вожега п, Транспортная ул, д.37\"","v":"Вожега п, Транспортная ул, д.37"},{"$f":"\"Вожега п, Транспортная ул, д.37\"","v":"Вожега п, Транспортная ул, д.37"},"Вожега п, Транспортная ул, д.37",{"$f":"\"Вожега п, Транспортная ул, д.37\"","v":"Вожега п, Транспортная ул, д.37"},null,null,null,null,null,null,null,{"$f":"\"Вожега п, Транспортная ул, д.37\"","v":"Вожега п, Транспортная ул, д.37"},null,null,null,null,null,null,null,null,null,null,null,null,null,null,null,null,"Вожега рп, Транспортная ул, д. 37",null,null,null,null,"Вожега рп, Транспортная ул, д. 37",null,null,null,null,null,null,null,null,null,null,"Вожега рп, Транспортная ул, д. 37",null,null,null,null,null,null,"Вожега рп, Транспортная ул, д. 37",null,null,null,null,null,"Вожега рп, Транспортная ул, д. 37",null,null,null,null,null,null,null,null,"Вожега рп, Транспортная ул, д. 37",null,null,null,null,null,"Вожега рп, Транспортная ул, д. 37",null,null,null,null,null,null,null,"Вожега рп, Транспортная ул, д. 37",null,null,null,null,null,null,"Вожега рп, Транспортная ул, д. 37",null,null,null,null,null,null,null,null,"Вожега рп, Транспортная ул, д. 37",null,null,null,null,"Вожега рп, Транспортная ул, д. 37",null,null,null,null,null,null,null,null,"Вожега рп, Транспортная ул, д. 37",null,null,null,null,"Вожега рп, Транспортная ул, д. 37",null,null,null,null,"Вожега рп, Транспортная ул, д. 37",null,null,"Вожега рп, Транспортная ул, д. 37",null,null,null,null,null,null,null,null,null,null,null,null,"Общий счет РО+"]
["Вожега п, Транспортный пер, д.15",{"$f":"\"Вожега п, Транспортный пер, д.15\"","v":"Вожега п, Транспортный пер, д.15"},{"$f":"\"Вожега п, Транспортный пер, д.15\"","v":"Вожега п, Транспортный пер, д.15"},{"$f":"\"Вожега п, Транспортный пер, д.15\"","v":"Вожега п, Транспортный пер, д.15"},"Вожега п, Транспортный пер, д.15",{"$f":"\"Вожега п, Транспортный пер, д.15\"","v":"Вожега п, Транспортный пер, д.15"},null,null,null,null,null,null,null,{"$f":"\"Вожега п, Транспортный пер, д.15\"","v":"Вожега п, Транспортный пер, д.15"},null,null,null,null,null,null,null,null,null,null,null,null,null,null,null,null,"Вожега рп, Транспортный пер, д. 15",null,null,null,null,"Вожега рп, Транспортный пер, д. 15",null,null,null,null,null,null,null,null,null,null,"Вожега рп, Транспортный пер, д. 15",null,null,null,null,null,null,"Вожега рп, Транспортный пер, д. 15",null,null,null,null,null,"Вожега рп, Транспортный пер, д. 15",null,null,null,null,null,null,null,null,"Вожега рп, Транспортный пер, д. 15",null,null,null,null,null,"Вожега рп, Транспортный пер, д. 15",null,null,null,null,null,null,null,"Вожега рп, Транспортный пер, д. 15",null,null,null,null,null,null,"Вожега рп, Транспортный пер, д. 15",null,null,null,null,null,null,null,null,"Вожега рп, Транспортный пер, д. 15",null,null,null,null,"Вожега рп, Транспортный пер, д. 15",null,null,null,null,null,null,null,null,"Вожега рп, Транспортный пер, д. 15",null,null,null,null,"Вожега рп, Транспортный пер, д. 15",null,null,null,null,"Вожега рп, Транспортный пер, д. 15",null,null,"Вожега рп, Транспортный пер, д. 15",null,null,null,null,null,null,null,null,null,null,null,null,"Общий счет РО+"]
["Вожега п, Транспортный пер, д.18",{"$f":"\"Вожега п, Транспортный пер, д.18\"","v":"Вожега п, Транспортный пер, д.18"},{"$f":"\"Вожега п, Транспортный пер, д.18\"","v":"Вожега п, Транспортный пер, д.18"},{"$f":"\"Вожега п, Транспортный пер, д.18\"","v":"Вожега п, Транспортный пер, д.18"},"Вожега п, Транспортный пер, д.18",{"$f":"\"Вожега п, Транспортный пер, д.18\"","v":"Вожега п, Транспортный пер, д.18"},null,null,null,null,null,null,null,{"$f":"\"Вожега п, Транспортный пер, д.18\"","v":"Вожега п, Транспортный пер, д.18"},null,null,null,null,null,null,null,null,null,null,null,null,null,null,null,null,"Вожега рп, Транспортный пер, д. 18",null,null,null,null,"Вожега рп, Транспортный пер, д. 18",null,null,null,null,null,null,null,null,null,null,"Вожега рп, Транспортный пер, д. 18",null,null,null,null,null,null,"Вожега рп, Транспортный пер, д. 18",null,null,null,null,null,"Вожега рп, Транспортный пер, д. 18",null,null,null,null,null,null,null,null,"Вожега рп, Транспортный пер, д. 18",null,null,null,null,null,"Вожега рп, Транспортный пер, д. 18",null,null,null,null,null,null,null,"Вожега рп, Транспортный пер, д. 18",null,null,null,null,null,null,"Вожега рп, Транспортный пер, д. 18",null,null,null,null,null,null,null,null,"Вожега рп, Транспортный пер, д. 18",null,null,null,null,"Вожега рп, Транспортный пер, д. 18",null,null,null,null,null,null,null,null,"Вожега рп, Транспортный пер, д. 18",null,null,null,null,"Вожега рп, Транспортный пер, д. 18",null,null,null,null,"Вожега рп, Транспортный пер, д. 18",null,null,"Вожега рп, Транспортный пер, д. 18",null,null,null,null,null,null,null,null,null,null,null,null,"Общий счет РО+"]
["Вожега п, Транспортный пер, д.20",{"$f":"\"Вожега п, Транспортный пер, д.20\"","v":"Вожега п, Транспортный пер, д.20"},{"$f":"\"Вожега п, Транспортный пер, д.20\"","v":"Вожега п, Транспортный пер, д.20"},{"$f":"\"Вожега п, Транспортный пер, д.20\"","v":"Вожега п, Транспортный пер, д.20"},"Вожега п, Транспортный пер, д.20",{"$f":"\"Вожега п, Транспортный пер, д.20\"","v":"Вожега п, Транспортный пер, д.20"},null,null,null,null,null,null,null,{"$f":"\"Вожега п, Транспортный пер, д.20\"","v":"Вожега п, Транспортный пер, д.20"},null,null,null,null,null,null,null,null,null,null,null,null,null,null,null,null,"Вожега рп, Транспортный пер, д. 20",null,null,null,null,"Вожега рп, Транспортный пер, д. 20",null,null,null,null,null,null,null,null,null,null,"Вожега рп, Транспортный пер, д. 20",null,null,null,null,null,null,"Вожега рп, Транспортный пер, д. 20",null,null,null,null,null,"Вожега рп, Транспортный пер, д. 20",null,null,null,null,null,null,null,null,"Вожега рп, Транспортный пер, д. 20",null,null,null,null,null,"Вожега рп, Транспортный пер, д. 20",null,null,null,null,null,null,null,"Вожега рп, Транспортный пер, д. 20",null,null,null,null,null,null,"Вожега рп, Транспортный пер, д. 20",null,null,null,null,null,null,null,null,"Вожега рп, Транспортный пер, д. 20",null,null,null,null,"Вожега рп, Транспортный пер, д. 20",null,null,null,null,null,null,null,null,"Вожега рп, Транспортный пер, д. 20",null,null,null,null,"Вожега рп, Транспортный пер, д. 20",null,null,null,null,"Вожега рп, Транспортный пер, д. 20",null,null,"Вожега рп, Транспортный пер, д. 20",null,null,null,null,null,null,null,null,null,null,null,null,"Общий счет РО+"]
["Вожега п, Транспортный пер, д.22",{"$f":"\"Вожега п, Транспортный пер, д.22\"","v":"Вожега п, Транспортный пер, д.22"},{"$f":"\"Вожега п, Транспортный пер, д.22\"","v":"Вожега п, Транспортный пер, д.22"},{"$f":"\"Вожега п, Транспортный пер, д.22\"","v":"Вожега п, Транспортный пер, д.22"},"Вожега п, Транспортный пер, д.22",{"$f":"\"Вожега п, Транспортный пер, д.22\"","v":"Вожега п, Транспортный пер, д.22"},null,null,null,null,null,null,null,{"$f":"\"Вожега п, Транспортный пер, д.22\"","v":"Вожега п, Транспортный пер, д.22"},null,null,null,null,null,null,null,null,null,null,null,null,null,null,null,null,"Вожега рп, Транспортный пер, д. 22",null,null,null,null,"Вожега рп, Транспортный пер, д. 22",null,null,null,null,null,null,null,null,null,null,"Вожега рп, Транспортный пер, д. 22",null,null,null,null,null,null,"Вожега рп, Транспортный пер, д. 22",null,null,null,null,null,"Вожега рп, Транспортный пер, д. 22",null,null,null,null,null,null,null,null,"Вожега рп, Транспортный пер, д. 22",null,null,null,null,null,"Вожега рп, Транспортный пер, д. 22",null,null,null,null,null,null,null,"Вожега рп, Транспортный пер, д. 22",null,null,null,null,null,null,"Вожега рп, Транспортный пер, д. 22",null,null,null,null,null,null,null,null,"Вожега рп, Транспортный пер, д. 22",null,null,null,null,"Вожега рп, Транспортный пер, д. 22",null,null,null,null,null,null,null,null,"Вожега рп, Транспортный пер, д. 22",null,null,null,null,"Вожега рп, Транспортный пер, д. 22",null,null,null,null,"Вожега рп, Транспортный пер, д. 22",null,null,"Вожега рп, Транспортный пер, д. 22",null,null,null,null,null,null,null,null,null,null,null,null,"Общий счет РО+"]
["Вожега п, Транспортный пер, д.24",{"$f":"\"Вожега п, Транспортный пер, д.24\"","v":"Вожега п, Транспортный пер, д.24"},{"$f":"\"Вожега п, Транспортный пер, д.24\"","v":"Вожега п, Транспортный пер, д.24"},{"$f":"\"Вожега п, Транспортный пер, д.24\"","v":"Вожега п, Транспортный пер, д.24"},"Вожега п, Транспортный пер, д.24",{"$f":"\"Вожега п, Транспортный пер, д.24\"","v":"Вожега п, Транспортный пер, д.24"},null,null,null,null,null,null,null,{"$f":"\"Вожега п, Транспортный пер, д.24\"","v":"Вожега п, Транспортный пер, д.24"},null,null,null,null,null,null,null,null,null,null,null,null,null,null,null,null,"Вожега рп, Транспортный пер, д. 24",null,null,null,null,"Вожега рп, Транспортный пер, д. 24",null,null,null,null,null,null,null,null,null,null,"Вожега рп, Транспортный пер, д. 24",null,null,null,null,null,null,"Вожега рп, Транспортный пер, д. 24",null,null,null,null,null,"Вожега рп, Транспортный пер, д. 24",null,null,null,null,null,null,null,null,"Вожега рп, Транспортный пер, д. 24",null,null,null,null,null,"Вожега рп, Транспортный пер, д. 24",null,null,null,null,null,null,null,"Вожега рп, Транспортный пер, д. 24",null,null,null,null,null,null,"Вожега рп, Транспортный пер, д. 24",null,null,null,null,null,null,null,null,"Вожега рп, Транспортный пер, д. 24",null,null,null,null,"Вожега рп, Транспортный пер, д. 24",null,null,null,null,null,null,null,null,"Вожега рп, Транспортный пер, д. 24",null,null,null,null,"Вожега рп, Транспортный пер, д. 24",null,null,null,null,"Вожега рп, Транспортный пер, д. 24",null,null,"Вожега рп, Транспортный пер, д. 24",null,null,null,null,null,null,null,null,null,null,null,null,"Общий счет РО+"]
[null,null,null,null,null,null,null,null,null,null,null,null,null,null,null,null,null,null,null,null,null,null,null,null,null,null,null,null,null,null,null,null,null,null,null,null,null,null,null,null,null,null,null,null,null,null,null,null,null,null,null,null,null,null,null,null,null,null,null,null,null,null,null,null,null,null,null,null,null,null,null,null,null,null,null,null,null,null,null,null,null,null,null,null,null,null,null,null,null,null,null,null,null,null,null,null,null,null,null,null,null,null,null,null,null,null,null,null,null,null,null,null,null,null,null,null,null,null,null,null,null,null,"Вожега рп, Хватова ул, д. 1",null,null,"Вожега рп, Хватова ул, д. 1",null,null,null,null,null,null,null,null,null,null,null,null,null,"Обязанность с 01.10.2026"]
["Вожега п, Хватова ул, д.3",{"$f":"\"Вожега п, Хватова ул, д.3\"","v":"Вожега п, Хватова ул, д.3"},{"$f":"\"Вожега п, Хватова ул, д.3\"","v":"Вожега п, Хватова ул, д.3"},{"$f":"\"Вожега п, Хватова ул, д.3\"","v":"Вожега п, Хватова ул, д.3"},"Вожега п, Хватова ул, д.3",{"$f":"\"Вожега п, Хватова ул, д.3\"","v":"Вожега п, Хватова ул, д.3"},null,null,null,null,null,null,null,{"$f":"\"Вожега п, Хватова ул, д.3\"","v":"Вожега п, Хватова ул, д.3"},null,null,null,null,null,null,null,null,null,null,null,null,null,null,null,null,"Вожега рп, Хватова ул, д. 3",null,null,null,null,"Вожега рп, Хватова ул, д. 3",null,null,null,null,null,null,null,null,null,null,"Вожега рп, Хватова ул, д. 3",null,null,null,null,null,null,"Вожега рп, Хватова ул, д. 3",null,null,null,null,null,"Вожега рп, Хватова ул, д. 3",null,null,null,null,null,null,null,null,"Вожега рп, Хватова ул, д. 3",null,null,null,null,null,"Вожега рп, Хватова ул, д. 3",null,null,null,null,null,null,null,"Вожега рп, Хватова ул, д. 3",null,null,null,null,null,null,"Вожега рп, Хватова ул, д. 3",null,null,null,null,null,null,null,null,"Вожега рп, Хватова ул, д. 3",null,null,null,null,"Вожега рп, Хватова ул, д. 3",null,null,null,null,null,null,null,null,"Вожега рп, Хватова ул, д. 3",null,null,null,null,"Вожега рп, Хватова ул, д. 3",null,null,null,null,"Вожега рп, Хватова ул, д. 3",null,null,"Вожега рп, Хватова ул, д. 3",null,null,null,null,null,null,null,null,null,null,null,null,"Общий счет РО+"]
["Вожега п, Хватова ул, д.5",{"$f":"\"Вожега п, Хватова ул, д.5\"","v":"Вожега п, Хватова ул, д.5"},{"$f":"\"Вожега п, Хватова ул, д.5\"","v":"Вожега п, Хватова ул, д.5"},{"$f":"\"Вожега п, Хватова ул, д.5\"","v":"Вожега п, Хватова ул, д.5"},"Вожега п, Хватова ул, д.5",{"$f":"\"Вожега п, Хватова ул, д.5\"","v":"Вожега п, Хватова ул, д.5"},null,null,null,null,null,null,null,{"$f":"\"Вожега п, Хватова ул, д.5\"","v":"Вожега п, Хватова ул, д.5"},null,null,null,null,null,null,null,null,null,null,null,null,null,null,null,null,"Вожега рп, Хватова ул, д. 5",null,null,null,null,"Вожега рп, Хватова ул, д. 5",null,null,null,null,null,null,null,null,null,null,"Вожега рп, Хватова ул, д. 5",null,null,null,null,null,null,"Вожега рп, Хватова ул, д. 5",null,null,null,null,null,"Вожега рп, Хватова ул, д. 5",null,null,null,null,null,null,null,null,"Вожега рп, Хватова ул, д. 5",null,null,null,null,null,"Вожега рп, Хватова ул, д. 5",null,null,null,null,null,null,null,"Вожега рп, Хватова ул, д. 5",null,null,null,null,null,null,"Вожега рп, Хватова ул, д. 5",null,null,null,null,null,null,null,null,"Вожега рп, Хватова ул, д. 5",null,null,null,null,"Вожега рп, Хватова ул, д. 5",null,null,null,null,null,null,null,null,"Вожега рп, Хватова ул, д. 5",null,null,null,null,"Вожега рп, Хватова ул, д. 5",null,null,null,null,"Вожега рп, Хватова ул, д. 5",null,null,"Вожега рп, Хватова ул, д. 5",null,null,null,null,null,null,null,null,null,null,null,null,"Общий счет РО+"]
["Вожега п, Хватова ул, д.7",{"$f":"\"Вожега п, Хватова ул, д.7\"","v":"Вожега п, Хватова ул, д.7"},{"$f":"\"Вожега п, Хватова ул, д.7\"","v":"Вожега п, Хватова ул, д.7"},{"$f":"\"Вожега п, Хватова ул, д.7\"","v":"Вожега п, Хватова ул, д.7"},"Вожега п, Хватова ул, д.7",{"$f":"\"Вожега п, Хватова ул, д.7\"","v":"Вожега п, Хватова ул, д.7"},null,null,null,null,null,null,null,{"$f":"\"Вожега п, Хватова ул, д.7\"","v":"Вожега п, Хватова ул, д.7"},null,null,null,null,null,null,null,null,null,null,null,null,null,null,null,null,"Вожега рп, Хватова ул, д. 7",null,null,null,null,"Вожега рп, Хватова ул, д. 7",null,null,null,null,null,null,null,null,null,null,"Вожега рп, Хватова ул, д. 7",null,null,null,null,null,null,"Вожега рп, Хватова ул, д. 7",null,null,null,null,null,"Вожега рп, Хватова ул, д. 7",null,null,null,null,null,null,null,null,"Вожега рп, Хватова ул, д. 7",null,null,null,null,null,"Вожега рп, Хватова ул, д. 7",null,null,null,null,null,null,null,"Вожега рп, Хватова ул, д. 7",null,null,null,null,null,null,"Вожега рп, Хватова ул, д. 7",null,null,null,null,null,null,null,null,"Вожега рп, Хватова ул, д. 7",null,null,null,null,"Вожега рп, Хватова ул, д. 7",null,null,null,null,null,null,null,null,"Вожега рп, Хватова ул, д. 7",null,null,null,null,"Вожега рп, Хватова ул, д. 7",null,null,null,null,"Вожега рп, Хватова ул, д. 7",null,null,"Вожега рп, Хватова ул, д. 7",null,null,null,null,null,null,null,null,null,null,null,null,"Общий счет РО+"]
["Вожега п, Школьная ул, д.4",{"$f":"\"Вожега п, Школьная ул, д.4\"","v":"Вожега п, Школьная ул, д.4"},{"$f":"\"Вожега п, Школьная ул, д.4\"","v":"Вожега п, Школьная ул, д.4"},{"$f":"\"Вожега п, Школьная ул, д.4\"","v":"Вожега п, Школьная ул, д.4"},"Вожега п, Школьная ул, д.4",{"$f":"\"Вожега п, Школьная ул, д.4\"","v":"Вожега п, Школьная ул, д.4"},null,null,null,null,null,null,null,{"$f":"\"Вожега п, Школьная ул, д.4\"","v":"Вожега п, Школьная ул, д.4"},null,null,null,null,null,null,null,null,null,null,null,null,null,null,null,null,"Вожега рп, Школьная ул, д. 4",null,null,null,null,null,null,null,null,null,null,null,null,null,null,null,null,null,null,null,null,null,null,null,null,null,null,null,null,null,null,null,null,null,null,null,null,null,null,null,null,null,null,null,null,null,null,null,null,null,null,null,null,null,null,null,null,null,null,null,null,null,null,null,null,null,null,null,null,null,null,null,null,null,null,null,null,null,null,null,null,null,null,null,null,null,null,null,null,null,null,null,null,null,null,null,null,null,null,null,null,null,null,null,null,null,null,null,"Общий счет РО - 132,30","Дом 4-х квартирный","Исключен 01.04.2019"]
["Савинская (Вожегодское МО) д, д.13",{"$f":"\"Савинская (Вожегодское МО) д, д.13\"","v":"Савинская (Вожегодское МО) д, д.13"},{"$f":"\"Савинская (Вожегодское МО) д, д.13\"","v":"Савинская (Вожегодское МО) д, д.13"},{"$f":"\"Савинская (Вожегодское МО) д, д.13\"","v":"Савинская (Вожегодское МО) д, д.13"},"Савинская (Вожегодское МО) д, д.13",{"$f":"\"Савинская (Вожегодское МО) д, д.13\"","v":"Савинская (Вожегодское МО) д, д.13"},null,null,null,null,null,null,null,{"$f":"\"Савинская (Вожегодское МО) д, д.13\"","v":"Савинская (Вожегодское МО) д, д.13"},null,null,null,null,null,null,null,null,null,null,null,null,null,null,null,null,"Вожегодское с/с, Савинская д, д. 13",null,null,null,null,"Вожегодское с/с, Савинская д, д. 13",null,null,null,null,null,null,null,null,null,null,"Вожегодское с/с, Савинская д, д. 13",null,null,null,null,null,null,"Вожегодское с/с, Савинская д, д. 13",null,null,null,null,null,"Вожегодское с/с, Савинская д, д. 13",null,null,null,null,null,null,null,null,"Вожегодское с/с, Савинская д, д. 13",null,null,null,null,null,"Вожегодское с/с, Савинская д, д. 13",null,null,null,null,null,null,null,"Вожегодское с/с, Савинская д, д. 13",null,null,null,null,null,null,"Вожегодское с/с, Савинская д, д. 13",null,null,null,null,null,null,null,null,"Вожегодское с/с, Савинская д, д. 13",null,null,null,null,"Вожегодское с/с, Савинская д, д. 13",null,null,null,null,null,null,null,null,"Вожегодское с/с, Савинская д, д. 13",null,null,null,null,"Вожегодское с/с, Савинская д, д. 13",null,null,null,null,"Вожегодское с/с, Савинская д, д. 13",null,null,"Вожегодское с/с, Савинская д, д. 13",null,null,null,null,null,null,null,null,null,null,null,null,"Общий счет РО+"]
["Кадниковский п, Завокзальная ул, д.4",{"$f":"\"Кадниковский п, Завокзальная ул, д.4\"","v":"Кадниковский п, Завокзальная ул, д.4"},{"$f":"\"Кадниковский п, Завокзальная ул, д.4\"","v":"Кадниковский п, Завокзальная ул, д.4"},{"$f":"\"Кадниковский п, Завокзальная ул, д.4\"","v":"Кадниковский п, Завокзальная ул, д.4"},"Кадниковский п, Завокзальная ул, д.4",{"$f":"\"Кадниковский п, Завокзальная ул, д.4\"","v":"Кадниковский п, Завокзальная ул, д.4"},null,null,null,null,null,null,null,{"$f":"\"Кадниковский п, Завокзальная ул, д.4\"","v":"Кадниковский п, Завокзальная ул, д.4"},null,null,null,null,null,null,null,null,null,null,null,null,null,null,null,null,"Кадниковский п, Завокзальная ул, д. 4",null,null,null,null,"Кадниковский п, Завокзальная ул, д. 4",null,null,null,null,null,null,null,null,null,null,"Кадниковский п, Завокзальная ул, д. 4",null,null,null,null,null,null,"Кадниковский п, Завокзальная ул, д. 4",null,null,null,null,null,"Кадниковский п, Завокзальная ул, д. 4",null,null,null,null,null,null,null,null,"Кадниковский п, Завокзальная ул, д. 4",null,null,null,null,null,"Кадниковский п, Завокзальная ул, д. 4",null,null,null,null,null,null,null,"Кадниковский п, Завокзальная ул, д. 4",null,null,null,null,null,null,"Кадниковский п, Завокзальная ул, д. 4",null,null,null,null,null,null,null,null,"Кадниковский п, Завокзальная ул, д. 4",null,null,null,null,"Кадниковский п, Завокзальная ул, д. 4",null,null,null,null,null,null,null,null,"Кадниковский п, Завокзальная ул, д. 4",null,null,null,null,"Кадниковский п, Завокзальная ул, д. 4",null,null,null,null,"Кадниковский п, Завокзальная ул, д. 4",null,null,"Кадниковский п, Завокзальная ул, д. 4",null,null,null,null,null,null,null,null,null,null,null,null,"Общий счет РО+"]
["Кадниковский п, Завокзальная ул, д.5",{"$f":"\"Кадниковский п, Завокзальная ул, д.5\"","v":"Кадниковский п, Завокзальная ул, д.5"},{"$f":"\"Кадниковский п, Завокзальная ул, д.5\"","v":"Кадниковский п, Завокзальная ул, д.5"},{"$f":"\"Кадниковский п, Завокзальная ул, д.5\"","v":"Кадниковский п, Завокзальная ул, д.5"},"Кадниковский п, Завокзальная ул, д.5",{"$f":"\"Кадниковский п, Завокзальная ул, д.5\"","v":"Кадниковский п, Завокзальная ул, д.5"},null,null,null,null,null,null,null,{"$f":"\"Кадниковский п, Завокзальная ул, д.5\"","v":"Кадниковский п, Завокзальная ул, д.5"},null,null,null,null,null,null,null,null,null,null,null,null,null,null,null,null,"Кадниковский п, Завокзальная ул, д. 5",null,null,null,null,"Кадниковский п, Завокзальная ул, д. 5",null,null,null,null,null,null,null,null,null,null,"Кадниковский п, Завокзальная ул, д. 5",null,null,null,null,null,null,"Кадниковский п, Завокзальная ул, д. 5",null,null,null,null,null,"Кадниковский п, Завокзальная ул, д. 5",null,null,null,null,null,null,null,null,"Кадниковский п, Завокзальная ул, д. 5",null,null,null,null,null,"Кадниковский п, Завокзальная ул, д. 5",null,null,null,null,null,null,null,"Кадниковский п, Завокзальная ул, д. 5",null,null,null,null,null,null,"Кадниковский п, Завокзальная ул, д. 5",null,null,null,null,null,null,null,null,"Кадниковский п, Завокзальная ул, д. 5",null,null,null,null,"Кадниковский п, Завокзальная ул, д. 5",null,null,null,null,null,null,null,null,"Кадниковский п, Завокзальная ул, д. 5",null,null,null,null,"Кадниковский п, Завокзальная ул, д. 5",null,null,null,null,"Кадниковский п, Завокзальная ул, д. 5",null,null,"Кадниковский п, Завокзальная ул, д. 5",null,null,null,null,null,null,null,null,null,null,null,null,"Общий счет РО+"]
["Молодежный п, д.1",{"$f":"\"Молодежный п, д.1\"","v":"Молодежный п, д.1"},{"$f":"\"Молодежный п, д.1\"","v":"Молодежный п, д.1"},{"$f":"\"Молодежный п, д.1\"","v":"Молодежный п, д.1"},"Молодежный п, д.1",{"$f":"\"Молодежный п, д.1\"","v":"Молодежный п, д.1"},null,null,null,null,null,null,null,{"$f":"\"Молодежный п, д.1\"","v":"Молодежный п, д.1"},null,null,null,null,null,null,null,null,null,null,null,null,null,null,null,null,"Молодежный п, д. 1",null,null,null,null,"Молодежный п, д. 1",null,null,null,null,null,null,null,null,null,null,"Молодежный п, д. 1",null,null,null,null,null,null,"Молодежный п, д. 1",null,null,null,null,null,"Молодежный п, д. 1",null,null,null,null,null,null,null,null,"Молодежный п, д. 1",null,null,null,null,null,"Молодежный п, д. 1",null,null,null,null,null,null,null,"Молодежный п, д. 1",null,null,null,null,null,null,"Молодежный п, д. 1",null,null,null,null,null,null,null,null,"Молодежный п, д. 1",null,null,null,null,"Молодежный п, д. 1",null,null,null,null,null,null,null,null,"Молодежный п, д. 1",null,null,null,null,"Молодежный п, д. 1",null,null,null,null,"Молодежный п, д. 1",null,null,"Молодежный п, д. 1",null,null,null,null,null,null,null,null,null,null,null,null,"Общий счет РО+"]
["Молодежный п, д.2",{"$f":"\"Молодежный п, д.2\"","v":"Молодежный п, д.2"},{"$f":"\"Молодежный п, д.2\"","v":"Молодежный п, д.2"},{"$f":"\"Молодежный п, д.2\"","v":"Молодежный п, д.2"},"Молодежный п, д.2",{"$f":"\"Молодежный п, д.2\"","v":"Молодежный п, д.2"},null,null,null,null,null,null,null,{"$f":"\"Молодежный п, д.2\"","v":"Молодежный п, д.2"},null,null,null,null,null,null,null,null,null,null,null,null,null,null,null,null,"Молодежный п, д. 2",null,null,null,null,"Молодежный п, д. 2",null,null,null,null,null,null,null,null,null,null,"Молодежный п, д. 2",null,null,null,null,null,null,"Молодежный п, д. 2",null,null,null,null,null,"Молодежный п, д. 2",null,null,null,null,null,null,null,null,"Молодежный п, д. 2",null,null,null,null,null,"Молодежный п, д. 2",null,null,null,null,null,null,null,"Молодежный п, д. 2",null,null,null,null,null,null,"Молодежный п, д. 2",null,null,null,null,null,null,null,null,"Молодежный п, д. 2",null,null,null,null,"Молодежный п, д. 2",null,null,null,null,null,null,null,null,"Молодежный п, д. 2",null,null,null,null,"Молодежный п, д. 2",null,null,null,null,"Молодежный п, д. 2",null,null,"Молодежный п, д. 2",null,null,null,null,null,null,null,null,null,null,null,null,"Общий счет РО+"]
["Молодежный п, д.3",{"$f":"\"Молодежный п, д.3\"","v":"Молодежный п, д.3"},{"$f":"\"Молодежный п, д.3\"","v":"Молодежный п, д.3"},{"$f":"\"Молодежный п, д.3\"","v":"Молодежный п, д.3"},"Молодежный п, д.3",{"$f":"\"Молодежный п, д.3\"","v":"Молодежный п, д.3"},null,null,null,null,null,null,null,{"$f":"\"Молодежный п, д.3\"","v":"Молодежный п, д.3"},null,null,null,null,null,null,null,null,null,null,null,null,null,null,null,null,"Молодежный п, д. 3",null,null,null,null,"Молодежный п, д. 3",null,null,null,null,null,null,null,null,null,null,"Молодежный п, д. 3",null,null,null,null,null,null,"Молодежный п, д. 3",null,null,null,null,null,"Молодежный п, д. 3",null,null,null,null,null,null,null,null,"Молодежный п, д. 3",null,null,null,null,null,"Молодежный п, д. 3",null,null,null,null,null,null,null,"Молодежный п, д. 3",null,null,null,null,null,null,"Молодежный п, д. 3",null,null,null,null,null,null,null,null,"Молодежный п, д. 3",null,null,null,null,"Молодежный п, д. 3",null,null,null,null,null,null,null,null,"Молодежный п, д. 3",null,null,null,null,"Молодежный п, д. 3",null,null,null,null,"Молодежный п, д. 3",null,null,"Молодежный п, д. 3",null,null,null,null,null,null,null,null,null,null,null,null,"Общий счет РО+"]
["Пролетарский п, Северный пер, д.1",{"$f":"\"Пролетарский п, Северный пер, д.1\"","v":"Пролетарский п, Северный пер, д.1"},{"$f":"\"Пролетарский п, Северный пер, д.1\"","v":"Пролетарский п, Северный пер, д.1"},{"$f":"\"Пролетарский п, Северный пер, д.1\"","v":"Пролетарский п, Северный пер, д.1"},"Пролетарский п, Северный пер, д.1",{"$f":"\"Пролетарский п, Северный пер, д.1\"","v":"Пролетарский п, Северный пер, д.1"},null,null,null,null,null,null,null,{"$f":"\"Пролетарский п, Северный пер, д.1\"","v":"Пролетарский п, Северный пер, д.1"},null,null,null,null,null,null,null,null,null,null,null,null,null,null,null,null,"Пролетарский п, Северный пер, д. 1",null,null,null,null,"Пролетарский п, Северный пер, д. 1",null,null,null,null,null,null,null,null,null,null,"Пролетарский п, Северный пер, д. 1",null,null,null,null,null,null,"Пролетарский п, Северный пер, д. 1",null,null,null,null,null,"Пролетарский п, Северный пер, д. 1",null,null,null,null,null,null,null,null,"Пролетарский п, Северный пер, д. 1",null,null,null,null,null,"Пролетарский п, Северный пер, д. 1",null,null,null,null,null,null,null,"Пролетарский п, Северный пер, д. 1",null,null,null,null,null,null,"Пролетарский п, Северный пер, д. 1",null,null,null,null,null,null,null,null,"Пролетарский п, Северный пер, д. 1",null,null,null,null,"Пролетарский п, Северный пер, д. 1",null,null,null,null,null,null,null,null,"Пролетарский п, Северный пер, д. 1",null,null,null,null,"Пролетарский п, Северный пер, д. 1",null,null,null,null,"Пролетарский п, Северный пер, д. 1",null,null,"Пролетарский п, Северный пер, д. 1",null,null,null,null,null,null,null,null,null,null,null,null,"Общий счет РО+"]

{"sheet":"Лист2","index":1,"n_rows":131,"n_cols":1,"rows_kept":131,"cut":false,"hidden":false,"merged":[]}
["Большая Климовская д, Чкалова ул, д. 5"]
["Вожега рп, 40 лет Победы ул, д. 10"]
["Вожега рп, 40 лет Победы ул, д. 17А"]
["Вожега рп, 40 лет Победы ул, д. 22"]
["Вожега рп, 40 лет Победы ул, д. 8"]
["Вожега рп, Вокзальная ул, д. 11"]
["Вожега рп, Вокзальная ул, д. 13"]
["Вожега рп, Вокзальная ул, д. 15"]
["Вожега рп, Вокзальная ул, д. 7"]
["Вожега рп, Вокзальная ул, д. 9"]
["Вожега рп, Гагарина ул, д. 39"]
["Вожега рп, Заводская ул, д. 10"]
["Вожега рп, Заводская ул, д. 13"]
["Вожега рп, Заводская ул, д. 5"]
["Вожега рп, Заводская ул, д. 8"]
["Вожега рп, Кузнецова ул, д. 10"]
["Вожега рп, Кузнецова ул, д. 12"]
["Вожега рп, Кузнецова ул, д. 25"]
["Вожега рп, Кузнецова ул, д. 7А"]
["Вожега рп, Кузнецова ул, д. 7Б"]
["Вожега рп, Луева ул, д. 3В"]
["Вожега рп, Луева ул, д. 5А"]
["Вожега рп, Мира ул, д. 10"]
["Вожега рп, Мира ул, д. 14"]
["Вожега рп, Мира ул, д. 2"]
["Вожега рп, Мира ул, д. 4"]
["Вожега рп, Мира ул, д. 5"]
["Вожега рп, Мира ул, д. 6"]
["Вожега рп, Мира ул, д. 7"]
["Вожега рп, Мира ул, д. 8"]
["Вожега рп, Новинки ул, д. 1Г"]
["Вожега рп, Октябрьская ул, д. 11"]
["Вожега рп, Октябрьская ул, д. 30"]
["Вожега рп, Октябрьская ул, д. 32"]
["Вожега рп, Октябрьская ул, д. 35"]
["Вожега рп, Октябрьская ул, д. 40А"]
["Вожега рп, Октябрьская ул, д. 42Б"]
["Вожега рп, Октябрьская ул, д. 44"]
["Вожега рп, Октябрьская ул, д. 45"]
["Вожега рп, Октябрьская ул, д. 45А"]
["Вожега рп, Октябрьская ул, д. 46"]
["Вожега рп, Октябрьская ул, д. 47"]
["Вожега рп, Октябрьская ул, д. 48"]
["Вожега рп, Октябрьская ул, д. 49"]
["Вожега рп, Октябрьская ул, д. 50Б"]
["Вожега рп, Октябрьская ул, д. 59"]
["Вожега рп, Октябрьская ул, д. 59А"]
["Вожега рп, Октябрьская ул, д. 59Б"]
["Вожега рп, Октябрьская ул, д. 60"]
["Вожега рп, Октябрьская ул, д. 61"]
["Вожега рп, Октябрьская ул, д. 61А"]
["Вожега рп, Октябрьская ул, д. 63"]
["Вожега рп, Октябрьская ул, д. 64А"]
["Вожега рп, Октябрьская ул, д. 65"]
["Вожега рп, Октябрьская ул, д. 65А"]
["Вожега рп, Октябрьская ул, д. 65Б"]
["Вожега рп, Октябрьская ул, д. 65В"]
["Вожега рп, Октябрьская ул, д. 66А"]
["Вожега рп, Октябрьская ул, д. 66Б"]
["Вожега рп, Октябрьская ул, д. 67"]
["Вожега рп, Октябрьская ул, д. 67А"]
["Вожега рп, Октябрьская ул, д. 67Б"]
["Вожега рп, Октябрьская ул, д. 68"]
["Вожега рп, Октябрьская ул, д. 68А"]
["Вожега рп, Октябрьская ул, д. 69"]
["Вожега рп, Октябрьская ул, д. 70"]
["Вожега рп, Октябрьская ул, д. 72"]
["Вожега рп, Октябрьская ул, д. 73"]
["Вожега рп, Октябрьская ул, д. 73А"]
["Вожега рп, Октябрьский пер., д. 22А"]
["Вожега рп, Октябрьский пер., д. 9"]
["Вожега рп, Путейская ул, д. 1"]
["Вожега рп, Путейская ул, д. 2"]
["Вожега рп, Путейская ул, д. 3"]
["Вожега рп, Путейская ул, д. 4"]
["Вожега рп, Путейская ул, д. 6"]
["Вожега рп, Садовая ул, д. 11"]
["Вожега рп, Садовая ул, д. 13"]
["Вожега рп, Садовая ул, д. 16"]
["Вожега рп, Садовая ул, д. 18"]
["Вожега рп, Садовая ул, д. 21"]
["Вожега рп, Садовая ул, д. 22"]
["Вожега рп, Садовая ул, д. 25"]
["Вожега рп, Садовая ул, д. 26"]
["Вожега рп, Садовая ул, д. 27"]
["Вожега рп, Садовая ул, д. 28"]
["Вожега рп, Садовая ул, д. 29А"]
["Вожега рп, Садовая ул, д. 33"]
["Вожега рп, Свободы ул, д. 13"]
["Вожега рп, Свободы ул, д. 29"]
["Вожега рп, Связи ул, д. 6"]
["Вожега рп, Советская ул, д. 22"]
["Вожега рп, Советская ул, д. 9А"]
["Вожега рп, Спортивная ул, д. 3"]
["Вожега рп, Спортивная ул, д. 4"]
["Вожега рп, Спортивная ул, д. 5"]
["Вожега рп, Спортивная ул, д. 6"]
["Вожега рп, Спортивная ул, д. 6А"]
["Вожега рп, Спортивная ул, д. 8"]
["Вожега рп, Спортивная ул, д. 8А"]
["Вожега рп, Транспортная ул, д. 10"]
["Вожега рп, Транспортная ул, д. 12"]
["Вожега рп, Транспортная ул, д. 16"]
["Вожега рп, Транспортная ул, д. 18"]
["Вожега рп, Транспортная ул, д. 19"]
["Вожега рп, Транспортная ул, д. 20"]
["Вожега рп, Транспортная ул, д. 21"]
["Вожега рп, Транспортная ул, д. 22"]
["Вожега рп, Транспортная ул, д. 23"]
["Вожега рп, Транспортная ул, д. 24"]
["Вожега рп, Транспортная ул, д. 26А"]
["Вожега рп, Транспортная ул, д. 31"]
["Вожега рп, Транспортная ул, д. 33"]
["Вожега рп, Транспортная ул, д. 35"]
["Вожега рп, Транспортная ул, д. 37"]
["Вожега рп, Транспортная ул, д. 8"]
["Вожега рп, Транспортный пер, д. 15"]
["Вожега рп, Транспортный пер, д. 18"]
["Вожега рп, Транспортный пер, д. 20"]
["Вожега рп, Транспортный пер, д. 22"]
["Вожега рп, Транспортный пер, д. 24"]
["Вожега рп, Хватова ул, д. 3"]
["Вожега рп, Хватова ул, д. 5"]
["Вожега рп, Хватова ул, д. 7"]
["Вожегодское с/с, Савинская д, д. 13"]
["Кадниковский п, Завокзальная ул, д. 4"]
["Кадниковский п, Завокзальная ул, д. 5"]
["Молодежный п, д. 1"]
["Молодежный п, д. 2"]
["Молодежный п, д. 3"]
["Пролетарский п, Северный пер, д. 1"]

{"sheet":"Лист3","index":2,"n_rows":0,"n_cols":0,"rows_kept":0,"cut":false,"hidden":false,"merged":[]}